Workbook

Sheet 4. Smart Meter Rev & Adder (hidden)
A1: Smart Meter Revenue Requirement & Proposed Rates- Summary
A2: =#REF! -> 
A4: Summary of Actual Costs claimed in this application | B4: 2006 Actual | C4: 2006 Plus | D4: 2007 Actual | E4: Total Actual | G4: Perm Adjust
A5: Capital Costs (must be installed, and used and useful) | G5: 2006 | H5: 2007 | I5: Total
A6: Smart Meters | B6: ='9A. SM Avg Nt Fix Ass &UCC'!C13 ->  | D6: ='12. 2007A SM Nt Fix Ass &UCC'!C13 ->  | E6: =SUM(B6:D6) ->  | G6: =B6 ->  | H6: =D6 ->  | I6: =H6 -> 
A7: Computer Hardware | B7: ='9A. SM Avg Nt Fix Ass &UCC'!C27 ->  | D7: ='12. 2007A SM Nt Fix Ass &UCC'!C27 ->  | E7: =SUM(B7:D7) ->  | G7: =B7 ->  | H7: =D7 ->  | I7: =H7 -> 
A8: Computer Software | B8: ='9A. SM Avg Nt Fix Ass &UCC'!C41 ->  | D8: ='12. 2007A SM Nt Fix Ass &UCC'!C41 ->  | E8: =SUM(B8:D8) ->  | G8: =B8 ->  | H8: =D8 ->  | I8: =H8 -> 
A9: Tools & Equipment | B9: ='9A. SM Avg Nt Fix Ass &UCC'!C56 ->  | D9: ='12. 2007A SM Nt Fix Ass &UCC'!C56 ->  | E9: =SUM(B9:D9) ->  | G9: =B9 ->  | H9: =D9 ->  | I9: =H9 -> 
A10: Other Equipment (please specify) | B10: ='9A. SM Avg Nt Fix Ass &UCC'!C70 ->  | D10: ='12. 2007A SM Nt Fix Ass &UCC'!C70 ->  | E10: 0 | G10: =B10 ->  | H10: =D10 ->  | I10: =H10 -> 
A11: Total Capital Costs | B11: =SUM(B6:B10) ->  | D11: =SUM(D6:D10) ->  | E11: =SUM(E6:E10) ->  | G11: =SUM(G6:G10) ->  | H11: =SUM(H6:H10) ->  | I11: =SUM(I6:I10) -> 
A13: O M & A
A14: 2.1 Advanced metering communication device (AMCD) | B14: =#REF! ->  | D14: 0 | E14: =SUM(B14:D14) -> 
A15: 2.2 Advanced metering regional collector (AMRC) (includes LAN) | B15: =#REF! ->  | D15: 0 | E15: =SUM(B15:D15) -> 
A16: 2.3 Advanced metering control computer (AMCC) | B16: =#REF! ->  | D16: 0 | E16: =SUM(B16:D16) -> 
A17: 2.4 Wide area network (WAN) | B17: =#REF! ->  | D17: 0 | E17: =SUM(B17:D17) -> 
A18: 2.5 Other AMI OM&A costs related to minimum functionality | B18: =#REF! ->  | D18: =#REF! ->  | E18: =SUM(B18:D18) -> 
A19: Total O M & A Costs | B19: =SUM(B14:B18) ->  | D19: =SUM(D14:D18) ->  | E19: =SUM(E14:E18) -> 
A21: Summary of Revenue Requirement Calculation | B21: 2006 Actual | C21: 2006 Plus | D21: 2007 Actual | E21: Total Actual | G21: Perm Adjust
A22: Net Fixed Assets | G22: 2006 | H22: 2007 | I22: Total
A23: Net Fixed Assets Beginning of Year | B23: =SUM('9A. SM Avg Nt Fix Ass &UCC'!C20,'9A. SM Avg Nt Fix Ass &UCC'!C34,'9A. SM Avg Nt Fix Ass &UCC'!C48,'9A. SM Avg Nt Fix Ass &UCC'!C63,'9A. SM Avg Nt Fix Ass &UCC'!C77) -> 0 | C23: =SUM('9A. SM Avg Nt Fix Ass &UCC'!C20,'9A. SM Avg Nt Fix Ass &UCC'!C34,'9A. SM Avg Nt Fix Ass &UCC'!C48,'9A. SM Avg Nt Fix Ass &UCC'!C63,'9A. SM Avg Nt Fix Ass &UCC'!C77,) -> 0 | D23: =SUM('12. 2007A SM Nt Fix Ass &UCC'!C20,'12. 2007A SM Nt Fix Ass &UCC'!C34,'12. 2007A SM Nt Fix Ass &UCC'!C48,'12. 2007A SM Nt Fix Ass &UCC'!C63,'12. 2007A SM Nt Fix Ass &UCC'!C77) -> 0 | G23: =SUM('9A. SM Avg Nt Fix Ass &UCC'!C20,'9A. SM Avg Nt Fix Ass &UCC'!C34,'9A. SM Avg Nt Fix Ass &UCC'!C48,'9A. SM Avg Nt Fix Ass &UCC'!C63,'9A. SM Avg Nt Fix Ass &UCC'!C77,) -> 0 | H23: =SUM('12. 2007A SM Nt Fix Ass &UCC'!C20,'12. 2007A SM Nt Fix Ass &UCC'!C34,'12. 2007A SM Nt Fix Ass &UCC'!C48,'12. 2007A SM Nt Fix Ass &UCC'!C63,'12. 2007A SM Nt Fix Ass &UCC'!C77) -> 0 | I23: =SUM(G23:H23) -> 0
A24: Net Fixed Assets End of Year | B24: =SUM('9A. SM Avg Nt Fix Ass &UCC'!C21,'9A. SM Avg Nt Fix Ass &UCC'!C35,'9A. SM Avg Nt Fix Ass &UCC'!C49,'9A. SM Avg Nt Fix Ass &UCC'!C64,'9A. SM Avg Nt Fix Ass &UCC'!C78) ->  | C24: =SUM('9A. SM Avg Nt Fix Ass &UCC'!C21,'9A. SM Avg Nt Fix Ass &UCC'!C35,'9A. SM Avg Nt Fix Ass &UCC'!C49,'9A. SM Avg Nt Fix Ass &UCC'!C64,'9A. SM Avg Nt Fix Ass &UCC'!C78) ->  | D24: =SUM('12. 2007A SM Nt Fix Ass &UCC'!C21,'12. 2007A SM Nt Fix Ass &UCC'!C35,'12. 2007A SM Nt Fix Ass &UCC'!C49,'12. 2007A SM Nt Fix Ass &UCC'!C64,'12. 2007A SM Nt Fix Ass &UCC'!C78) ->  | G24: =SUM('9A. SM Avg Nt Fix Ass &UCC'!C21,'9A. SM Avg Nt Fix Ass &UCC'!C35,'9A. SM Avg Nt Fix Ass &UCC'!C49,'9A. SM Avg Nt Fix Ass &UCC'!C64,'9A. SM Avg Nt Fix Ass &UCC'!C78,) ->  | H24: =SUM('12. 2007A SM Nt Fix Ass &UCC'!C21,'12. 2007A SM Nt Fix Ass &UCC'!C35,'12. 2007A SM Nt Fix Ass &UCC'!C49,'12. 2007A SM Nt Fix Ass &UCC'!C64,'12. 2007A SM Nt Fix Ass &UCC'!C78) ->  | I24: =SUM(G24:H24) -> 
A25: Average Net Fixed Asset Values | B25: =(B23+B24)/2 ->  | C25: =(C23+C24)/2 ->  | D25: =(D23+D24)/2 ->  | G25: =(G23+G24)/2 ->  | H25: =(H23+H24)/2 ->  | I25: =(I23+I24)/2 -> 
A27: Working Capital Allowance
A28: Operation Expense | B28: =B19 ->  | C28: =C19 -> 0 | D28: =D19 ->  | G28: =G19 -> 0 | H28: =H19 -> 0 | I28: =SUM(G28:H28) -> 0
A29: ="Working Capital Allowance " &#REF!* 100 &"% (from approved 2006 EDR application)" ->  | B29: =B28*#REF! ->  | C29: =C28*#REF! ->  | D29: =D28*#REF! ->  | G29: =G28*#REF! ->  | H29: =H28*#REF! ->  | I29: =I28*#REF! -> 
A31: Smart Meters Rate Base | B31: =B25+B29 ->  | C31: =C25+C29 ->  | D31: =D25+D29 ->  | G31: =G25+G29 ->  | H31: =H25+H29 ->  | I31: =I25+I29 -> 
A33: Return on Rate Base
A34: ="Deemed Debt " &#REF! * 100& "% Times Weighted Debt Rate " &#REF!*100 & "%" ->  | B34: =B31*#REF!*#REF! ->  | C34: =C31*#REF!*#REF! ->  | D34: =D31*#REF!*#REF! ->  | E34: =SUM(B34:D34) ->  | G34: =G31*#REF!*#REF! ->  | H34: =H31*#REF!*#REF! ->  | I34: =I31*#REF!*#REF! -> 
A35: ="Deemed Equity "&#REF!*100&"% Times ROE "&#REF!*100&"%" ->  | B35: =B31*#REF!*#REF! ->  | C35: =C31*#REF!*#REF! ->  | D35: =D31*#REF!*#REF! ->  | E35: =SUM(B35:D35) ->  | G35: =G31*#REF!*#REF! ->  | H35: =H31*#REF!*#REF! ->  | I35: =I31*#REF!*#REF! -> 
A36: Return on Rate Base | B36: =SUM(B34:B35) ->  | C36: =SUM(C34:C35) ->  | D36: =SUM(D34:D35) ->  | E36: =SUM(E34:E35) ->  | G36: =SUM(G34:G35) ->  | H36: =SUM(H34:H35) ->  | I36: =SUM(I34:I35) -> 
A38: Operating Expenses
A39: Incremental Operating Expenses | B39: =B19 ->  | C39: =C19 -> 0 | D39: =D19 ->  | E39: =SUM(B39:D39) ->  | G39: =G19 -> 0 | H39: =H19 -> 0 | I39: =SUM(G39:H39) -> 0
A40: Amortization Expenses | B40: ='7A. Smart Meter Rate Calc'!C42 -> 0 | C40: ='7A. Smart Meter Rate Calc'!H42 ->  | D40: ='10. 2007A Smart Meter Rate Calc'!C42 -> 0 | E40: =SUM(B40:D40) ->  | G40: ='7A. Smart Meter Rate Calc'!E42 ->  | H40: ='10. 2007A Smart Meter Rate Calc'!E42 ->  | I40: =SUM(G40:H40) -> 
A41: Total Operating Expenses | B41: =SUM(B39:B40) ->  | C41: =SUM(C39:C40) ->  | D41: =SUM(D39:D40) ->  | E41: =SUM(E39:E40) ->  | G41: =SUM(G39:G40) ->  | H41: =SUM(H39:H40) ->  | I41: =SUM(I39:I40) -> 
G43: Perm Adjust
B44: 2006 Actual | C44: 2006 Plus | D44: 2007 Actual | E44: Total Actual | G44: 2006 | H44: 2007 | I44: Total
A45: Revenue Requirement Before PILs | B45: =B36+B41 ->  | C45: =C36+C41 ->  | D45: =D36+D41 ->  | E45: =SUM(B45:D45) ->  | G45: =G36+G41 ->  | H45: =H36+H41 ->  | I45: =SUM(G45:H45) -> 
A46: Grossed up PILs | B46: ='8A. PILs'!C46 ->  | C46: ='8A. PILs'!C46 ->  | D46: ='11. 2007A PILs'!C46 ->  | E46: =SUM(B46:D46) ->  | G46: ='8A. PILs'!C46 ->  | H46: ='11. 2007A PILs'!C46 ->  | I46: =SUM(G46:H46) -> 
A47: Revenue Requirement for Smart Meters | B47: =SUM(B45:B46) ->  | C47: =SUM(C45:C46) ->  | D47: =SUM(D45:D46) ->  | E47: =SUM(E45:E46) ->  | G47: =SUM(G45:G46) ->  | H47: =SUM(H45:H46) ->  | I47: =SUM(I45:I46) -> 
A50: Rate Rider to Clear Actual Expenses to April 2007
A51: Revenue Requirement for Smart Meters Installed | G51: =E47 -> 
A52: Carrying costs | G52: ='5. Clearing Actual'!H32 -> 
A53: Less Smart Meter Adder Recovery | B53: Rate Adder | C53: Metered Customers per 2006 EDR | D53: No. of Mths | E53: Amount Recovered
A54: May 2006 to April 2007 - Residential | B54: =#REF! ->  | C54: =#REF! ->  | D54: 12 | E54: =B54*C54*D54 -> 
A55: May 2006 to April 2007 - GS & LU | B55: =#REF! ->  | C55: =SUM(#REF!) ->  | D55: 12 | E55: =B55*C55*D55 -> 
A56: May 2007 to October 2007 - Residential | B56: =#REF! ->  | C56: =#REF! ->  | D56: 6 | E56: =B56*C56*D56 -> 
A57: May 2007 to October 2007 - GS & LU | B57: =#REF! ->  | C57: =SUM(#REF!) ->  | D57: 6 | E57: =B57*C57*D57 -> 
A58: November 2007 to April 2008 (proposed no change) | B58: ='6. Adder Recovery'!H26 -> 0.73 | C58: =#REF! ->  | D58: 6 | E58: =B58*C58*D58 ->  | G58: =-SUM(E54:E58) -> 
G59: =SUM(G51:G58) -> 
A61: Rate Adder for Capital and Operating Exp April 2007 to December 2007 | B61: Rate Adder | C61: Metered Customers per 2006 EDR | D61: No. of Mths | E61: Amount Recovered
A62: November 2007 to April 2008 (new deferral account) | B62: =E62/C62/D62 ->  | C62: =#REF! ->  | D62: 6 | E62: =#REF! -> 
A65: Permanent Capital Rate Adjustustment | B65: Rate Adder | C65: Metered Customers per 2006 EDR | D65: No. of Mths | E65: Amount Recovered
A66: May 2008 | B66: =E66/C66/D66 ->  | C66: =#REF! ->  | D66: 12 | E66: =I47 -> 

Sheet 5. Clearing Actual (hidden)
A1: Clearing Actuals Smart Meter Revenue Requirement
A2: =#REF! -> 
B3: Opening | C3: 2006 Rev Req | D3: 2006 Plus Rev Req | E3: 2007 Rev Req | F3: Recovery | G3: Int. Rate | H3: Interest | I3: Closing
A4: 2006-01-01 | B4: 0 | C4: ='4. Smart Meter Rev & Adder'!$B$47/12 ->  | F4: =-'6. Adder Recovery'!D4 ->  | G4: 0.0704 | H4: =(B4*G4)/12 -> 0 | I4: =SUM(B4:F4,H4) -> 
A5: 2006-02-01 | B5: =I4 ->  | C5: ='4. Smart Meter Rev & Adder'!$B$47/12 ->  | F5: =-'6. Adder Recovery'!D5 ->  | G5: 0.0704
A6: 2006-03-01 | C6: ='4. Smart Meter Rev & Adder'!$B$47/12 ->  | F6: =-'6. Adder Recovery'!D6 ->  | G6: 0.0704
A7: 2006-04-01 | C7: ='4. Smart Meter Rev & Adder'!$B$47/12 ->  | F7: =-'6. Adder Recovery'!D7 ->  | G7: 0.0414
A8: 2006-05-01 | C8: ='4. Smart Meter Rev & Adder'!$B$47/12 ->  | F8: =-'6. Adder Recovery'!D8 ->  | G8: 0.0414
A9: 2006-06-01 | C9: ='4. Smart Meter Rev & Adder'!$B$47/12 ->  | F9: =-'6. Adder Recovery'!D9 ->  | G9: 0.0414
A10: 2006-07-01 | C10: ='4. Smart Meter Rev & Adder'!$B$47/12 ->  | F10: =-'6. Adder Recovery'!D10 ->  | G10: 0.0459
A11: 2006-08-01 | C11: ='4. Smart Meter Rev & Adder'!$B$47/12 ->  | F11: =-'6. Adder Recovery'!D11 ->  | G11: 0.0459
A12: 2006-09-01 | C12: ='4. Smart Meter Rev & Adder'!$B$47/12 ->  | F12: =-'6. Adder Recovery'!D12 ->  | G12: 0.0459
A13: 2006-10-01 | C13: ='4. Smart Meter Rev & Adder'!$B$47/12 ->  | F13: =-'6. Adder Recovery'!D13 ->  | G13: 0.0459
A14: 2006-11-01 | C14: ='4. Smart Meter Rev & Adder'!$B$47/12 ->  | F14: =-'6. Adder Recovery'!D14 ->  | G14: 0.0459
A15: 2006-12-01 | C15: ='4. Smart Meter Rev & Adder'!$B$47/12 ->  | F15: =-'6. Adder Recovery'!D15 ->  | G15: 0.0459
A16: 2007-01-01 | C16: 0 | D16: ='4. Smart Meter Rev & Adder'!$C$47/12 ->  | E16: ='4. Smart Meter Rev & Adder'!$D$47/12 ->  | F16: =-'6. Adder Recovery'!D16 ->  | G16: 0.0459
A17: 2007-02-01 | C17: 0 | D17: ='4. Smart Meter Rev & Adder'!$C$47/12 ->  | E17: ='4. Smart Meter Rev & Adder'!$D$47/12 ->  | F17: =-'6. Adder Recovery'!D17 ->  | G17: 0.0459
A18: 2007-03-01 | C18: 0 | D18: ='4. Smart Meter Rev & Adder'!$C$47/12 ->  | E18: ='4. Smart Meter Rev & Adder'!$D$47/12 ->  | F18: =-'6. Adder Recovery'!D18 ->  | G18: 0.0459
A19: 2007-04-01 | C19: 0 | D19: ='4. Smart Meter Rev & Adder'!$C$47/12 ->  | E19: ='4. Smart Meter Rev & Adder'!$D$47/12 ->  | F19: =-'6. Adder Recovery'!D19 ->  | G19: 0.0459
A20: 2007-05-01 | C20: 0 | D20: ='4. Smart Meter Rev & Adder'!$C$47/12 ->  | E20: ='4. Smart Meter Rev & Adder'!$D$47/12 ->  | F20: =-'6. Adder Recovery'!D20 ->  | G20: 0.0459
A21: 2007-06-01 | C21: 0 | D21: ='4. Smart Meter Rev & Adder'!$C$47/12 ->  | E21: ='4. Smart Meter Rev & Adder'!$D$47/12 ->  | F21: =-'6. Adder Recovery'!D21 ->  | G21: 0.0459
A22: 2007-07-01 | C22: 0 | D22: ='4. Smart Meter Rev & Adder'!$C$47/12 ->  | E22: ='4. Smart Meter Rev & Adder'!$D$47/12 ->  | F22: =-'6. Adder Recovery'!D22 ->  | G22: 0.0459
A23: 2007-08-01 | C23: 0 | D23: ='4. Smart Meter Rev & Adder'!$C$47/12 ->  | E23: ='4. Smart Meter Rev & Adder'!$D$47/12 ->  | F23: =-'6. Adder Recovery'!D23 ->  | G23: 0.0459
A24: 2007-09-01 | C24: 0 | D24: ='4. Smart Meter Rev & Adder'!$C$47/12 ->  | E24: ='4. Smart Meter Rev & Adder'!$D$47/12 ->  | F24: =-'6. Adder Recovery'!D24 ->  | G24: 0.0459
A25: 2007-10-01 | C25: 0 | D25: ='4. Smart Meter Rev & Adder'!$C$47/12 ->  | E25: ='4. Smart Meter Rev & Adder'!$D$47/12 ->  | F25: =-'6. Adder Recovery'!D25 ->  | G25: 0.0459
A26: 2007-11-01 | C26: 0 | D26: ='4. Smart Meter Rev & Adder'!$C$47/12 ->  | E26: ='4. Smart Meter Rev & Adder'!$D$47/12 ->  | F26: =-'6. Adder Recovery'!D26 ->  | G26: 0.0459
A27: 2007-12-01 | C27: 0 | D27: ='4. Smart Meter Rev & Adder'!$C$47/12 ->  | E27: ='4. Smart Meter Rev & Adder'!$D$47/12 ->  | F27: =-'6. Adder Recovery'!D27 ->  | G27: 0.0459
A28: 2008-01-01 | C28: 0 | F28: =-'6. Adder Recovery'!D28 ->  | G28: 0.0459
A29: 2008-02-01 | C29: 0 | F29: =-'6. Adder Recovery'!D29 ->  | G29: 0.0459
A30: 2008-03-01 | C30: 0 | F30: =-'6. Adder Recovery'!D30 ->  | G30: 0.0459
A31: 2008-04-01 | C31: 0 | F31: =-'6. Adder Recovery'!D31 ->  | G31: 0.0459
A32: Revenue Requirement | C32: =SUM(C4:C31) ->  | D32: =SUM(D4:D31) ->  | E32: =SUM(E4:E31) ->  | G32: Carrying Costs | H32: =SUM(H4:H31) -> 

Sheet 6. Adder Recovery (hidden)
A1: Smart Meter Rate Adder Recovery | G1: Smart Meter Rate Adder Recovery - Residential | M1: Smart Meter Rate Adder Recovery - GS & LU
A2: =#REF! ->  | G2: =#REF! ->  | M2: =#REF! -> 
A3: Month | B3: Residential | C3: GS & LU | D3: Total | E3: Cummulative | G3: Month | H3: SM Rate Adder | I3: Customers | J3: Recovery | K3: Cummulative | M3: Month | N3: SM Rate Adder | O3: Customers | P3: Recovery | Q3: Cummulative
A4: 2006-01-01 | B4: =J4 ->  | C4: =P4 ->  | D4: =SUM(B4:C4) ->  | E4: =SUM($D$4:D4) ->  | G4: 2006-01-01 | H4: 0 | I4: =#REF! ->  | J4: =H4*I4 ->  | K4: =SUM($J$4:$J4) ->  | M4: 2006-01-01 | N4: 0 | O4: =SUM(#REF!) ->  | P4: =N4*O4 ->  | Q4: =SUM($P$4:$P4) -> 
A5: 2006-02-01 | B5: =J5 ->  | C5: =P5 ->  | D5: =SUM(B5:C5) ->  | E5: =SUM($D$4:D5) ->  | G5: 2006-02-01 | H5: 0 | I5: =I4 ->  | K5: =SUM($J$4:$J5) ->  | M5: 2006-02-01 | N5: 0 | O5: =O4 ->  | Q5: =SUM($P$4:$P5) -> 
A6: 2006-03-01 | E6: =SUM($D$4:D6) ->  | G6: 2006-03-01 | H6: 0 | I6: =I5 ->  | K6: =SUM($J$4:$J6) ->  | M6: 2006-03-01 | N6: 0 | O6: =O5 ->  | Q6: =SUM($P$4:$P6) -> 
A7: 2006-04-01 | E7: =SUM($D$4:D7) ->  | G7: 2006-04-01 | H7: 0 | K7: =SUM($J$4:$J7) ->  | M7: 2006-04-01 | N7: 0 | Q7: =SUM($P$4:$P7) -> 
A8: 2006-05-01 | E8: =SUM($D$4:D8) ->  | G8: 2006-05-01 | H8: =#REF! ->  | K8: =SUM($J$4:$J8) ->  | M8: 2006-05-01 | N8: =#REF! ->  | Q8: =SUM($P$4:$P8) -> 
A9: 2006-06-01 | E9: =SUM($D$4:D9) ->  | G9: 2006-06-01 | H9: =H8 ->  | K9: =SUM($J$4:$J9) ->  | M9: 2006-06-01 | N9: =N8 ->  | Q9: =SUM($P$4:$P9) -> 
A10: 2006-07-01 | E10: =SUM($D$4:D10) ->  | G10: 2006-07-01 | H10: =H9 ->  | K10: =SUM($J$4:$J10) ->  | M10: 2006-07-01 | N10: =N9 ->  | Q10: =SUM($P$4:$P10) -> 
A11: 2006-08-01 | E11: =SUM($D$4:D11) ->  | G11: 2006-08-01 | K11: =SUM($J$4:$J11) ->  | M11: 2006-08-01 | Q11: =SUM($P$4:$P11) -> 
A12: 2006-09-01 | E12: =SUM($D$4:D12) ->  | G12: 2006-09-01 | K12: =SUM($J$4:$J12) ->  | M12: 2006-09-01 | Q12: =SUM($P$4:$P12) -> 
A13: 2006-10-01 | E13: =SUM($D$4:D13) ->  | G13: 2006-10-01 | K13: =SUM($J$4:$J13) ->  | M13: 2006-10-01 | Q13: =SUM($P$4:$P13) -> 
A14: 2006-11-01 | E14: =SUM($D$4:D14) ->  | G14: 2006-11-01 | K14: =SUM($J$4:$J14) ->  | M14: 2006-11-01 | Q14: =SUM($P$4:$P14) -> 
A15: 2006-12-01 | E15: =SUM($D$4:D15) ->  | G15: 2006-12-01 | K15: =SUM($J$4:$J15) ->  | M15: 2006-12-01 | Q15: =SUM($P$4:$P15) -> 
A16: 2007-01-01 | E16: =SUM($D$4:D16) ->  | G16: 2007-01-01 | K16: =SUM($J$4:$J16) ->  | M16: 2007-01-01 | Q16: =SUM($P$4:$P16) -> 
A17: 2007-02-01 | E17: =SUM($D$4:D17) ->  | G17: 2007-02-01 | K17: =SUM($J$4:$J17) ->  | M17: 2007-02-01 | Q17: =SUM($P$4:$P17) -> 
A18: 2007-03-01 | E18: =SUM($D$4:D18) ->  | G18: 2007-03-01 | K18: =SUM($J$4:$J18) ->  | M18: 2007-03-01 | Q18: =SUM($P$4:$P18) -> 
A19: 2007-04-01 | E19: =SUM($D$4:D19) ->  | G19: 2007-04-01 | K19: =SUM($J$4:$J19) ->  | M19: 2007-04-01 | Q19: =SUM($P$4:$P19) -> 
A20: 2007-05-01 | E20: =SUM($D$4:D20) ->  | G20: 2007-05-01 | H20: =#REF! ->  | K20: =SUM($J$4:$J20) ->  | M20: 2007-05-01 | N20: =#REF! ->  | Q20: =SUM($P$4:$P20) -> 
A21: 2007-06-01 | E21: =SUM($D$4:D21) ->  | G21: 2007-06-01 | H21: =H20 ->  | K21: =SUM($J$4:$J21) ->  | M21: 2007-06-01 | N21: =N20 ->  | Q21: =SUM($P$4:$P21) -> 
A22: 2007-07-01 | E22: =SUM($D$4:D22) ->  | G22: 2007-07-01 | H22: =H21 ->  | K22: =SUM($J$4:$J22) ->  | M22: 2007-07-01 | N22: =N21 ->  | Q22: =SUM($P$4:$P22) -> 
A23: 2007-08-01 | E23: =SUM($D$4:D23) ->  | G23: 2007-08-01 | H23: =H22 ->  | K23: =SUM($J$4:$J23) ->  | M23: 2007-08-01 | N23: =N22 ->  | Q23: =SUM($P$4:$P23) -> 
A24: 2007-09-01 | E24: =SUM($D$4:D24) ->  | G24: 2007-09-01 | H24: =H23 ->  | K24: =SUM($J$4:$J24) ->  | M24: 2007-09-01 | N24: =N23 ->  | Q24: =SUM($P$4:$P24) -> 
A25: 2007-10-01 | E25: =SUM($D$4:D25) ->  | G25: 2007-10-01 | H25: =H24 ->  | K25: =SUM($J$4:$J25) ->  | M25: 2007-10-01 | N25: =N24 ->  | Q25: =SUM($P$4:$P25) -> 
A26: 2007-11-01 | E26: =SUM($D$4:D26) ->  | G26: 2007-11-01 | H26: 0.73 | K26: =SUM($J$4:$J26) ->  | M26: 2007-11-01 | N26: =H26 -> 0.73 | Q26: =SUM($P$4:$P26) -> 
A27: 2007-12-01 | E27: =SUM($D$4:D27) ->  | G27: 2007-12-01 | H27: =H26 -> 0.73 | K27: =SUM($J$4:$J27) ->  | M27: 2007-12-01 | N27: 0.73 | Q27: =SUM($P$4:$P27) -> 
A28: 2008-01-01 | E28: =SUM($D$4:D28) ->  | G28: 2008-01-01 | H28: =H27 -> 0.73 | K28: =SUM($J$4:$J28) ->  | M28: 2008-01-01 | N28: 0.73 | Q28: =SUM($P$4:$P28) -> 
A29: 2008-02-01 | E29: =SUM($D$4:D29) ->  | G29: 2008-02-01 | H29: =H28 -> 0.73 | K29: =SUM($J$4:$J29) ->  | M29: 2008-02-01 | N29: 0.73 | Q29: =SUM($P$4:$P29) -> 
A30: 2008-03-01 | E30: =SUM($D$4:D30) ->  | G30: 2008-03-01 | H30: =H29 -> 0.73 | K30: =SUM($J$4:$J30) ->  | M30: 2008-03-01 | N30: 0.73 | Q30: =SUM($P$4:$P30) -> 
A31: 2008-04-01 | E31: =SUM($D$4:D31) ->  | G31: 2008-04-01 | H31: =H30 -> 0.73 | K31: =SUM($J$4:$J31) ->  | M31: 2008-04-01 | N31: 0.73 | Q31: =SUM($P$4:$P31) -> 

Sheet 7A. Smart Meter Rate Calc (hidden)
B2: =#REF! -> 
B3: =#REF! -> 
B4: =#REF! -> 
B5: Sheet 7. Smart Meter Rate Calc
A8: Smart Meter Rate Calculation
B10: Average Asset Values | C10: 2006 | F10: 2007 | I10: 2008 | L10: 2009 | O10: 2010
B11: Net Fixed Assets Smart Meters | C11: ='9A. SM Avg Nt Fix Ass &UCC'!C22 ->  | F11: ='9A. SM Avg Nt Fix Ass &UCC'!D22 ->  | I11: ='9A. SM Avg Nt Fix Ass &UCC'!E22 ->  | L11: ='9A. SM Avg Nt Fix Ass &UCC'!F22 ->  | O11: ='9A. SM Avg Nt Fix Ass &UCC'!G22 -> 
B12: Net Fixed Assets Computer Hardware | C12: ='9A. SM Avg Nt Fix Ass &UCC'!C36 ->  | F12: ='9A. SM Avg Nt Fix Ass &UCC'!D36 ->  | I12: ='9A. SM Avg Nt Fix Ass &UCC'!E36 ->  | L12: ='9A. SM Avg Nt Fix Ass &UCC'!F36 ->  | O12: ='9A. SM Avg Nt Fix Ass &UCC'!G36 -> 
B13: Net Fixed Assets Computer Software | C13: ='9A. SM Avg Nt Fix Ass &UCC'!C50 ->  | F13: ='9A. SM Avg Nt Fix Ass &UCC'!D50 ->  | I13: ='9A. SM Avg Nt Fix Ass &UCC'!E50 ->  | L13: ='9A. SM Avg Nt Fix Ass &UCC'!F50 ->  | O13: ='9A. SM Avg Nt Fix Ass &UCC'!G50 -> 
B14: Net Fixed Assets Tools & Equipment | C14: ='9A. SM Avg Nt Fix Ass &UCC'!C65 ->  | F14: ='9A. SM Avg Nt Fix Ass &UCC'!D65 ->  | I14: ='9A. SM Avg Nt Fix Ass &UCC'!E65 ->  | L14: ='9A. SM Avg Nt Fix Ass &UCC'!F65 ->  | O14: ='9A. SM Avg Nt Fix Ass &UCC'!G65 -> 
B15: Net Fixed Assets Other Equipment | C15: ='9A. SM Avg Nt Fix Ass &UCC'!C79 ->  | F15: ='9A. SM Avg Nt Fix Ass &UCC'!D79 ->  | I15: ='9A. SM Avg Nt Fix Ass &UCC'!E79 ->  | L15: ='9A. SM Avg Nt Fix Ass &UCC'!F79 ->  | O15: ='9A. SM Avg Nt Fix Ass &UCC'!G79 -> 
B16: Total Net Fixed Assets | C16: =SUM(C11:C15) ->  | D16: =C16 ->  | F16: =SUM(F11:F15) ->  | G16: =F16 ->  | I16: =SUM(I11:I15) ->  | J16: =I16 ->  | L16: =SUM(L11:L15) ->  | M16: =L16 ->  | O16: =SUM(O11:O15) ->  | P16: =O16 -> 
B18: Working Capital
B19: Operation Expense | C19: =E34 ->  | F19: =H34 ->  | I19: =K34 ->  | L19: =N34 ->  | O19: =Q34 -> 
B20: ="Working Capital "&#REF!*100&" %" ->  | C20: =C19*#REF! ->  | D20: =C20 ->  | F20: =F19*#REF! ->  | G20: =F20 ->  | I20: =I19*#REF! ->  | J20: =I20 ->  | L20: =L19*#REF! ->  | M20: =L20 ->  | O20: =O19*#REF! ->  | P20: =O20 -> 
B22: Smart Meters included in Rate Base | D22: =SUM(D12:D20) ->  | G22: =SUM(G12:G20) ->  | J22: =SUM(J12:J20) ->  | M22: =SUM(M12:M20) ->  | P22: =SUM(P12:P20) -> 
B24: Return on Rate Base
B25: Deemed Debt (3. LDC Assumptions and Data) | C25: =#REF! ->  | D25: =D22*C25 ->  | F25: =#REF! ->  | G25: =G22*F25 ->  | I25: =#REF! ->  | J25: =J22*I25 ->  | L25: =#REF! ->  | M25: =M22*L25 ->  | O25: =#REF! ->  | P25: =P22*O25 -> 
B26: Deemed Equity (3. LDC Assumptions and Data) | C26: =#REF! ->  | D26: =D22*C26 ->  | F26: =#REF! ->  | G26: =G22*F26 ->  | I26: =#REF! ->  | J26: =J22*I26 ->  | L26: =#REF! ->  | M26: =M22*L26 ->  | O26: =#REF! ->  | P26: =P22*O26 -> 
D27: =SUM(D25:D26) ->  | G27: =SUM(G25:G26) ->  | J27: =SUM(J25:J26) ->  | M27: =SUM(M25:M26) ->  | P27: =SUM(P25:P26) -> 
B29: Weighted Debt Rate (3. LDC Assumptions and Data) | C29: =#REF! ->  | D29: =D25*C29 ->  | F29: =#REF! ->  | G29: =G25*F29 ->  | I29: =#REF! ->  | J29: =J25*I29 ->  | L29: =#REF! ->  | M29: =M25*L29 ->  | O29: =#REF! ->  | P29: =P25*O29 -> 
B30: Proposed ROE (3. LDC Assumptions and Data) | C30: =#REF! ->  | D30: =D26*C30 ->  | F30: =#REF! ->  | G30: =G26*F30 ->  | I30: =#REF! ->  | J30: =J26*I30 ->  | L30: =#REF! ->  | M30: =M26*L30 ->  | O30: =#REF! ->  | P30: =P26*O30 -> 
B31: Return on Rate Base | D31: =SUM(D29:D30) ->  | E31: =D31 ->  | G31: =SUM(G29:G30) ->  | H31: =G31 ->  | J31: =SUM(J29:J30) ->  | K31: =J31 ->  | M31: =SUM(M29:M30) ->  | N31: =M31 ->  | P31: =SUM(P29:P30) ->  | Q31: =P31 -> 
B33: Operating Expenses
B34: Incremental Operating Expenses (3. LDC Assumptions and Data) | E34: =#REF! ->  | H34: =#REF! ->  | K34: =#REF! ->  | N34: =#REF! ->  | Q34: =#REF! -> 
B36: Amortization Expenses
B37: Amortization Expenses - Smart Meters | D37: =SUM('9A. SM Avg Nt Fix Ass &UCC'!C17:C17) ->  | G37: =SUM('9A. SM Avg Nt Fix Ass &UCC'!D17:D17) ->  | J37: =SUM('9A. SM Avg Nt Fix Ass &UCC'!E17:E17) ->  | M37: =SUM('9A. SM Avg Nt Fix Ass &UCC'!F17:F17) ->  | P37: =SUM('9A. SM Avg Nt Fix Ass &UCC'!G17:G17) -> 
B38: Amortization Expenses - Computer Hardware | D38: =SUM('9A. SM Avg Nt Fix Ass &UCC'!C31:C31) ->  | G38: =SUM('9A. SM Avg Nt Fix Ass &UCC'!D31:D31) ->  | J38: =SUM('9A. SM Avg Nt Fix Ass &UCC'!E31:E31) ->  | M38: =SUM('9A. SM Avg Nt Fix Ass &UCC'!F31:F31) ->  | P38: =SUM('9A. SM Avg Nt Fix Ass &UCC'!G31:G31) -> 
B39: Amortization Expenses - Computer Software | D39: =SUM('9A. SM Avg Nt Fix Ass &UCC'!C45:C45) ->  | G39: =SUM('9A. SM Avg Nt Fix Ass &UCC'!D45:D45) ->  | J39: =SUM('9A. SM Avg Nt Fix Ass &UCC'!E45:E45) ->  | M39: =SUM('9A. SM Avg Nt Fix Ass &UCC'!F45:F45) ->  | P39: =SUM('9A. SM Avg Nt Fix Ass &UCC'!G45:G45) -> 
B40: Amortization Expenses - Tools & Equipment | D40: =SUM('9A. SM Avg Nt Fix Ass &UCC'!C60:C60) ->  | G40: =SUM('9A. SM Avg Nt Fix Ass &UCC'!D60:D60) ->  | J40: =SUM('9A. SM Avg Nt Fix Ass &UCC'!E60:E60) ->  | M40: =SUM('9A. SM Avg Nt Fix Ass &UCC'!F60:F60) ->  | P40: =SUM('9A. SM Avg Nt Fix Ass &UCC'!G60:G60) -> 
B41: Amortization Expenses - Other Equipment | D41: =SUM('9A. SM Avg Nt Fix Ass &UCC'!C74:C74) ->  | G41: =SUM('9A. SM Avg Nt Fix Ass &UCC'!D74:D74) ->  | J41: =SUM('9A. SM Avg Nt Fix Ass &UCC'!E74:E74) ->  | M41: =SUM('9A. SM Avg Nt Fix Ass &UCC'!F74:F74) ->  | P41: =SUM('9A. SM Avg Nt Fix Ass &UCC'!G74:G74) -> 
B42: Total Amortization Expenses | E42: =SUM(D37:D41) ->  | H42: =SUM(G37:G41) ->  | K42: =SUM(J37:J41) ->  | N42: =SUM(M37:M41) ->  | Q42: =SUM(P37:P41) -> 
B44: Revenue Requirement Before PILs | E44: =SUM(E31,E42,E34) ->  | H44: =SUM(H31,H42,H34) ->  | K44: =SUM(K31,K42,K34) ->  | N44: =SUM(N31,N42,N34) ->  | Q44: =SUM(Q31,Q42,Q34) -> 
B46: Calculation of Taxable Income
B47: Incremental Operating Expenses | E47: =-E34 ->  | H47: =-H34 ->  | K47: =-K34 ->  | N47: =-N34 ->  | Q47: =-Q34 -> 
B48: Depreciation Expenses | E48: =-E42 ->  | H48: =-H42 ->  | K48: =-K42 ->  | N48: =-N42 ->  | Q48: =-Q42 -> 
B49: Interest Expense | E49: =-D29 ->  | H49: =-G29 ->  | K49: =-J29 ->  | N49: =-M29 ->  | Q49: =-P29 -> 
B50: Taxable Income For PILs | E50: =SUM(E44:E49) ->  | H50: =SUM(H44:H49) ->  | K50: =SUM(K44:K49) ->  | N50: =SUM(N44:N49) ->  | Q50: =SUM(Q44:Q49) -> 
B52: Grossed up PILs (5. PILs) | E52: ='8A. PILs'!C46 ->  | H52: ='8A. PILs'!D46 ->  | K52: ='8A. PILs'!E46 ->  | N52: ='8A. PILs'!F46 ->  | Q52: ='8A. PILs'!G46 -> 
B54: =B44 -> Revenue Requirement Before PILs | E54: =E44 ->  | H54: =H44 ->  | K54: =K44 ->  | N54: =N44 ->  | Q54: =Q44 -> 
B55: Grossed up PILs (5. PILs) | E55: =E52 ->  | H55: =H52 ->  | K55: =K52 ->  | N55: =N52 ->  | Q55: =Q52 -> 
B56: Revenue Requirement for Smart Meters | E56: =SUM(E54:E55) ->  | H56: =SUM(H54:H55) ->  | K56: =SUM(K54:K55) ->  | N56: =SUM(N54:N55) ->  | Q56: =SUM(Q54:Q55) -> 
B58: 2007 Smart Meter Rate Adder
B59: Revenue Requirement for Smart Meters | E59: =E56 ->  | H59: =H56 ->  | K59: =K56 ->  | N59: =N56 ->  | Q59: =Q56 -> 
B60: 2006 EDR Total Metered Customers (3. LDC Assumptions and Data) | E60: =#REF! ->  | H60: =#REF! ->  | K60: =#REF! ->  | N60: =#REF! ->  | Q60: =#REF! -> 
B61: Annualized amount required per metered customer | E61: =IF(ISERROR(E59/E60),0,E59/E60) -> 0 | H61: =IF(ISERROR(H59/H60),0,H59/H60) -> 0 | K61: =IF(ISERROR(K59/K60),0,K59/K60) -> 0 | N61: =IF(ISERROR(N59/N60),0,N59/N60) -> 0 | Q61: =IF(ISERROR(Q59/Q60),0,Q59/Q60) -> 0
B62: Number of months in year | E62: 12 | H62: 12 | K62: 12 | N62: 12 | Q62: 12
B63: 2007 Smart Meter Rate Adder | E63: =E61/E62 -> 0 | H63: =H61/H62 -> 0 | K63: =K61/K62 -> 0 | N63: =N61/N62 -> 0 | Q63: =Q61/Q62 -> 0

Sheet 8A. PILs (hidden)
B2: =#REF! -> 
B3: =#REF! -> 
B4: =#REF! -> 
B5: Sheet 8A. PILs
B8: PILs Calculation
C10: 2006 | D10: 2007 | E10: 2008 | F10: 2009 | G10: 2010
B11: INCOME TAX
B12: Net Income | C12: ='7A. Smart Meter Rate Calc'!E50 ->  | D12: ='7A. Smart Meter Rate Calc'!H50 ->  | E12: ='7A. Smart Meter Rate Calc'!K50 ->  | F12: ='7A. Smart Meter Rate Calc'!N50 ->  | G12: ='7A. Smart Meter Rate Calc'!Q50 -> 
B13: Amortization | C13: =-'7A. Smart Meter Rate Calc'!E48 ->  | D13: =-'7A. Smart Meter Rate Calc'!H48 ->  | E13: =-'7A. Smart Meter Rate Calc'!K48 ->  | F13: =-'7A. Smart Meter Rate Calc'!N48 ->  | G13: =-'7A. Smart Meter Rate Calc'!Q48 -> 
B14: CCA - Class 47 (8%) Smart Meters | C14: =-'9A. SM Avg Nt Fix Ass &UCC'!C93 ->  | D14: =-'9A. SM Avg Nt Fix Ass &UCC'!D93 ->  | E14: =-'9A. SM Avg Nt Fix Ass &UCC'!E93 ->  | F14: =-'9A. SM Avg Nt Fix Ass &UCC'!F93 ->  | G14: =-'9A. SM Avg Nt Fix Ass &UCC'!G93 -> 
B15: CCA - Class 45 (45%) Computers | C15: =-'9A. SM Avg Nt Fix Ass &UCC'!C106 ->  | D15: =-'9A. SM Avg Nt Fix Ass &UCC'!D106 ->  | E15: =-'9A. SM Avg Nt Fix Ass &UCC'!E106 ->  | F15: =-'9A. SM Avg Nt Fix Ass &UCC'!F106 ->  | G15: =-'9A. SM Avg Nt Fix Ass &UCC'!G106 -> 
B16: CCA - Class 8 (20%) Other Equipment | C16: =-'9A. SM Avg Nt Fix Ass &UCC'!C119 ->  | D16: =-'9A. SM Avg Nt Fix Ass &UCC'!D119 ->  | E16: =-'9A. SM Avg Nt Fix Ass &UCC'!E119 ->  | F16: =-'9A. SM Avg Nt Fix Ass &UCC'!F119 ->  | G16: =-'9A. SM Avg Nt Fix Ass &UCC'!G119 -> 
B17: Change in taxable income | C17: =SUM(C12:C16) ->  | D17: =SUM(D12:D16) ->  | E17: =SUM(E12:E16) ->  | F17: =SUM(F12:F16) ->  | G17: =SUM(G12:G16) -> 
B18: Tax Rate (3. LDC Assumptions and Data) | C18: =#REF! ->  | D18: =#REF! ->  | E18: =#REF! ->  | F18: =#REF! ->  | G18: =#REF! -> 
B19: Income Taxes Payable | C19: =C17*C18 ->  | D19: =D17*D18 ->  | E19: =E17*E18 ->  | F19: =F17*F18 ->  | G19: =G17*G18 -> 
B21: ONTARIO CAPITAL TAX
B22: Smart Meters | C22: ='9A. SM Avg Nt Fix Ass &UCC'!C21 ->  | D22: ='9A. SM Avg Nt Fix Ass &UCC'!D21 ->  | E22: ='9A. SM Avg Nt Fix Ass &UCC'!E21 ->  | F22: ='9A. SM Avg Nt Fix Ass &UCC'!F21 ->  | G22: ='9A. SM Avg Nt Fix Ass &UCC'!G21 -> 
B23: Computer Hardware | C23: ='9A. SM Avg Nt Fix Ass &UCC'!C35 ->  | D23: ='9A. SM Avg Nt Fix Ass &UCC'!D35 ->  | E23: ='9A. SM Avg Nt Fix Ass &UCC'!E35 ->  | F23: ='9A. SM Avg Nt Fix Ass &UCC'!F35 ->  | G23: ='9A. SM Avg Nt Fix Ass &UCC'!G35 -> 
B24: Computer Software | C24: ='9A. SM Avg Nt Fix Ass &UCC'!C49 ->  | D24: ='9A. SM Avg Nt Fix Ass &UCC'!D49 ->  | E24: ='9A. SM Avg Nt Fix Ass &UCC'!E49 ->  | F24: ='9A. SM Avg Nt Fix Ass &UCC'!F49 ->  | G24: ='9A. SM Avg Nt Fix Ass &UCC'!G49 -> 
B25: Tools & Equipment | C25: ='9A. SM Avg Nt Fix Ass &UCC'!C64 ->  | D25: ='9A. SM Avg Nt Fix Ass &UCC'!D64 ->  | E25: ='9A. SM Avg Nt Fix Ass &UCC'!E64 ->  | F25: ='9A. SM Avg Nt Fix Ass &UCC'!F64 ->  | G25: ='9A. SM Avg Nt Fix Ass &UCC'!G64 -> 
B26: Other Equipment | C26: ='9A. SM Avg Nt Fix Ass &UCC'!C78 ->  | D26: ='9A. SM Avg Nt Fix Ass &UCC'!D78 ->  | E26: ='9A. SM Avg Nt Fix Ass &UCC'!E78 ->  | F26: ='9A. SM Avg Nt Fix Ass &UCC'!F78 ->  | G26: ='9A. SM Avg Nt Fix Ass &UCC'!G78 -> 
B27: Rate Base | C27: =SUM(C22:C24) ->  | D27: =SUM(D22:D24) ->  | E27: =SUM(E22:E24) ->  | F27: =SUM(F22:F24) ->  | G27: =SUM(G22:G24) -> 
B28: Less: Exemption | C28: 0 | D28: 0 | E28: 0 | F28: 0 | G28: 0
B29: Deemed Taxable Capital | C29: =C27-C28 ->  | D29: =D27-D28 ->  | E29: =E27-E28 ->  | F29: =F27-F28 ->  | G29: =G27-G28 -> 
B30: Ontario Capital Tax Rate | C30: 0.003 | D30: 0.003 | E30: 0.003 | F30: 0.003 | G30: 0.003
B31: Net Amount (Taxable Capital x Rate) | C31: =C29*C30 ->  | D31: =D29*D30 ->  | E31: =E29*E30 ->  | F31: =F29*F30 ->  | G31: =G29*G30 -> 
B34: Gross Up
C35: PILs Payable | D35: PILs Payable | E35: PILs Payable | F35: PILs Payable | G35: PILs Payable
B36: Change in Income Taxes Payable | C36: =C19 ->  | D36: =D19 ->  | E36: =E19 ->  | F36: =F19 ->  | G36: =G19 -> 
B37: Change in OCT | C37: =C31 ->  | D37: =D31 ->  | E37: =E31 ->  | F37: =F31 ->  | G37: =G31 -> 
B38: PIL's | C38: =SUM(C36:C37) ->  | D38: =SUM(D36:D37) ->  | E38: =SUM(E36:E37) ->  | F38: =SUM(F36:F37) ->  | G38: =SUM(G36:G37) ->  | I38: 4. Smart Meter Rate Calc
C40: Gross Up | D40: Gross Up | E40: Gross Up | F40: Gross Up | G40: Gross Up
C41: =$C$18 ->  | D41: =$C$18 ->  | E41: =$C$18 ->  | F41: =$C$18 ->  | G41: =$C$18 -> 
C43: Grossed Up PILs | D43: Grossed Up PILs | E43: Grossed Up PILs | F43: Grossed Up PILs | G43: Grossed Up PILs
B44: Change in Income Taxes Payable | C44: =C36/(1-C41) ->  | D44: =D36/(1-D41) ->  | E44: =E36/(1-E41) ->  | F44: =F36/(1-F41) ->  | G44: =G36/(1-G41) -> 
B45: Change in OCT | C45: =C37 ->  | D45: =D37 ->  | E45: =E37 ->  | F45: =F37 ->  | G45: =G37 -> 
B46: PIL's | C46: =SUM(C44:C45) ->  | D46: =SUM(D44:D45) ->  | E46: =SUM(E44:E45) ->  | F46: =SUM(F44:F45) ->  | G46: =SUM(G44:G45) -> 

Sheet 9A. SM Avg Nt Fix Ass &UCC (hidden)
B2: =#REF! -> 
B3: =#REF! -> 
B4: =#REF! -> 
B5: Sheet 9. SM Avg Net Fixed Assets &UCC
B8: Smart Meter Average Net Fixed Assets
B10: Net Fixed Assets - Smart Meters | C10: 2006 | D10: 2007 | E10: 2008 | F10: 2009 | G10: 2010
B12: Opening Capital Investment | C12: 0 | D12: =C14 ->  | E12: =D14 ->  | F12: =E14 ->  | G12: =F14 -> 
B13: Capital Investment (3. LDC Assumptions and Data) | C13: =#REF! ->  | D13: =#REF! ->  | E13: =#REF! ->  | F13: =#REF! ->  | G13: =#REF! -> 
B14: Closing Capital Investment | C14: =SUM(C12:C13) ->  | D14: =SUM(D12:D13) ->  | E14: =SUM(E12:E13) ->  | F14: =SUM(F12:F13) ->  | G14: =SUM(G12:G13) -> 
B16: Opening Accumulated Amortization | C16: 0 | D16: =C18 ->  | E16: =D18 ->  | F16: =E18 ->  | G16: =F18 -> 
B17: ="Amortization Year 1 (" &#REF! &" Years Straight Line)" ->  | C17: =IF(C16+(C12/#REF!)+(C13/#REF!/2)<C14,(C12/#REF!)+(C13/#REF!/2),C14-C16) ->  | D17: =IF(D16+(D12/#REF!)+(D13/#REF!/2)<D14,(D12/#REF!)+(D13/#REF!/2),D14-D16) ->  | E17: =IF(E16+(E12/#REF!)+(E13/#REF!/2)<E14,(E12/#REF!)+(E13/#REF!/2),E14-E16) ->  | F17: =IF(F16+(F12/#REF!)+(F13/#REF!/2)<F14,(F12/#REF!)+(F13/#REF!/2),F14-F16) ->  | G17: =IF(G16+(G12/#REF!)+(G13/#REF!/2)<G14,(G12/#REF!)+(G13/#REF!/2),G14-G16) -> 
B18: Closing Accumulated Amortization | C18: =SUM(C16:C17) ->  | D18: =SUM(D16:D17) ->  | E18: =SUM(E16:E17) ->  | F18: =SUM(F16:F17) ->  | G18: =SUM(G16:G17) -> 
B20: Opening Net Fixed Assets | C20: =0 -> 0 | D20: =C21 ->  | E20: =D21 ->  | F20: =E21 ->  | G20: =F21 -> 
B21: Closing Net Fixed Assets | C21: =C14-C18 ->  | D21: =D14-D18 ->  | E21: =E14-E18 ->  | F21: =F14-F18 ->  | G21: =G14-G18 -> 
B22: Average Net Fixed Assets | C22: =(C21+C20)/2 ->  | D22: =(D21+D20)/2 ->  | E22: =(E21+E20)/2 ->  | F22: =(F21+F20)/2 ->  | G22: =(G21+G20)/2 -> 
B24: Net Fixed Assets - Computer Hardware | C24: 2006 | D24: 2007 | E24: 2008 | F24: 2009 | G24: 2010
B26: Opening Capital Investment | C26: 0 | D26: =C28 ->  | E26: =D28 ->  | F26: =E28 ->  | G26: =F28 -> 
B27: Capital Investment (3. LDC Assumptions and Data) | C27: =#REF! ->  | D27: =#REF! ->  | E27: =#REF! ->  | F27: =#REF! ->  | G27: =#REF! -> 
B28: Closing Capital Investment | C28: =SUM(C26:C27) ->  | D28: =SUM(D26:D27) ->  | E28: =SUM(E26:E27) ->  | F28: =SUM(F26:F27) ->  | G28: =SUM(G26:G27) -> 
B30: Opening Accumulated Amortization | C30: 0 | D30: =C32 ->  | E30: =D32 ->  | F30: =E32 ->  | G30: =F32 -> 
B31: ="Amortization Year 1 (" &#REF! &" Years Straight Line)" ->  | C31: =IF(C30+(C26/#REF!)+(C27/#REF!/2)<C28,(C26/#REF!)+(C27/#REF!/2),C28-C30) ->  | D31: =IF(D30+(D26/#REF!)+(D27/#REF!/2)<D28,(D26/#REF!)+(D27/#REF!/2),D28-D30) ->  | E31: =IF(E30+(E26/#REF!)+(E27/#REF!/2)<E28,(E26/#REF!)+(E27/#REF!/2),E28-E30) ->  | F31: =IF(F30+(F26/#REF!)+(F27/#REF!/2)<F28,(F26/#REF!)+(F27/#REF!/2),F28-F30) ->  | G31: =IF(G30+(G26/#REF!)+(G27/#REF!/2)<G28,(G26/#REF!)+(G27/#REF!/2),G28-G30) -> 
B32: Closing Accumulated Amortization | C32: =SUM(C30:C31) ->  | D32: =SUM(D30:D31) ->  | E32: =SUM(E30:E31) ->  | F32: =SUM(F30:F31) ->  | G32: =SUM(G30:G31) -> 
B34: Opening Net Fixed Assets | C34: =0 -> 0 | D34: =C35 ->  | E34: =D35 ->  | F34: =E35 ->  | G34: =F35 -> 
B35: Closing Net Fixed Assets | C35: =C28-C32 ->  | D35: =D28-D32 ->  | E35: =E28-E32 ->  | F35: =F28-F32 ->  | G35: =G28-G32 -> 
B36: Average Net Fixed Assets | C36: =(C35+C34)/2 ->  | D36: =(D35+D34)/2 ->  | E36: =(E35+E34)/2 ->  | F36: =(F35+F34)/2 ->  | G36: =(G35+G34)/2 -> 
B38: Net Fixed Assets - Computer Software | C38: 2006 | D38: 2007 | E38: 2008 | F38: 2009 | G38: 2010
B40: Opening Capital Investment | C40: 0 | D40: =C42 ->  | E40: =D42 ->  | F40: =E42 ->  | G40: =F42 -> 
B41: Capital Investment (3. LDC Assumptions and Data) | C41: =#REF! ->  | D41: =#REF! ->  | E41: =#REF! ->  | F41: =#REF! ->  | G41: =#REF! -> 
B42: Closing Capital Investment | C42: =SUM(C40:C41) ->  | D42: =SUM(D40:D41) ->  | E42: =SUM(E40:E41) ->  | F42: =SUM(F40:F41) ->  | G42: =SUM(G40:G41) -> 
B44: Opening Accumulated Amortization | C44: 0 | D44: =C46 ->  | E44: =D46 ->  | F44: =E46 ->  | G44: =F46 -> 
B45: ="Amortization Year 1 (" &#REF! &" Years Straight Line)" ->  | C45: =IF(C44+(C40/#REF!)+(C41/#REF!/2)<C42,(C40/#REF!)+(C41/#REF!/2),C42-C44) ->  | D45: =IF(D44+(D40/#REF!)+(D41/#REF!/2)<D42,(D40/#REF!)+(D41/#REF!/2),D42-D44) ->  | E45: =IF(E44+(E40/#REF!)+(E41/#REF!/2)<E42,(E40/#REF!)+(E41/#REF!/2),E42-E44) ->  | F45: =IF(F44+(F40/#REF!)+(F41/#REF!/2)<F42,(F40/#REF!)+(F41/#REF!/2),F42-F44) ->  | G45: =IF(G44+(G40/#REF!)+(G41/#REF!/2)<G42,(G40/#REF!)+(G41/#REF!/2),G42-G44) -> 
B46: Closing Accumulated Amortization | C46: =SUM(C44:C45) ->  | D46: =SUM(D44:D45) ->  | E46: =SUM(E44:E45) ->  | F46: =SUM(F44:F45) ->  | G46: =SUM(G44:G45) -> 
B48: Opening Net Fixed Assets | C48: =0 -> 0 | D48: =C49 ->  | E48: =D49 ->  | F48: =E49 ->  | G48: =F49 -> 
B49: Closing Net Fixed Assets | C49: =C42-C46 ->  | D49: =D42-D46 ->  | E49: =E42-E46 ->  | F49: =F42-F46 ->  | G49: =G42-G46 -> 
B50: Average Net Fixed Assets | C50: =(C49+C48)/2 ->  | D50: =(D49+D48)/2 ->  | E50: =(E49+E48)/2 ->  | F50: =(F49+F48)/2 ->  | G50: =(G49+G48)/2 -> 
B53: Net Fixed Assets - Tools & Equipment | C53: 2006 | D53: 2007 | E53: 2008 | F53: 2009 | G53: 2010
B55: Opening Capital Investment | C55: 0 | D55: =C57 ->  | E55: =D57 ->  | F55: =E57 ->  | G55: =F57 -> 
B56: Capital Investment (3. LDC Assumptions and Data) | C56: =#REF! ->  | D56: =#REF! ->  | E56: =#REF! ->  | F56: =#REF! ->  | G56: =#REF! -> 
B57: Closing Capital Investment | C57: =SUM(C55:C56) ->  | D57: =SUM(D55:D56) ->  | E57: =SUM(E55:E56) ->  | F57: =SUM(F55:F56) ->  | G57: =SUM(G55:G56) -> 
B59: Opening Accumulated Amortization | C59: 0 | D59: =C61 ->  | E59: =D61 ->  | F59: =E61 ->  | G59: =F61 -> 
B60: ="Amortization Year 1 (" &#REF! &" Years Straight Line)" ->  | C60: =IF(C59+(C55/#REF!)+(C56/#REF!/2)<C57,(C55/#REF!)+(C56/#REF!/2),C57-C59) ->  | D60: =IF(D59+(D55/#REF!)+(D56/#REF!/2)<D57,(D55/#REF!)+(D56/#REF!/2),D57-D59) ->  | E60: =IF(E59+(E55/#REF!)+(E56/#REF!/2)<E57,(E55/#REF!)+(E56/#REF!/2),E57-E59) ->  | F60: =IF(F59+(F55/#REF!)+(F56/#REF!/2)<F57,(F55/#REF!)+(F56/#REF!/2),F57-F59) ->  | G60: =IF(G59+(G55/#REF!)+(G56/#REF!/2)<G57,(G55/#REF!)+(G56/#REF!/2),G57-G59) -> 
B61: Closing Accumulated Amortization | C61: =SUM(C59:C60) ->  | D61: =SUM(D59:D60) ->  | E61: =SUM(E59:E60) ->  | F61: =SUM(F59:F60) ->  | G61: =SUM(G59:G60) -> 
B63: Opening Net Fixed Assets | C63: =0 -> 0 | D63: =C64 ->  | E63: =D64 ->  | F63: =E64 ->  | G63: =F64 -> 
B64: Closing Net Fixed Assets | C64: =C57-C61 ->  | D64: =D57-D61 ->  | E64: =E57-E61 ->  | F64: =F57-F61 ->  | G64: =G57-G61 -> 
B65: Average Net Fixed Assets | C65: =(C64+C63)/2 ->  | D65: =(D64+D63)/2 ->  | E65: =(E64+E63)/2 ->  | F65: =(F64+F63)/2 ->  | G65: =(G64+G63)/2 -> 
B67: Net Fixed Assets - Other Equipment | C67: 2006 | D67: 2007 | E67: 2008 | F67: 2009 | G67: 2010
B69: Opening Capital Investment | C69: 0 | D69: =C71 ->  | E69: =D71 ->  | F69: =E71 ->  | G69: =F71 -> 
B70: Capital Investment (3. LDC Assumptions and Data) | C70: =#REF! ->  | D70: =#REF! ->  | E70: =#REF! ->  | F70: =#REF! ->  | G70: =#REF! -> 
B71: Closing Capital Investment | C71: =SUM(C69:C70) ->  | D71: =SUM(D69:D70) ->  | E71: =SUM(E69:E70) ->  | F71: =SUM(F69:F70) ->  | G71: =SUM(G69:G70) -> 
B73: Opening Accumulated Amortization | C73: 0 | D73: =C75 ->  | E73: =D75 ->  | F73: =E75 ->  | G73: =F75 -> 
B74: ="Amortization Year 1 (" &#REF! &" Years Straight Line)" ->  | C74: =IF(C73+(C69/#REF!)+(C70/#REF!/2)<C71,(C69/#REF!)+(C70/#REF!/2),C71-C73) ->  | D74: =IF(D73+(D69/#REF!)+(D70/#REF!/2)<D71,(D69/#REF!)+(D70/#REF!/2),D71-D73) ->  | E74: =IF(E73+(E69/#REF!)+(E70/#REF!/2)<E71,(E69/#REF!)+(E70/#REF!/2),E71-E73) ->  | F74: =IF(F73+(F69/#REF!)+(F70/#REF!/2)<F71,(F69/#REF!)+(F70/#REF!/2),F71-F73) ->  | G74: =IF(G73+(G69/#REF!)+(G70/#REF!/2)<G71,(G69/#REF!)+(G70/#REF!/2),G71-G73) -> 
B75: Closing Accumulated Amortization | C75: =SUM(C73:C74) ->  | D75: =SUM(D73:D74) ->  | E75: =SUM(E73:E74) ->  | F75: =SUM(F73:F74) ->  | G75: =SUM(G73:G74) -> 
B77: Opening Net Fixed Assets | C77: =0 -> 0 | D77: =C78 ->  | E77: =D78 ->  | F77: =E78 ->  | G77: =F78 -> 
B78: Closing Net Fixed Assets | C78: =C71-C75 ->  | D78: =D71-D75 ->  | E78: =E71-E75 ->  | F78: =F71-F75 ->  | G78: =G71-G75 -> 
B79: Average Net Fixed Assets | C79: =(C78+C77)/2 ->  | D79: =(D78+D77)/2 ->  | E79: =(E78+E77)/2 ->  | F79: =(F78+F77)/2 ->  | G79: =(G78+G77)/2 -> 
B82: For PILs Calculation
B84: UCC - Smart Meters
B85: CCA Class 47 (8%) | C85: 2006 | D85: 2007 | E85: 2008 | F85: 2009 | G85: 2010
B87: Opening UCC | C87: 0 | D87: =C89-C93 ->  | E87: =D89-D93 ->  | F87: =E89-E93 ->  | G87: =F89-F93 -> 
B88: Capital Additions | C88: =C13 ->  | D88: =D13 ->  | E88: =E13 ->  | F88: =F13 ->  | G88: =G13 -> 
B89: UCC Before Half Year Rule | C89: =SUM(C87:C88) ->  | D89: =SUM(D87:D88) ->  | E89: =SUM(E87:E88) ->  | F89: =SUM(F87:F88) ->  | G89: =SUM(G87:G88) -> 
B90: Half Year Rule (1/2 Additions - Disposals) | C90: =SUM(C88:C88)/2 ->  | D90: =SUM(D88:D88)/2 ->  | E90: =SUM(E88:E88)/2 ->  | F90: =SUM(F88:F88)/2 ->  | G90: =SUM(G88:G88)/2 -> 
B91: Reduced UCC | C91: =C87+C90 ->  | D91: =D87+D90 ->  | E91: =E87+E90 ->  | F91: =F87+F90 ->  | G91: =G87+G90 -> 
B92: CCA Rate Class 47 | C92: 0.08 | D92: 0.08 | E92: 0.08 | F92: 0.08 | G92: 0.08
B93: CCA | C93: =IF((C91*C92)<C91,(C91*C92),C91) ->  | D93: =IF((D91*D92)<D91,(D91*D92),D91) ->  | E93: =IF((E91*E92)<E91,(E91*E92),E91) ->  | F93: =IF((F91*F92)<F91,(F91*F92),F91) ->  | G93: =IF((G91*G92)<G91,(G91*G92),G91) -> 
B94: Closing UCC | C94: =IF((C89-C93)<0,0,(C89-C93)) ->  | D94: =IF((D89-D93)<0,0,(D89-D93)) ->  | E94: =IF((E89-E93)<0,0,(E89-E93)) ->  | F94: =IF((F89-F93)<0,0,(F89-F93)) ->  | G94: =IF((G89-G93)<0,0,(G89-G93)) -> 
B96: UCC - Computer Equipment
B97: CCA Class 45 (45%) | C97: 2006 | D97: 2007 | E97: 2008 | F97: 2009 | G97: 2010
B99: Opening UCC | C99: 0 | D99: =C107 ->  | E99: =D107 ->  | F99: =E107 ->  | G99: =F107 -> 
B100: Capital Additions Computer Hardware | C100: =C27 ->  | D100: =D27 ->  | E100: =E27 ->  | F100: =F27 ->  | G100: =G27 -> 
B101: Capital Additions Computer Software | C101: =C41 ->  | D101: =D41 ->  | E101: =E41 ->  | F101: =F41 ->  | G101: =G41 -> 
B102: UCC Before Half Year Rule | C102: =SUM(C99:C101) ->  | D102: =SUM(D99:D101) ->  | E102: =SUM(E99:E101) ->  | F102: =SUM(F99:F101) ->  | G102: =SUM(G99:G101) -> 
B103: Half Year Rule (1/2 Additions - Disposals) | C103: =SUM(C100:C101)/2 ->  | D103: =SUM(D100:D101)/2 ->  | E103: =SUM(E100:E101)/2 ->  | F103: =SUM(F100:F101)/2 ->  | G103: =SUM(G100:G101)/2 -> 
B104: Reduced UCC | C104: =C99+C103 ->  | D104: =D99+D103 ->  | E104: =E99+E103 ->  | F104: =F99+F103 ->  | G104: =G99+G103 -> 
B105: CCA Rate Class 45 | C105: 0.45 | D105: 0.45 | E105: 0.45 | F105: 0.45 | G105: 0.45
B106: CCA | C106: =IF((C104*C105)<C104,(C104*C105),C104) ->  | D106: =IF((D104*D105)<D104,(D104*D105),D104) ->  | E106: =IF((E104*E105)<E104,(E104*E105),E104) ->  | F106: =IF((F104*F105)<F104,(F104*F105),F104) ->  | G106: =IF((G104*G105)<G104,(G104*G105),G104) -> 
B107: Closing UCC | C107: =IF((C102-C106)<0,0,(C102-C106)) ->  | D107: =IF((D102-D106)<0,0,(D102-D106)) ->  | E107: =IF((E102-E106)<0,0,(E102-E106)) ->  | F107: =IF((F102-F106)<0,0,(F102-F106)) ->  | G107: =IF((G102-G106)<0,0,(G102-G106)) -> 
B109: UCC - General Equipment
B110: CCA Class 8 (20%) | C110: 2006 | D110: 2007 | E110: 2008 | F110: 2009 | G110: 2010
B112: Opening UCC | C112: 0 | D112: =C120 ->  | E112: =D120 ->  | F112: =E120 ->  | G112: =F120 -> 
B113: Capital Additions Tools & Equipment | C113: =C56 ->  | D113: =D56 ->  | E113: =E56 ->  | F113: =F56 ->  | G113: =G56 -> 
B114: Capital Additions Other Equipment | C114: =C70 ->  | D114: =D70 ->  | E114: =E70 ->  | F114: =F70 ->  | G114: =G70 -> 
B115: UCC Before Half Year Rule | C115: =SUM(C112:C114) ->  | D115: =SUM(D112:D114) ->  | E115: =SUM(E112:E114) ->  | F115: =SUM(F112:F114) ->  | G115: =SUM(G112:G114) -> 
B116: Half Year Rule (1/2 Additions - Disposals) | C116: =SUM(C113:C114)/2 ->  | D116: =SUM(D113:D114)/2 ->  | E116: =SUM(E113:E114)/2 ->  | F116: =SUM(F113:F114)/2 ->  | G116: =SUM(G113:G114)/2 -> 
B117: Reduced UCC | C117: =C112+C116 ->  | D117: =D112+D116 ->  | E117: =E112+E116 ->  | F117: =F112+F116 ->  | G117: =G112+G116 -> 
B118: CCA Rate Class 8 | C118: 0.2 | D118: 0.2 | E118: 0.2 | F118: 0.2 | G118: 0.2
B119: CCA | C119: =IF((C117*C118)<C117,(C117*C118),C117) ->  | D119: =IF((D117*D118)<D117,(D117*D118),D117) ->  | E119: =IF((E117*E118)<E117,(E117*E118),E117) ->  | F119: =IF((F117*F118)<F117,(F117*F118),F117) ->  | G119: =IF((G117*G118)<G117,(G117*G118),G117) -> 
B120: Closing UCC | C120: =IF((C115-C119)<0,0,(C115-C119)) ->  | D120: =IF((D115-D119)<0,0,(D115-D119)) ->  | E120: =IF((E115-E119)<0,0,(E115-E119)) ->  | F120: =IF((F115-F119)<0,0,(F115-F119)) ->  | G120: =IF((G115-G119)<0,0,(G115-G119)) -> 

Sheet 10. 2007A Smart Meter Rate Calc (hidden)
B2: =#REF! -> 
B3: =#REF! -> 
B4: =#REF! -> 
B5: Sheet 10. Smart Meter Rate Calc
A8: Smart Meter Rate Calculation
B10: Average Asset Values | C10: 2007 | F10: 2008 | I10: 2009 | L10: 2010
B11: Net Fixed Assets Smart Meters | C11: ='12. 2007A SM Nt Fix Ass &UCC'!C22 ->  | F11: ='12. 2007A SM Nt Fix Ass &UCC'!D22 ->  | I11: ='12. 2007A SM Nt Fix Ass &UCC'!E22 ->  | L11: ='12. 2007A SM Nt Fix Ass &UCC'!F22 -> 
B12: Net Fixed Assets Computer Hardware | C12: ='12. 2007A SM Nt Fix Ass &UCC'!C36 ->  | F12: ='12. 2007A SM Nt Fix Ass &UCC'!D36 ->  | I12: ='12. 2007A SM Nt Fix Ass &UCC'!E36 ->  | L12: ='12. 2007A SM Nt Fix Ass &UCC'!F36 -> 
B13: Net Fixed Assets Computer Software | C13: ='12. 2007A SM Nt Fix Ass &UCC'!C50 ->  | F13: ='12. 2007A SM Nt Fix Ass &UCC'!D50 ->  | I13: ='12. 2007A SM Nt Fix Ass &UCC'!E50 ->  | L13: ='12. 2007A SM Nt Fix Ass &UCC'!F50 -> 
B14: Net Fixed Assets Tools & Equipment | C14: ='12. 2007A SM Nt Fix Ass &UCC'!C65 ->  | F14: ='12. 2007A SM Nt Fix Ass &UCC'!D65 ->  | I14: ='12. 2007A SM Nt Fix Ass &UCC'!E65 ->  | L14: ='12. 2007A SM Nt Fix Ass &UCC'!F65 -> 
B15: Net Fixed Assets Other Equipment | C15: ='12. 2007A SM Nt Fix Ass &UCC'!C79 ->  | F15: ='12. 2007A SM Nt Fix Ass &UCC'!D79 ->  | I15: ='12. 2007A SM Nt Fix Ass &UCC'!E79 ->  | L15: ='12. 2007A SM Nt Fix Ass &UCC'!F79 -> 
B16: Total Net Fixed Assets | C16: =SUM(C11:C15) ->  | D16: =C16 ->  | F16: =SUM(F11:F15) ->  | G16: =F16 ->  | I16: =SUM(I11:I15) ->  | J16: =I16 ->  | L16: =SUM(L11:L15) ->  | M16: =L16 -> 
B18: Working Capital
B19: Operation Expense | C19: =E34 ->  | F19: =H34 ->  | I19: =K34 ->  | L19: =N34 -> 
B20: ="Working Capital "&#REF!*100&" %" ->  | C20: =C19*#REF! ->  | D20: =C20 ->  | F20: =F19*#REF! ->  | G20: =F20 ->  | I20: =I19*#REF! ->  | J20: =I20 ->  | L20: =L19*#REF! ->  | M20: =L20 -> 
B22: Smart Meters included in Rate Base | D22: =SUM(D12:D20) ->  | G22: =SUM(G12:G20) ->  | J22: =SUM(J12:J20) ->  | M22: =SUM(M12:M20) -> 
B24: Return on Rate Base
B25: Deemed Debt (3. LDC Assumptions and Data) | C25: =#REF! ->  | D25: =D22*C25 ->  | F25: =#REF! ->  | G25: =G22*F25 ->  | I25: =#REF! ->  | J25: =J22*I25 ->  | L25: =#REF! ->  | M25: =M22*L25 -> 
B26: Deemed Equity (3. LDC Assumptions and Data) | C26: =#REF! ->  | D26: =D22*C26 ->  | F26: =#REF! ->  | G26: =G22*F26 ->  | I26: =#REF! ->  | J26: =J22*I26 ->  | L26: =#REF! ->  | M26: =M22*L26 -> 
D27: =SUM(D25:D26) ->  | G27: =SUM(G25:G26) ->  | J27: =SUM(J25:J26) ->  | M27: =SUM(M25:M26) -> 
B29: Weighted Debt Rate (3. LDC Assumptions and Data) | C29: =#REF! ->  | D29: =D25*C29 ->  | F29: =#REF! ->  | G29: =G25*F29 ->  | I29: =#REF! ->  | J29: =J25*I29 ->  | L29: =#REF! ->  | M29: =M25*L29 -> 
B30: Proposed ROE (3. LDC Assumptions and Data) | C30: =#REF! ->  | D30: =D26*C30 ->  | F30: =#REF! ->  | G30: =G26*F30 ->  | I30: =#REF! ->  | J30: =J26*I30 ->  | L30: =#REF! ->  | M30: =M26*L30 -> 
B31: Return on Rate Base | D31: =SUM(D29:D30) ->  | E31: =D31 ->  | G31: =SUM(G29:G30) ->  | H31: =G31 ->  | J31: =SUM(J29:J30) ->  | K31: =J31 ->  | M31: =SUM(M29:M30) ->  | N31: =M31 -> 
B33: Operating Expenses
B34: Incremental Operating Expenses (3. LDC Assumptions and Data) | E34: =#REF! ->  | H34: =#REF! ->  | K34: =#REF! ->  | N34: =#REF! -> 
B36: Amortization Expenses
B37: Amortization Expenses - Smart Meters | D37: =SUM('12. 2007A SM Nt Fix Ass &UCC'!C17:C17) ->  | G37: =SUM('12. 2007A SM Nt Fix Ass &UCC'!D17:D17) ->  | J37: =SUM('12. 2007A SM Nt Fix Ass &UCC'!E17:E17) ->  | M37: =SUM('12. 2007A SM Nt Fix Ass &UCC'!F17:F17) -> 
B38: Amortization Expenses - Computer Hardware | D38: =SUM('12. 2007A SM Nt Fix Ass &UCC'!C31:C31) ->  | G38: =SUM('12. 2007A SM Nt Fix Ass &UCC'!D31:D31) ->  | J38: =SUM('12. 2007A SM Nt Fix Ass &UCC'!E31:E31) ->  | M38: =SUM('12. 2007A SM Nt Fix Ass &UCC'!F31:F31) -> 
B39: Amortization Expenses - Computer Software | D39: =SUM('12. 2007A SM Nt Fix Ass &UCC'!C45:C45) ->  | G39: =SUM('12. 2007A SM Nt Fix Ass &UCC'!D45:D45) ->  | J39: =SUM('12. 2007A SM Nt Fix Ass &UCC'!E45:E45) ->  | M39: =SUM('12. 2007A SM Nt Fix Ass &UCC'!F45:F45) -> 
B40: Amortization Expenses - Tools & Equipment | D40: =SUM('12. 2007A SM Nt Fix Ass &UCC'!C60:C60) ->  | G40: =SUM('12. 2007A SM Nt Fix Ass &UCC'!D60:D60) ->  | J40: =SUM('12. 2007A SM Nt Fix Ass &UCC'!E60:E60) ->  | M40: =SUM('12. 2007A SM Nt Fix Ass &UCC'!F60:F60) -> 
B41: Amortization Expenses - Other Equipment | D41: =SUM('12. 2007A SM Nt Fix Ass &UCC'!C74:C74) ->  | G41: =SUM('12. 2007A SM Nt Fix Ass &UCC'!D74:D74) ->  | J41: =SUM('12. 2007A SM Nt Fix Ass &UCC'!E74:E74) ->  | M41: =SUM('12. 2007A SM Nt Fix Ass &UCC'!F74:F74) -> 
B42: Total Amortization Expenses | E42: =SUM(D37:D41) ->  | H42: =SUM(G37:G41) ->  | K42: =SUM(J37:J41) ->  | N42: =SUM(M37:M41) -> 
B44: Revenue Requirement Before PILs | E44: =SUM(E31,E42,E34) ->  | H44: =SUM(H31,H42,H34) ->  | K44: =SUM(K31,K42,K34) ->  | N44: =SUM(N31,N42,N34) -> 
B46: Calculation of Taxable Income
B47: Incremental Operating Expenses | E47: =-E34 ->  | H47: =-H34 ->  | K47: =-K34 ->  | N47: =-N34 -> 
B48: Depreciation Expenses | E48: =-E42 ->  | H48: =-H42 ->  | K48: =-K42 ->  | N48: =-N42 -> 
B49: Interest Expense | E49: =-D29 ->  | H49: =-G29 ->  | K49: =-J29 ->  | N49: =-M29 -> 
B50: Taxable Income For PILs | E50: =SUM(E44:E49) ->  | H50: =SUM(H44:H49) ->  | K50: =SUM(K44:K49) ->  | N50: =SUM(N44:N49) -> 
B52: Grossed up PILs (5. PILs) | E52: ='11. 2007A PILs'!C46 ->  | H52: ='11. 2007A PILs'!D46 ->  | K52: ='11. 2007A PILs'!E46 ->  | N52: ='11. 2007A PILs'!F46 -> 
B54: =B44 -> Revenue Requirement Before PILs | E54: =E44 ->  | H54: =H44 ->  | K54: =K44 ->  | N54: =N44 -> 
B55: Grossed up PILs (5. PILs) | E55: =E52 ->  | H55: =H52 ->  | K55: =K52 ->  | N55: =N52 -> 
B56: Revenue Requirement for Smart Meters | E56: =SUM(E54:E55) ->  | H56: =SUM(H54:H55) ->  | K56: =SUM(K54:K55) ->  | N56: =SUM(N54:N55) -> 
B58: 2007 Smart Meter Rate Adder
B59: Revenue Requirement for Smart Meters | E59: =E56 ->  | H59: =H56 ->  | K59: =K56 ->  | N59: =N56 -> 
B60: 2006 EDR Total Metered Customers (3. LDC Assumptions and Data) | E60: =#REF! ->  | H60: =#REF! ->  | K60: =#REF! ->  | N60: =#REF! -> 
B61: Annualized amount required per metered customer | E61: =IF(ISERROR(E59/E60),0,E59/E60) -> 0 | H61: =IF(ISERROR(H59/H60),0,H59/H60) -> 0 | K61: =IF(ISERROR(K59/K60),0,K59/K60) -> 0 | N61: =IF(ISERROR(N59/N60),0,N59/N60) -> 0
B62: Number of months in year | E62: 12 | H62: 12 | K62: 12 | N62: 12
B63: 2007 Smart Meter Rate Adder | E63: =E61/E62 -> 0 | H63: =H61/H62 -> 0 | K63: =K61/K62 -> 0 | N63: =N61/N62 -> 0

Sheet 11. 2007A PILs (hidden)
B2: =#REF! -> 
B3: =#REF! -> 
B4: =#REF! -> 
B5: Sheet 11. PILs
B8: PILs Calculation
C10: 2007 | D10: 2008 | E10: 2009 | F10: 2010
B11: INCOME TAX
B12: Net Income | C12: ='10. 2007A Smart Meter Rate Calc'!E50 ->  | D12: ='10. 2007A Smart Meter Rate Calc'!H50 ->  | E12: ='10. 2007A Smart Meter Rate Calc'!K50 ->  | F12: ='10. 2007A Smart Meter Rate Calc'!N50 -> 
B13: Amortization | C13: =-'10. 2007A Smart Meter Rate Calc'!E48 ->  | D13: =-'10. 2007A Smart Meter Rate Calc'!H48 ->  | E13: =-'10. 2007A Smart Meter Rate Calc'!K48 ->  | F13: =-'10. 2007A Smart Meter Rate Calc'!N48 -> 
B14: CCA - Class 47 (8%) Smart Meters | C14: =-'12. 2007A SM Nt Fix Ass &UCC'!C93 ->  | D14: =-'12. 2007A SM Nt Fix Ass &UCC'!D93 ->  | E14: =-'12. 2007A SM Nt Fix Ass &UCC'!E93 ->  | F14: =-'12. 2007A SM Nt Fix Ass &UCC'!F93 -> 
B15: CCA - Class 45 (45%) Computers | C15: =-'12. 2007A SM Nt Fix Ass &UCC'!C106 ->  | D15: =-'12. 2007A SM Nt Fix Ass &UCC'!D106 ->  | E15: =-'12. 2007A SM Nt Fix Ass &UCC'!E106 ->  | F15: =-'12. 2007A SM Nt Fix Ass &UCC'!F106 -> 
B16: CCA - Class 8 (20%) Other Equipment | C16: =-'12. 2007A SM Nt Fix Ass &UCC'!C119 ->  | D16: =-'12. 2007A SM Nt Fix Ass &UCC'!D119 ->  | E16: =-'12. 2007A SM Nt Fix Ass &UCC'!E119 ->  | F16: =-'12. 2007A SM Nt Fix Ass &UCC'!F119 -> 
B17: Change in taxable income | C17: =SUM(C12:C16) ->  | D17: =SUM(D12:D16) ->  | E17: =SUM(E12:E16) ->  | F17: =SUM(F12:F16) -> 
B18: Tax Rate (3. LDC Assumptions and Data) | C18: =#REF! ->  | D18: =#REF! ->  | E18: =#REF! ->  | F18: =#REF! -> 
B19: Income Taxes Payable | C19: =C17*C18 ->  | D19: =D17*D18 ->  | E19: =E17*E18 ->  | F19: =F17*F18 -> 
B21: ONTARIO CAPITAL TAX
B22: Smart Meters | C22: ='12. 2007A SM Nt Fix Ass &UCC'!C21 ->  | D22: ='12. 2007A SM Nt Fix Ass &UCC'!D21 ->  | E22: ='12. 2007A SM Nt Fix Ass &UCC'!E21 ->  | F22: ='12. 2007A SM Nt Fix Ass &UCC'!F21 -> 
B23: Computer Hardware | C23: ='12. 2007A SM Nt Fix Ass &UCC'!C35 ->  | D23: ='12. 2007A SM Nt Fix Ass &UCC'!D35 ->  | E23: ='12. 2007A SM Nt Fix Ass &UCC'!E35 ->  | F23: ='12. 2007A SM Nt Fix Ass &UCC'!F35 -> 
B24: Computer Software | C24: ='12. 2007A SM Nt Fix Ass &UCC'!C49 ->  | D24: ='12. 2007A SM Nt Fix Ass &UCC'!D49 ->  | E24: ='12. 2007A SM Nt Fix Ass &UCC'!E49 ->  | F24: ='12. 2007A SM Nt Fix Ass &UCC'!F49 -> 
B25: Tools & Equipment | C25: ='12. 2007A SM Nt Fix Ass &UCC'!C64 ->  | D25: ='12. 2007A SM Nt Fix Ass &UCC'!D64 ->  | E25: ='12. 2007A SM Nt Fix Ass &UCC'!E64 ->  | F25: ='12. 2007A SM Nt Fix Ass &UCC'!F64 -> 
B26: Other Equipment | C26: ='12. 2007A SM Nt Fix Ass &UCC'!C78 ->  | D26: ='12. 2007A SM Nt Fix Ass &UCC'!D78 ->  | E26: ='12. 2007A SM Nt Fix Ass &UCC'!E78 ->  | F26: ='12. 2007A SM Nt Fix Ass &UCC'!F78 -> 
B27: Rate Base | C27: =SUM(C22:C24) ->  | D27: =SUM(D22:D24) ->  | E27: =SUM(E22:E24) ->  | F27: =SUM(F22:F24) -> 
B28: Less: Exemption | C28: 0 | D28: 0 | E28: 0 | F28: 0
B29: Deemed Taxable Capital | C29: =C27-C28 ->  | D29: =D27-D28 ->  | E29: =E27-E28 ->  | F29: =F27-F28 -> 
B30: Ontario Capital Tax Rate | C30: 0.003 | D30: 0.003 | E30: 0.003 | F30: 0.003
B31: Net Amount (Taxable Capital x Rate) | C31: =C29*C30 ->  | D31: =D29*D30 ->  | E31: =E29*E30 ->  | F31: =F29*F30 -> 
B34: Gross Up
C35: PILs Payable | D35: PILs Payable | E35: PILs Payable | F35: PILs Payable
B36: Change in Income Taxes Payable | C36: =C19 ->  | D36: =D19 ->  | E36: =E19 ->  | F36: =F19 -> 
B37: Change in OCT | C37: =C31 ->  | D37: =D31 ->  | E37: =E31 ->  | F37: =F31 -> 
B38: PIL's | C38: =SUM(C36:C37) ->  | D38: =SUM(D36:D37) ->  | E38: =SUM(E36:E37) ->  | F38: =SUM(F36:F37) -> 
C40: Gross Up | D40: Gross Up | E40: Gross Up | F40: Gross Up
C41: =$C$18 ->  | D41: =$C$18 ->  | E41: =$C$18 ->  | F41: =$C$18 -> 
C43: Grossed Up PILs | D43: Grossed Up PILs | E43: Grossed Up PILs | F43: Grossed Up PILs
B44: Change in Income Taxes Payable | C44: =C36/(1-C41) ->  | D44: =D36/(1-D41) ->  | E44: =E36/(1-E41) ->  | F44: =F36/(1-F41) -> 
B45: Change in OCT | C45: =C37 ->  | D45: =D37 ->  | E45: =E37 ->  | F45: =F37 -> 
B46: PIL's | C46: =SUM(C44:C45) ->  | D46: =SUM(D44:D45) ->  | E46: =SUM(E44:E45) ->  | F46: =SUM(F44:F45) -> 

Sheet 12. 2007A SM Nt Fix Ass &UCC (hidden)
B2: =#REF! -> 
B3: =#REF! -> 
B4: =#REF! -> 
B5: Sheet 12. SM Avg Net Fixed Assets &UCC
B8: Smart Meter Average Net Fixed Assets
B10: Net Fixed Assets - Smart Meters | C10: 2007 | D10: 2008 | E10: 2009 | F10: 2010
B12: Opening Capital Investment | C12: 0 | D12: =C14 ->  | E12: =D14 ->  | F12: =E14 -> 
B13: Capital Investment (3. LDC Assumptions and Data) | C13: =#REF! ->  | D13: =#REF! ->  | E13: =#REF! ->  | F13: =#REF! -> 
B14: Closing Capital Investment | C14: =SUM(C12:C13) ->  | D14: =SUM(D12:D13) ->  | E14: =SUM(E12:E13) ->  | F14: =SUM(F12:F13) -> 
B16: Opening Accumulated Amortization | C16: 0 | D16: =C18 ->  | E16: =D18 ->  | F16: =E18 -> 
B17: ="Amortization Year 1 (" &#REF! &" Years Straight Line)" ->  | C17: =IF(C16+(C12/#REF!)+(C13/#REF!/2)<C14,(C12/#REF!)+(C13/#REF!/2),C14-C16) ->  | D17: =IF(D16+(D12/#REF!)+(D13/#REF!/2)<D14,(D12/#REF!)+(D13/#REF!/2),D14-D16) ->  | E17: =IF(E16+(E12/#REF!)+(E13/#REF!/2)<E14,(E12/#REF!)+(E13/#REF!/2),E14-E16) ->  | F17: =IF(F16+(F12/#REF!)+(F13/#REF!/2)<F14,(F12/#REF!)+(F13/#REF!/2),F14-F16) -> 
B18: Closing Accumulated Amortization | C18: =SUM(C16:C17) ->  | D18: =SUM(D16:D17) ->  | E18: =SUM(E16:E17) ->  | F18: =SUM(F16:F17) -> 
B20: Opening Net Fixed Assets | C20: =0 -> 0 | D20: =C21 ->  | E20: =D21 ->  | F20: =E21 -> 
B21: Closing Net Fixed Assets | C21: =C14-C18 ->  | D21: =D14-D18 ->  | E21: =E14-E18 ->  | F21: =F14-F18 -> 
B22: Average Net Fixed Assets | C22: =(C21+C20)/2 ->  | D22: =(D21+D20)/2 ->  | E22: =(E21+E20)/2 ->  | F22: =(F21+F20)/2 -> 
B24: Net Fixed Assets - Computer Hardware | C24: 2007 | D24: 2008 | E24: 2009 | F24: 2010
B26: Opening Capital Investment | C26: 0 | D26: =C28 ->  | E26: =D28 ->  | F26: =E28 -> 
B27: Capital Investment (3. LDC Assumptions and Data) | C27: =#REF! ->  | D27: =#REF! ->  | E27: =#REF! ->  | F27: =#REF! -> 
B28: Closing Capital Investment | C28: =SUM(C26:C27) ->  | D28: =SUM(D26:D27) ->  | E28: =SUM(E26:E27) ->  | F28: =SUM(F26:F27) -> 
B30: Opening Accumulated Amortization | C30: 0 | D30: =C32 ->  | E30: =D32 ->  | F30: =E32 -> 
B31: ="Amortization Year 1 (" &#REF! &" Years Straight Line)" ->  | C31: =IF(C30+(C26/#REF!)+(C27/#REF!/2)<C28,(C26/#REF!)+(C27/#REF!/2),C28-C30) ->  | D31: =IF(D30+(D26/#REF!)+(D27/#REF!/2)<D28,(D26/#REF!)+(D27/#REF!/2),D28-D30) ->  | E31: =IF(E30+(E26/#REF!)+(E27/#REF!/2)<E28,(E26/#REF!)+(E27/#REF!/2),E28-E30) ->  | F31: =IF(F30+(F26/#REF!)+(F27/#REF!/2)<F28,(F26/#REF!)+(F27/#REF!/2),F28-F30) -> 
B32: Closing Accumulated Amortization | C32: =SUM(C30:C31) ->  | D32: =SUM(D30:D31) ->  | E32: =SUM(E30:E31) ->  | F32: =SUM(F30:F31) -> 
B34: Opening Net Fixed Assets | C34: =0 -> 0 | D34: =C35 ->  | E34: =D35 ->  | F34: =E35 -> 
B35: Closing Net Fixed Assets | C35: =C28-C32 ->  | D35: =D28-D32 ->  | E35: =E28-E32 ->  | F35: =F28-F32 -> 
B36: Average Net Fixed Assets | C36: =(C35+C34)/2 ->  | D36: =(D35+D34)/2 ->  | E36: =(E35+E34)/2 ->  | F36: =(F35+F34)/2 -> 
B38: Net Fixed Assets - Computer Software | C38: 2007 | D38: 2008 | E38: 2009 | F38: 2010
B40: Opening Capital Investment | C40: 0 | D40: =C42 ->  | E40: =D42 ->  | F40: =E42 -> 
B41: Capital Investment (3. LDC Assumptions and Data) | C41: =#REF! ->  | D41: =#REF! ->  | E41: =#REF! ->  | F41: =#REF! -> 
B42: Closing Capital Investment | C42: =SUM(C40:C41) ->  | D42: =SUM(D40:D41) ->  | E42: =SUM(E40:E41) ->  | F42: =SUM(F40:F41) -> 
B44: Opening Accumulated Amortization | C44: 0 | D44: =C46 ->  | E44: =D46 ->  | F44: =E46 -> 
B45: ="Amortization Year 1 (" &#REF! &" Years Straight Line)" ->  | C45: =IF(C44+(C40/#REF!)+(C41/#REF!/2)<C42,(C40/#REF!)+(C41/#REF!/2),C42-C44) ->  | D45: =IF(D44+(D40/#REF!)+(D41/#REF!/2)<D42,(D40/#REF!)+(D41/#REF!/2),D42-D44) ->  | E45: =IF(E44+(E40/#REF!)+(E41/#REF!/2)<E42,(E40/#REF!)+(E41/#REF!/2),E42-E44) ->  | F45: =IF(F44+(F40/#REF!)+(F41/#REF!/2)<F42,(F40/#REF!)+(F41/#REF!/2),F42-F44) -> 
B46: Closing Accumulated Amortization | C46: =SUM(C44:C45) ->  | D46: =SUM(D44:D45) ->  | E46: =SUM(E44:E45) ->  | F46: =SUM(F44:F45) -> 
B48: Opening Net Fixed Assets | C48: =0 -> 0 | D48: =C49 ->  | E48: =D49 ->  | F48: =E49 -> 
B49: Closing Net Fixed Assets | C49: =C42-C46 ->  | D49: =D42-D46 ->  | E49: =E42-E46 ->  | F49: =F42-F46 -> 
B50: Average Net Fixed Assets | C50: =(C49+C48)/2 ->  | D50: =(D49+D48)/2 ->  | E50: =(E49+E48)/2 ->  | F50: =(F49+F48)/2 -> 
B53: Net Fixed Assets - Tools & Equipment | C53: 2007 | D53: 2008 | E53: 2009 | F53: 2010
B55: Opening Capital Investment | C55: 0 | D55: =C57 ->  | E55: =D57 ->  | F55: =E57 -> 
B56: Capital Investment (3. LDC Assumptions and Data) | C56: =#REF! ->  | D56: =#REF! ->  | E56: =#REF! ->  | F56: =#REF! -> 
B57: Closing Capital Investment | C57: =SUM(C55:C56) ->  | D57: =SUM(D55:D56) ->  | E57: =SUM(E55:E56) ->  | F57: =SUM(F55:F56) -> 
B59: Opening Accumulated Amortization | C59: 0 | D59: =C61 ->  | E59: =D61 ->  | F59: =E61 -> 
B60: ="Amortization Year 1 (" &#REF! &" Years Straight Line)" ->  | C60: =IF(C59+(C55/#REF!)+(C56/#REF!/2)<C57,(C55/#REF!)+(C56/#REF!/2),C57-C59) ->  | D60: =IF(D59+(D55/#REF!)+(D56/#REF!/2)<D57,(D55/#REF!)+(D56/#REF!/2),D57-D59) ->  | E60: =IF(E59+(E55/#REF!)+(E56/#REF!/2)<E57,(E55/#REF!)+(E56/#REF!/2),E57-E59) ->  | F60: =IF(F59+(F55/#REF!)+(F56/#REF!/2)<F57,(F55/#REF!)+(F56/#REF!/2),F57-F59) -> 
B61: Closing Accumulated Amortization | C61: =SUM(C59:C60) ->  | D61: =SUM(D59:D60) ->  | E61: =SUM(E59:E60) ->  | F61: =SUM(F59:F60) -> 
B63: Opening Net Fixed Assets | C63: =0 -> 0 | D63: =C64 ->  | E63: =D64 ->  | F63: =E64 -> 
B64: Closing Net Fixed Assets | C64: =C57-C61 ->  | D64: =D57-D61 ->  | E64: =E57-E61 ->  | F64: =F57-F61 -> 
B65: Average Net Fixed Assets | C65: =(C64+C63)/2 ->  | D65: =(D64+D63)/2 ->  | E65: =(E64+E63)/2 ->  | F65: =(F64+F63)/2 -> 
B67: Net Fixed Assets - Other Equipment | C67: 2007 | D67: 2008 | E67: 2009 | F67: 2010
B69: Opening Capital Investment | C69: 0 | D69: =C71 ->  | E69: =D71 ->  | F69: =E71 -> 
B70: Capital Investment (3. LDC Assumptions and Data) | C70: =#REF! ->  | D70: =#REF! ->  | E70: =#REF! ->  | F70: =#REF! -> 
B71: Closing Capital Investment | C71: =SUM(C69:C70) ->  | D71: =SUM(D69:D70) ->  | E71: =SUM(E69:E70) ->  | F71: =SUM(F69:F70) -> 
B73: Opening Accumulated Amortization | C73: 0 | D73: =C75 ->  | E73: =D75 ->  | F73: =E75 -> 
B74: ="Amortization Year 1 (" &#REF! &" Years Straight Line)" ->  | C74: =IF(C73+(C69/#REF!)+(C70/#REF!/2)<C71,(C69/#REF!)+(C70/#REF!/2),C71-C73) ->  | D74: =IF(D73+(D69/#REF!)+(D70/#REF!/2)<D71,(D69/#REF!)+(D70/#REF!/2),D71-D73) ->  | E74: =IF(E73+(E69/#REF!)+(E70/#REF!/2)<E71,(E69/#REF!)+(E70/#REF!/2),E71-E73) ->  | F74: =IF(F73+(F69/#REF!)+(F70/#REF!/2)<F71,(F69/#REF!)+(F70/#REF!/2),F71-F73) -> 
B75: Closing Accumulated Amortization | C75: =SUM(C73:C74) ->  | D75: =SUM(D73:D74) ->  | E75: =SUM(E73:E74) ->  | F75: =SUM(F73:F74) -> 
B77: Opening Net Fixed Assets | C77: =0 -> 0 | D77: =C78 ->  | E77: =D78 ->  | F77: =E78 -> 
B78: Closing Net Fixed Assets | C78: =C71-C75 ->  | D78: =D71-D75 ->  | E78: =E71-E75 ->  | F78: =F71-F75 -> 
B79: Average Net Fixed Assets | C79: =(C78+C77)/2 ->  | D79: =(D78+D77)/2 ->  | E79: =(E78+E77)/2 ->  | F79: =(F78+F77)/2 -> 
B82: For PILs Calculation
B84: UCC - Smart Meters
B85: CCA Class 47 (8%) | C85: 2007 | D85: 2008 | E85: 2009 | F85: 2010
B87: Opening UCC | C87: 0 | D87: =C89-C93 ->  | E87: =D89-D93 ->  | F87: =E89-E93 -> 
B88: Capital Additions | C88: =C13 ->  | D88: =D13 ->  | E88: =E13 ->  | F88: =F13 -> 
B89: UCC Before Half Year Rule | C89: =SUM(C87:C88) ->  | D89: =SUM(D87:D88) ->  | E89: =SUM(E87:E88) ->  | F89: =SUM(F87:F88) -> 
B90: Half Year Rule (1/2 Additions - Disposals) | C90: =SUM(C88:C88)/2 ->  | D90: =SUM(D88:D88)/2 ->  | E90: =SUM(E88:E88)/2 ->  | F90: =SUM(F88:F88)/2 -> 
B91: Reduced UCC | C91: =C87+C90 ->  | D91: =D87+D90 ->  | E91: =E87+E90 ->  | F91: =F87+F90 -> 
B92: CCA Rate Class 47 | C92: 0.08 | D92: 0.08 | E92: 0.08 | F92: 0.08
B93: CCA | C93: =IF((C91*C92)<C91,(C91*C92),C91) ->  | D93: =IF((D91*D92)<D91,(D91*D92),D91) ->  | E93: =IF((E91*E92)<E91,(E91*E92),E91) ->  | F93: =IF((F91*F92)<F91,(F91*F92),F91) -> 
B94: Closing UCC | C94: =IF((C89-C93)<0,0,(C89-C93)) ->  | D94: =IF((D89-D93)<0,0,(D89-D93)) ->  | E94: =IF((E89-E93)<0,0,(E89-E93)) ->  | F94: =IF((F89-F93)<0,0,(F89-F93)) -> 
B96: UCC - Computer Equipment
B97: CCA Class 45 (45%) | C97: 2007 | D97: 2008 | E97: 2009 | F97: 2010
B99: Opening UCC | C99: 0 | D99: =C107 ->  | E99: =D107 ->  | F99: =E107 -> 
B100: Capital Additions Computer Hardware | C100: =C27 ->  | D100: =D27 ->  | E100: =E27 ->  | F100: =F27 -> 
B101: Capital Additions Computer Software | C101: =C41 ->  | D101: =D41 ->  | E101: =E41 ->  | F101: =F41 -> 
B102: UCC Before Half Year Rule | C102: =SUM(C99:C101) ->  | D102: =SUM(D99:D101) ->  | E102: =SUM(E99:E101) ->  | F102: =SUM(F99:F101) -> 
B103: Half Year Rule (1/2 Additions - Disposals) | C103: =SUM(C100:C101)/2 ->  | D103: =SUM(D100:D101)/2 ->  | E103: =SUM(E100:E101)/2 ->  | F103: =SUM(F100:F101)/2 -> 
B104: Reduced UCC | C104: =C99+C103 ->  | D104: =D99+D103 ->  | E104: =E99+E103 ->  | F104: =F99+F103 -> 
B105: CCA Rate Class 45 | C105: 0.45 | D105: 0.45 | E105: 0.45 | F105: 0.45
B106: CCA | C106: =IF((C104*C105)<C104,(C104*C105),C104) ->  | D106: =IF((D104*D105)<D104,(D104*D105),D104) ->  | E106: =IF((E104*E105)<E104,(E104*E105),E104) ->  | F106: =IF((F104*F105)<F104,(F104*F105),F104) -> 
B107: Closing UCC | C107: =IF((C102-C106)<0,0,(C102-C106)) ->  | D107: =IF((D102-D106)<0,0,(D102-D106)) ->  | E107: =IF((E102-E106)<0,0,(E102-E106)) ->  | F107: =IF((F102-F106)<0,0,(F102-F106)) -> 
B109: UCC - General Equipment
B110: CCA Class 8 (20%) | C110: 2007 | D110: 2008 | E110: 2009 | F110: 2010
B112: Opening UCC | C112: 0 | D112: =C120 ->  | E112: =D120 ->  | F112: =E120 -> 
B113: Capital Additions Tools & Equipment | C113: =C56 ->  | D113: =D56 ->  | E113: =E56 ->  | F113: =F56 -> 
B114: Capital Additions Other Equipment | C114: =C70 ->  | D114: =D70 ->  | E114: =E70 ->  | F114: =F70 -> 
B115: UCC Before Half Year Rule | C115: =SUM(C112:C114) ->  | D115: =SUM(D112:D114) ->  | E115: =SUM(E112:E114) ->  | F115: =SUM(F112:F114) -> 
B116: Half Year Rule (1/2 Additions - Disposals) | C116: =SUM(C113:C114)/2 ->  | D116: =SUM(D113:D114)/2 ->  | E116: =SUM(E113:E114)/2 ->  | F116: =SUM(F113:F114)/2 -> 
B117: Reduced UCC | C117: =C112+C116 ->  | D117: =D112+D116 ->  | E117: =E112+E116 ->  | F117: =F112+F116 -> 
B118: CCA Rate Class 8 | C118: 0.2 | D118: 0.2 | E118: 0.2 | F118: 0.2
B119: CCA | C119: =IF((C117*C118)<C117,(C117*C118),C117) ->  | D119: =IF((D117*D118)<D117,(D117*D118),D117) ->  | E119: =IF((E117*E118)<E117,(E117*E118),E117) ->  | F119: =IF((F117*F118)<F117,(F117*F118),F117) -> 
B120: Closing UCC | C120: =IF((C115-C119)<0,0,(C115-C119)) ->  | D120: =IF((D115-D119)<0,0,(D115-D119)) ->  | E120: =IF((E115-E119)<0,0,(E115-E119)) ->  | F120: =IF((F115-F119)<0,0,(F115-F119)) -> 

Sheet 16. Carry Cost Required to May (hidden)
A1: Smart Meter Rate Carrying Cost Recovery Required
A2: =#REF! -> 
B3: Opening | C3: Rev Req | D3: Recovery | E3: Int. Rate | F3: Interest | G3: Closing
A4: 2006-01-01 | B4: 0 | C4: 0 | D4: 0 | E4: 0.0704 | F4: =(B4*E4)/12 -> 0 | G4: =SUM(B4:D4,F4) -> 0
A5: 2006-02-01 | B5: =G4 -> 0 | C5: 0 | D5: 0 | E5: 0.0704 | F5: 0 | G5: 0
A6: 2006-03-01 | B6: 0 | C6: 0 | D6: 0 | E6: 0.0704 | F6: 0 | G6: 0
A7: 2006-04-01 | B7: 0 | C7: 0 | D7: 0 | E7: 0.0414 | F7: 0 | G7: 0
A8: 2006-05-01 | B8: 0 | C8: 0 | D8: 0 | E8: 0.0414 | F8: 0 | G8: 0
A9: 2006-06-01 | B9: 0 | C9: 0 | D9: 0 | E9: 0.0414 | F9: 0 | G9: 0
A10: 2006-07-01 | B10: 0 | C10: 0 | D10: 0 | E10: 0.0459 | F10: 0 | G10: 0
A11: 2006-08-01 | B11: 0 | C11: 0 | D11: 0 | E11: 0.0459 | F11: 0 | G11: 0
A12: 2006-09-01 | B12: 0 | C12: 0 | D12: 0 | E12: 0.0459 | F12: 0 | G12: 0
A13: 2006-10-01 | B13: 0 | C13: 0 | D13: 0 | E13: 0.0459 | F13: 0 | G13: 0
A14: 2006-11-01 | B14: 0 | C14: 0 | D14: 0 | E14: 0.0459 | F14: 0 | G14: 0
A15: 2006-12-01 | B15: 0 | C15: 0 | D15: 0 | E15: 0.0459 | F15: 0 | G15: 0
A16: 2007-01-01 | B16: 0 | C16: 0 | D16: 0 | E16: 0.0459 | F16: 0 | G16: 0
A17: 2007-02-01 | B17: 0 | C17: 0 | D17: 0 | E17: 0.0459 | F17: 0 | G17: 0
A18: 2007-03-01 | B18: 0 | C18: 0 | D18: 0 | E18: 0.0459 | F18: 0 | G18: 0
A19: 2007-04-01 | B19: 0 | C19: 0 | D19: 0 | E19: 0.0459 | F19: 0 | G19: 0
A20: 2007-05-01 | B20: 0 | C20: 0 | D20: 0 | E20: 0.0459 | F20: 0 | G20: 0
A21: 2007-06-01 | B21: 0 | C21: 0 | D21: 0 | E21: 0.0459 | F21: 0 | G21: 0
A22: 2007-07-01 | B22: 0 | C22: 0 | D22: 0 | E22: 0.0459 | F22: 0 | G22: 0
A23: 2007-08-01 | B23: 0 | C23: 0 | D23: 0 | E23: 0.0459 | F23: 0 | G23: 0
A24: 2007-09-01 | B24: 0 | C24: 0 | D24: 0 | E24: 0.0459 | F24: 0 | G24: 0
A25: 2007-10-01 | B25: 0 | C25: 0 | D25: 0 | E25: 0.0459 | F25: 0 | G25: 0
A26: 2007-11-01 | B26: 0 | C26: 0 | D26: 0 | E26: 0.0459 | F26: 0 | G26: 0
A27: 2007-12-01 | B27: 0 | C27: 0 | D27: 0 | E27: 0.0459 | F27: 0 | G27: 0
A28: 2008-01-01 | B28: 0 | C28: ='4. Smart Meter Rev & Adder'!I47/12 ->  | D28: 0 | E28: 0.0459 | F28: 0
A29: 2008-02-01 | C29: =C28 ->  | D29: 0 | E29: 0.0459
A30: 2008-03-01 | C30: =C29 ->  | D30: 0 | E30: 0.0459
A31: 2008-04-01 | C31: =C30 ->  | D31: 0 | E31: 0.0459
A32: Carrying Cost Recovery Required on Permanent Adder | F32: =SUM(F4:F31) -> 
B34: Monthly | C34: Months | D34: Perm Rev Req
B35: =C28 ->  | C35: 12 | D35: =B35*C35 -> 

Sheet 1. Cost of Service_parameters
D4: MIST Meters True-up Model
B9: Sheet 1: Parameters and Rates
G11: 2016 | H11: 2017 | I11: 2018 | J11: 2019 | K11: 2020 | L11: 2021 | M11: 2022 | N11: 2023 | O11: 2024 | P11: 2025 | Q11: 2026
B12: Cost of Capital
C13: Capital Structure
D14: Deemed Short-term Debt Capitalization | G14: 0.04 | H14: =G14 -> 0.04 | I14: =H14 -> 0.04 | J14: 0.04 | K14: 0.04 | L14: 0.04 | M14: 0.04 | N14: 0.04 | O14: 0.04 | P14: 0.04 | Q14: 0.04
D15: Deemed Long-term Debt Capitalization | G15: =60%-G14 -> 0.56 | H15: =G15-(H14-G14) -> 0.56 | I15: =H15-(I14-H14) -> 0.56 | J15: 0.56 | K15: 0.56 | L15: 0.56 | M15: 0.56 | N15: =M15-(N14-M14) -> 0.56 | O15: =N15-(O14-N14) -> 0.56 | P15: 0.56 | Q15: 0.56
D16: Deemed Equity Capitalization | G16: =100%-G15-G17-G14 -> 0.4 | H16: =100%-H15-H17-H14 -> 0.4 | I16: =100%-I15-I17-I14 -> 0.4 | J16: 0.4 | K16: 0.4 | L16: 0.4 | M16: 0.4 | N16: =100%-N15-N17-N14 -> 0.4 | O16: =100%-O15-O17-O14 -> 0.4 | P16: 0.4 | Q16: =100%-Q15-Q17-Q14 -> 0.4
D17: Preferred Shares
C18: Total | G18: =SUM(G14:G17) -> 1 | H18: =SUM(H14:H17) -> 1 | I18: =SUM(I14:I17) -> 1 | J18: 1 | K18: 1 | L18: 1 | M18: 1 | N18: 1 | O18: 1 | P18: =SUM(P14:P17) -> 1 | Q18: 1
C20: Cost of Capital Parameters
D21: Deemed Short-term Debt Rate | G21: 0.0176 | H21: =+G21 -> 0.0176 | I21: =+H21 -> 0.0176 | J21: 0.0176 | K21: 0.0176 | L21: 0.0176 | M21: 0.0176 | N21: 0.0176 | O21: 0.0176 | P21: 0.0176 | Q21: 0.0176
D22: Long-term Debt Rate (actual/embedded/deemed)1 | G22: 0.03882503715 | H22: =+G22 -> 0.03882503715 | I22: =+H22 -> 0.03882503715 | J22: 0.03882503715 | K22: 0.03882503715 | L22: 0.03882503715 | M22: 0.03882503715 | N22: 0.03882503715 | O22: 0.03882503715 | P22: 0.03882503715 | Q22: 0.03882503715
D23: Target Return on Equity (ROE) | G23: 0.0878 | H23: =+G23 -> 0.0878 | I23: =+H23 -> 0.0878 | J23: 0.0878 | K23: 0.0878 | L23: 0.0878 | M23: 0.0878 | N23: 0.0878 | O23: 0.0878 | P23: 0.0878 | Q23: 0.0878
D24: Return on Preferred Shares
C25: WACC | G25: =SUMPRODUCT(G14:G17,G21:G24) -> 0.0575660208 | H25: =SUMPRODUCT(H14:H17,H21:H24) -> 0.0575660208 | I25: =SUMPRODUCT(I14:I17,I21:I24) -> 0.0575660208 | J25: 0.0575660208 | K25: 0.0575660208 | L25: 0.0575660208 | M25: 0.0575660208 | N25: 0.0575660208 | O25: 0.0575660208 | P25: =SUMPRODUCT(P14:P17,P21:P24) -> 0.0575660208 | Q25: 0.0575660208
B27: Working Capital Allowance
C28: Working Capital Allowance Rate | G28: 0.075 | H28: =G28 -> 0.075 | I28: =H28 -> 0.075 | J28: 0.075 | K28: 0.075 | L28: 0.075 | M28: 0.075 | N28: 0.075 | O28: 0.075 | P28: 0.075 | Q28: 0.075
C29: (% of the sum of Cost of Power + controllable expenses)
B31: Taxes/PILs
C32: Aggregate Corporate Income Tax Rate | G32: 0.265 | H32: 0.265 | I32: 0.265 | J32: 0.265 | K32: 0.265 | L32: 0.265 | M32: 0.265 | N32: 0.265 | O32: 0.265 | P32: 0.265 | Q32: 0.265
C33: Capital Tax (until July 1st, 2010) | G33: 0 | H33: 0 | I33: 0 | J33: 0 | K33: 0 | L33: 0 | M33: 0 | N33: 0 | O33: 0 | P33: 0 | Q33: 0
B35: Depreciation Rates | E35: Account
B36: (expressed as expected useful life in years)
D38: Year | E38: 1822 | G38: 20 | H38: 20 | I38: 20 | J38: 20 | K38: 20 | L38: 20 | M38: 20 | N38: 20 | O38: 20 | P38: 20 | Q38: 20
C39: - rate (%) | D39: Rate (%) | G39: =IF(G38=0,0,1/G38) -> 0.05 | H39: =IF(H38=0,0,1/H38) -> 0.05 | I39: =IF(I38=0,0,1/I38) -> 0.05 | J39: 0.05 | K39: 0.05 | L39: 0.05 | M39: 0.05 | N39: 0.05 | O39: 0.05 | P39: =IF(P38=0,0,1/P38) -> 0.05 | Q39: 0.05
D41: Year | E41: 1845 | G41: 45 | H41: 45 | I41: 45 | J41: 45 | K41: 45 | L41: 45 | M41: 45 | N41: 45 | O41: 45 | P41: 45 | Q41: 45
C42: - rate (%) | D42: Rate (%) | G42: =IF(G41=0,0,1/G41) -> 0.02222222222 | H42: =IF(H41=0,0,1/H41) -> 0.02222222222 | I42: =IF(I41=0,0,1/I41) -> 0.02222222222 | J42: 0.02222222222 | K42: 0.02222222222 | L42: 0.02222222222 | M42: 0.02222222222 | N42: 0.02222222222 | O42: 0.02222222222 | P42: =IF(P41=0,0,1/P41) -> 0.02222222222 | Q42: 0.02222222222
D44: Year | E44: 1930 | G44: 7 | H44: 7 | I44: 7 | J44: 7 | K44: 7 | L44: 7 | M44: 7 | N44: 7 | O44: 7 | P44: 7 | Q44: 7
C45: - rate (%) | D45: Rate (%) | G45: =IF(G44=0,0,1/G44) -> 0.1428571429 | H45: =IF(H44=0,0,1/H44) -> 0.1428571429 | I45: =IF(I44=0,0,1/I44) -> 0.1428571429 | J45: 0.1428571429 | K45: 0.1428571429 | L45: 0.1428571429 | M45: 0.1428571429 | N45: 0.1428571429 | O45: 0.1428571429 | P45: =IF(P44=0,0,1/P44) -> 0.1428571429 | Q45: 0.1428571429
D47: Year | E47: 1835 | G47: 40 | H47: 40 | I47: 40 | J47: 40 | K47: 40 | L47: 40 | M47: 40 | N47: 40 | O47: 40 | P47: 40 | Q47: 40
C48: - rate (%) | D48: Rate (%) | G48: =IF(G47=0,0,1/G47) -> 0.025 | H48: =IF(H47=0,0,1/H47) -> 0.025 | I48: =IF(I47=0,0,1/I47) -> 0.025 | J48: 0.025 | K48: 0.025 | L48: 0.025 | M48: 0.025 | N48: 0.025 | O48: 0.025 | P48: =IF(P47=0,0,1/P47) -> 0.025 | Q48: 0.025
D50: Year | E50: 1921 | G50: 4 | H50: 4 | I50: 4 | J50: 4 | K50: 4 | L50: 4 | M50: 4 | N50: 4 | O50: 4 | P50: 4 | Q50: 4
C51: - rate (%) | D51: Rate (%) | G51: =IF(G50=0,0,1/G50) -> 0.25 | H51: =IF(H50=0,0,1/H50) -> 0.25 | I51: =IF(I50=0,0,1/I50) -> 0.25 | J51: 0.25 | K51: 0.25 | L51: 0.25 | M51: 0.25 | N51: 0.25 | O51: 0.25 | P51: =IF(P50=0,0,1/P50) -> 0.25 | Q51: 0.25
D53: Year | E53: 1935 | G53: 10 | H53: 10 | I53: 10 | J53: 10 | K53: 10 | L53: 10 | M53: 10 | N53: 10 | O53: 10 | P53: 10 | Q53: 10
C54: - rate (%) | D54: Rate (%) | G54: =IF(G53=0,0,1/G53) -> 0.1 | H54: =IF(H53=0,0,1/H53) -> 0.1 | I54: =IF(I53=0,0,1/I53) -> 0.1 | J54: 0.1 | K54: 0.1 | L54: 0.1 | M54: 0.1 | N54: 0.1 | O54: 0.1 | P54: =IF(P53=0,0,1/P53) -> 0.1 | Q54: 0.1
D56: Year | E56: 1926 | G56: 3 | H56: 3 | I56: 3 | J56: 3 | K56: 3 | L56: 3 | M56: 3 | N56: 3 | O56: 3 | P56: 3 | Q56: 3
C57: - rate (%) | D57: Rate (%) | G57: =IF(G56=0,0,1/G56) -> 0.3333333333 | H57: =IF(H56=0,0,1/H56) -> 0.3333333333 | I57: =IF(I56=0,0,1/I56) -> 0.3333333333 | J57: 0.3333333333 | K57: 0.3333333333 | L57: 0.3333333333 | M57: 0.3333333333 | N57: 0.3333333333 | O57: 0.3333333333 | P57: =IF(P56=0,0,1/P56) -> 0.3333333333 | Q57: 0.3333333333
D59: Year | E59: 1860 | G59: 15 | H59: 15 | I59: 15 | J59: 15 | K59: 15 | L59: 15 | M59: 15 | N59: 15 | O59: 15 | P59: 15 | Q59: 15
C60: - rate (%) | D60: Rate (%) | G60: =IF(G59=0,0,1/G59) -> 0.06666666667 | H60: =IF(H59=0,0,1/H59) -> 0.06666666667 | I60: =IF(I59=0,0,1/I59) -> 0.06666666667 | J60: 0.06666666667 | K60: 0.06666666667 | L60: 0.06666666667 | M60: 0.06666666667 | N60: 0.06666666667 | O60: 0.06666666667 | P60: =IF(P59=0,0,1/P59) -> 0.06666666667 | Q60: 0.06666666667
D62: Year | E62: 1924 | G62: 6 | H62: 6 | I62: 6 | J62: 6 | K62: 6 | L62: 6 | M62: 6 | N62: 6 | O62: 6 | P62: 6 | Q62: 6
C63: - rate (%) | D63: Rate (%) | G63: =IF(G62=0,0,1/G62) -> 0.1666666667 | H63: =IF(H62=0,0,1/H62) -> 0.1666666667 | I63: =IF(I62=0,0,1/I62) -> 0.1666666667 | J63: 0.1666666667 | K63: 0.1666666667 | L63: 0.1666666667 | M63: 0.1666666667 | N63: 0.1666666667 | O63: 0.1666666667 | P63: =IF(P62=0,0,1/P62) -> 0.1666666667 | Q63: 0.1666666667
D65: Year | E65: 1850 | G65: 30 | H65: 30 | I65: 30 | J65: 30 | K65: 30 | L65: 30 | M65: 30 | N65: 30 | O65: 30 | P65: 30 | Q65: 30
C66: - rate (%) | D66: Rate (%) | G66: =IF(G65=0,0,1/G65) -> 0.03333333333 | H66: =IF(H65=0,0,1/H65) -> 0.03333333333 | I66: =IF(I65=0,0,1/I65) -> 0.03333333333 | J66: 0.03333333333 | K66: 0.03333333333 | L66: 0.03333333333 | M66: 0.03333333333 | N66: 0.03333333333 | O66: 0.03333333333 | P66: =IF(P65=0,0,1/P65) -> 0.03333333333 | Q66: 0.03333333333
D68: Year | E68: 1982 | G68: 10 | H68: 10 | I68: 10 | J68: 10 | K68: 10 | L68: 10 | M68: 10 | N68: 10 | O68: 10 | P68: 10 | Q68: 10
C69: - rate (%) | D69: Rate (%) | G69: =IF(G68=0,0,1/G68) -> 0.1 | H69: =IF(H68=0,0,1/H68) -> 0.1 | I69: =IF(I68=0,0,1/I68) -> 0.1 | J69: 0.1 | K69: 0.1 | L69: 0.1 | M69: 0.1 | N69: 0.1 | O69: 0.1 | P69: =IF(P68=0,0,1/P68) -> 0.1 | Q69: 0.1
D71: Year | E71: 1955 | G71: 6 | H71: 6 | I71: 6 | J71: 6 | K71: 6 | L71: 6 | M71: 6 | N71: 6 | O71: 6 | P71: 6 | Q71: 6
C72: - rate (%) | D72: Rate (%) | G72: =IF(G71=0,0,1/G71) -> 0.1666666667 | H72: =IF(H71=0,0,1/H71) -> 0.1666666667 | I72: =IF(I71=0,0,1/I71) -> 0.1666666667 | J72: 0.1666666667 | K72: 0.1666666667 | L72: 0.1666666667 | M72: 0.1666666667 | N72: 0.1666666667 | O72: 0.1666666667 | P72: =IF(P71=0,0,1/P71) -> 0.1666666667 | Q72: 0.1666666667
B74: CCA Rates
D75: CCA Class | E75: 1822 | G75: 47 | H75: 47 | I75: 47 | J75: 47 | K75: 47 | L75: 47 | M75: 47 | N75: 47 | O75: 47 | P75: 47 | Q75: 47
D76: CCA Rate | G76: 0.08 | H76: 0.08 | I76: 0.08 | J76: 0.08 | K76: 0.08 | L76: 0.08 | M76: 0.08 | N76: 0.08 | O76: 0.08 | P76: 0.08 | Q76: 0.08
D78: CCA Class | E78: 1845 | G78: 47 | H78: 47 | I78: 47 | J78: 47 | K78: 47 | L78: 47 | M78: 47 | N78: 47 | O78: 47 | P78: 47 | Q78: 47
D79: CCA Rate | G79: 0.08 | H79: 0.08 | I79: 0.08 | J79: 0.08 | K79: 0.08 | L79: 0.08 | M79: 0.08 | N79: 0.08 | O79: 0.08 | P79: 0.08 | Q79: 0.08
D81: CCA Class | E81: 1930 | G81: 10 | H81: 10 | I81: 10 | J81: 10 | K81: 10 | L81: 10 | M81: 10 | N81: 10 | O81: 10 | P81: 10 | Q81: 10
D82: CCA Rate | G82: 0.3 | H82: 0.3 | I82: 0.3 | J82: 0.3 | K82: 0.3 | L82: 0.3 | M82: 0.3 | N82: 0.3 | O82: 0.3 | P82: 0.3 | Q82: 0.3
D84: CCA Class | E84: 1835 | G84: 47 | H84: 47 | I84: 47 | J84: 47 | K84: 47 | L84: 47 | M84: 47 | N84: 47 | O84: 47 | P84: 47 | Q84: 47
D85: CCA Rate | G85: 0.08 | H85: 0.08 | I85: 0.08 | J85: 0.08 | K85: 0.08 | L85: 0.08 | M85: 0.08 | N85: 0.08 | O85: 0.08 | P85: 0.08 | Q85: 0.08
D87: CCA Class | E87: 1921 | G87: 50 | H87: 50 | I87: 50 | J87: 50 | K87: 50 | L87: 50 | M87: 50 | N87: 50 | O87: 50 | P87: 50 | Q87: 50
D88: CCA Rate | G88: 0.55 | H88: 0.55 | I88: 0.55 | J88: 0.55 | K88: 0.55 | L88: 0.55 | M88: 0.55 | N88: 0.55 | O88: 0.55 | P88: 0.55 | Q88: 0.55
D90: CCA Class | E90: 1935 | G90: 8 | H90: 8 | I90: 8 | J90: 8 | K90: 8 | L90: 8 | M90: 8 | N90: 8 | O90: 8 | P90: 8 | Q90: 8
D91: CCA Rate | G91: 0.2 | H91: 0.2 | I91: 0.2 | J91: 0.2 | K91: 0.2 | L91: 0.2 | M91: 0.2 | N91: 0.2 | O91: 0.2 | P91: 0.2 | Q91: 0.2
D93: CCA Class | E93: 1926 | G93: 12 | H93: 12 | I93: 12 | J93: 12 | K93: 12 | L93: 12 | M93: 12 | N93: 12 | O93: 12 | P93: 12 | Q93: 12
D94: CCA Rate | G94: 1 | H94: 1 | I94: 1 | J94: 1 | K94: 1 | L94: 1 | M94: 1 | N94: 1 | O94: 1 | P94: 1 | Q94: 1
D96: CCA Class | E96: 1860 | G96: 47 | H96: 47 | I96: 47 | J96: 47 | K96: 47 | L96: 47 | M96: 47 | N96: 47 | O96: 47 | P96: 47 | Q96: 47
D97: CCA Rate | G97: 0.08 | H97: 0.08 | I97: 0.08 | J97: 0.08 | K97: 0.08 | L97: 0.08 | M97: 0.08 | N97: 0.08 | O97: 0.08 | P97: 0.08 | Q97: 0.08
D99: CCA Class | E99: 1924 | G99: 50 | H99: 50 | I99: 50 | J99: 50 | K99: 50 | L99: 50 | M99: 50 | N99: 50 | O99: 50 | P99: 50 | Q99: 50
D100: CCA Rate | G100: 0.55 | H100: 0.55 | I100: 0.55 | J100: 0.55 | K100: 0.55 | L100: 0.55 | M100: 0.55 | N100: 0.55 | O100: 0.55 | P100: 0.55 | Q100: 0.55
D102: CCA Class | E102: 1850 | G102: 47 | H102: 47 | I102: 47 | J102: 47 | K102: 47 | L102: 47 | M102: 47 | N102: 47 | O102: 47 | P102: 47 | Q102: 47
D103: CCA Rate | G103: 0.08 | H103: 0.08 | I103: 0.08 | J103: 0.08 | K103: 0.08 | L103: 0.08 | M103: 0.08 | N103: 0.08 | O103: 0.08 | P103: 0.08 | Q103: 0.08
D105: CCA Class | E105: 1982 | G105: 8 | H105: 8 | I105: 8 | J105: 8 | K105: 8 | L105: 8 | M105: 8 | N105: 8 | O105: 8 | P105: 8 | Q105: 8
D106: CCA Rate | G106: 0.2 | H106: 0.2 | I106: 0.2 | J106: 0.2 | K106: 0.2 | L106: 0.2 | M106: 0.2 | N106: 0.2 | O106: 0.2 | P106: 0.2 | Q106: 0.2
D108: CCA Class | E108: 1955 | G108: 8 | H108: 8 | I108: 8 | J108: 8 | K108: 8 | L108: 8 | M108: 8 | N108: 8 | O108: 8 | P108: 8 | Q108: 8
D109: CCA Rate | G109: 0.2 | H109: 0.2 | I109: 0.2 | J109: 0.2 | K109: 0.2 | L109: 0.2 | M109: 0.2 | N109: 0.2 | O109: 0.2 | P109: 0.2 | Q109: 0.2
B112: Assumptions
B113: 1 | C113: Fiscal calendar year (January 1 to December 31) used.
B114: 3 | C114: Amortization is done on a striaght line basis and no "half-year" rule applied.

Sheet BRZ BU (hidden)
B1: Brampton Rate Zone
B2: GL 135175 - Meter Cost Deferral (USofA 1557)
D3: 2018-01-01 | E3: 2018-02-01 | F3: 2018-03-01 | G3: 2018-04-01 | H3: 2018-05-01 | I3: 2018-06-01 | J3: 2018-07-01 | K3: 2018-08-01 | L3: 2018-09-01 | M3: 2018-10-02 | N3: 2018-11-02 | O3: 2018-12-02 | P3: CE2018 | Q3: 2019-01-02 | R3: 2019-02-02 | S3: 2019-03-02 | T3: 2019-04-02 | U3: 2019-05-02 | V3: 2019-06-02 | W3: 2019-07-02 | X3: 2019-08-02 | Y3: 2019-09-02 | Z3: 2019-10-02 | AA3: 2019-11-02 | AB3: 2019-12-02 | AC3: CE19 | AD3: 2020-01-02 | AE3: 2020-02-02 | AF3: 2020-03-02 | AG3: 2020-04-02 | AH3: 2020-05-02 | AI3: 2020-06-02 | AJ3: 2020-07-02 | AK3: 2020-08-02 | AL3: 2020-09-02 | AM3: 2020-10-02 | AN3: 2020-11-02 | AO3: 2020-12-02 | AP3: CE20 | AQ3: 2021-01-02 | AR3: 2021-02-02 | AS3: 2021-03-02 | AT3: 2021-04-02 | AU3: 2021-05-02 | AV3: 2021-06-02 | AW3: 2021-07-02 | AX3: 2021-08-02 | AY3: 2021-09-02 | AZ3: 2021-10-02 | BA3: 2021-11-02 | BB3: 2021-12-02 | BC3: CE21 | BD3: 2022-01-01 | BE3: 2022-02-02 | BF3: 2022-03-06 | BG3: 2022-04-07 | BH3: 2022-05-09 | BI3: 2022-06-10 | BJ3: 2022-07-12 | BK3: 2022-08-13 | BL3: 2022-09-14 | BM3: 2022-10-16 | BN3: 2022-11-17 | BO3: 2022-12-19 | BP3: CE22 | BQ3: 2023-01-01 | BR3: 2023-02-02 | BS3: 2023-03-06 | BT3: 2023-04-07 | BU3: 2023-05-09 | BV3: 2023-06-10 | BW3: 2023-07-12 | BX3: 2023-08-13 | BY3: 2023-09-14 | BZ3: 2023-10-16 | CA3: 2023-11-17 | CB3: 2023-12-19 | CC3: CE23 | CD3: 2024-01-01 | CE3: 2024-02-02 | CF3: 2024-03-06 | CG3: 2024-04-07 | CH3: 2024-05-09 | CI3: 2024-06-10 | CJ3: 2024-07-12 | CK3: 2024-08-13 | CL3: 2024-09-14 | CM3: 2024-10-16 | CN3: 2024-11-17 | CO3: 2024-12-19 | CP3: CE24
D4: 201801 | E4: 201802 | F4: 201803 | G4: 201804 | H4: 201805 | I4: 201806 | J4: 201807 | K4: 201808 | L4: 201809 | M4: 201810 | N4: 201811 | O4: 201812
A5: Currently in GL | C5: Beginning Balance | D5: 0 | E5: 0 | F5: 0 | G5: 14876.93 | H5: 74911.34 | I5: 191193.76 | J5: 306159.57 | K5: 445699.47 | L5: 589576.52 | M5: 731752.59 | N5: 872227.68 | O5: 1022047.3 | Q5: 655895.17 | R5: 654460.16 | S5: 652611.98 | T5: 651647.38 | U5: 640558.57 | V5: 638710.39 | W5: 636862.21 | X5: 635014.04 | Y5: 633165.86 | Z5: 631317.68 | AA5: 629469.5 | AB5: 627621.32 | AD5: 625773.15 | AE5: 623924.97 | AF5: 622076.79 | AG5: 620228.61 | AH5: 618380.44 | AI5: 616532.26 | AJ5: 614684.08 | AK5: 612835.9 | AL5: 610987.72 | AM5: 609139.55 | AN5: 607291.37 | AO5: 605443.19 | AQ5: 1067350.5 | AR5: 1066009.37 | AS5: 1064646.29 | AT5: 1063282.34 | AU5: 1061938.58 | AV5: 1060593.94 | AW5: 1059248.42 | AX5: 1057901.91 | AY5: 1056554.64 | AZ5: 1055206.49 | BA5: 1288838.09 | BB5: 1287599.79 | BD5: 1286360.62 | BE5: 1285197.46 | BF5: 1283956.57 | BG5: 1282714.8 | BH5: 1355698.23 | BI5: 1377558.85 | BJ5: 1390491.24 | BK5: 1394145.87 | BL5: 1430198.96 | BM5: 1457867.41 | BN5: 1476113.84 | BO5: 1595050.41 | BQ5: 1646622.86 | BR5: 1667679.86 | BS5: 1672248.27 | BT5: 1524066.51 | BU5: 1528324.84 | BV5: 1532593.9 | BW5: 1536836.97 | BX5: 1550065.31 | BY5: 1557607.86 | BZ5: 1563641.02 | CA5: 1569018.32 | CB5: 1573909.3 | CD5: 1578791.83 | CE5: 1583498.95 | CF5: 1588363.81 | CG5: 1593220.21 | CH5: 1598068.16 | CI5: 1602907.65 | CJ5: 1607738.69 | CK5: 1612208.9 | CL5: 1616671.1 | CM5: 1621125.29 | CN5: 1624603.11 | CO5: 1624603.11
B6: GL,current | C6: Capital incremental
A7: 103.135175 | B7: 103.135175 | C7: New Capital , legacy AS400 | D7: 0 | E7: 0 | F7: 0 | G7: 0 | H7: 0 | I7: 0 | J7: 0 | K7: 0 | L7: 0 | M7: 0 | N7: 0 | O7: 507923.77 | P7: 507923.77 | Q7: 413.17 | S7: 883.57 | T7: -9240.63 | AC7: 499979.88 | AP7: 499979.88 | BC7: 499979.88 | BP7: 499979.88 | CC7: 499979.88 | CP7: 499979.88
A8: 103.135175 | B8: 103.135175 | C8: W.00631448 - COST OF NEW METER COST AND ASS | AO8: 269981.54 | AP8: 269981.54 | AZ8: 226694.42 | BC8: 496675.96 | BD8: 76.89 | BE8: 0 | BF8: 0 | BG8: 73748.07 | BH8: 22564.14 | BI8: 13618.3 | BJ8: 2974.46 | BK8: 35370.84 | BL8: 26924.75 | BM8: 15454.42 | BN8: 116100.68 | BO8: 48368.1 | BP8: 851876.61 | BQ8: 16546.52 | BR8: 0 | BS8: -152742.89 | BT8: 0 | BU8: 18.4 | BV8: 0 | BW8: 8992.94 | BX8: 3277.5 | BY8: 1762.18 | BZ8: 480.06 | CA8: 0 | CB8: 0 | CC8: 730211.32 | CD8: -166.95 | CE8: 0 | CF8: 0 | CG8: 0 | CH8: 0 | CI8: 0 | CJ8: 0 | CK8: 0 | CL8: 0 | CM8: 0 | CN8: 0 | CO8: 0 | CP8: 730044.37
A9: 103.135175 | B9: 103.135175 | C9: W.00631449 - O/T WORK MAPPED TO THE DEFERRA | AO9: 193773.95 | AP9: 193773.95 | BC9: 193773.95 | BP9: 193773.95 | CC9: 193773.95 | CP9: 193773.95
B10: 103.135175.DEPNCCT | C10: New meters depreciation | AZ10: 40352.51 | BA10: 92439.65 | BB10: 6613.5 | BC10: 139405.66 | BD10: 6613.93 | BE10: 6613.93 | BF10: 6613.93 | BG10: 14134.23 | BH10: 7023.64 | BI10: 7178.26 | BJ10: 3388.8 | BK10: 7241.18 | BL10: 7437.68 | BM10: 7587.26 | BN10: 7673.12 | BO10: 8318.12 | BP10: 229229.74 | BQ10: 8654.48 | BR10: 8678.76 | BS10: 8601.24 | BT10: 7830.19 | BU10: 7830.19 | BV10: 7830.29 | BW10: 7830.29 | BX10: 7880.25 | BY10: 7898.46 | BZ10: 7908.25 | CA10: 7910.92 | CB10: 7910.92 | CC10: 325993.98 | CD10: 7909.99 | CE10: 7909.99 | CF10: 7909.99 | CG10: 7909.99 | CH10: 7909.99 | CI10: 7909.99 | CJ10: 7909.99 | CK10: 7909.99 | CL10: 7909.99 | CM10: 7909.99 | CN10: 0 | CO10: 0 | CP10: 405093.88
B11: 103.135175.DEPN | C11: New meters accum depr | AZ11: -40352.51 | BA11: -92439.65 | BB11: -6613.5 | BC11: -139405.66 | BD11: -6613.93 | BE11: -6613.93 | BF11: -6613.93 | BG11: -14134.23 | BH11: -7023.64 | BI11: -7178.26 | BJ11: -3388.8 | BK11: -7241.18 | BL11: -7437.68 | BM11: -7587.26 | BN11: -7673.12 | BO11: -8318.12 | BP11: -229229.74 | BQ11: -8654.48 | BR11: -8678.76 | BS11: -8601.24 | BT11: -7830.19 | BU11: -7830.19 | BV11: -7830.29 | BW11: -7830.29 | BX11: -7880.25 | BY11: -7898.46 | BZ11: -7908.25 | CA11: -7910.92 | CB11: -7910.92 | CC11: -325993.98 | CD11: -7909.99 | CE11: -7909.99 | CF11: -7909.99 | CG11: -7909.99 | CH11: -7909.99 | CI11: -7909.99 | CJ11: -7909.99 | CK11: -7909.99 | CL11: -7909.99 | CM11: -7909.99 | CN11: 0 | CO11: 0 | CP11: -405093.88
C12: Total Capital | O12: 507923.77 | P12: 507923.77 | Q12: 508336.94 | R12: 508336.94 | S12: 509220.51 | T12: 499979.88 | U12: 499979.88 | V12: 499979.88 | W12: 499979.88 | X12: 499979.88 | Y12: 499979.88 | Z12: 499979.88 | AA12: 499979.88 | AB12: 499979.88 | AC12: 499979.88 | AD12: 0 | AE12: 0 | AF12: 0 | AG12: 0 | AH12: 0 | AI12: 0 | AJ12: 0 | AK12: 0 | AL12: 0 | AM12: 0 | AN12: 0 | AO12: 463755.49 | AP12: 963735.37 | AQ12: 0 | AR12: 0 | AS12: 0 | AT12: 0 | AU12: 0 | AV12: 0 | AW12: 0 | AX12: 0 | AY12: 0 | AZ12: 226694.42 | BA12: 0 | BB12: 0 | BC12: 1190429.79 | BD12: 76.89 | BE12: 0 | BF12: 0 | BG12: 73748.07 | BH12: 22564.14 | BI12: 13618.3 | BJ12: 2974.46 | BK12: 35370.84 | BL12: 26924.75 | BM12: 15454.42 | BN12: 116100.68 | BO12: 48368.1 | BP12: 1545630.44 | BQ12: 16546.52 | BR12: 0 | BS12: -152742.89 | BT12: 0 | BU12: 18.4 | BV12: 0 | BW12: 8992.94 | BX12: 3277.5 | BY12: 1762.18 | BZ12: 480.06 | CA12: 0 | CB12: 0 | CC12: 1423965.15 | CD12: -166.95 | CE12: 0 | CF12: 0 | CG12: 0 | CH12: 0 | CI12: 0 | CJ12: 0 | CK12: 0 | CL12: 0 | CM12: 0 | CN12: 0 | CO12: 0 | CP12: 1423798.2
C14: Stranded Meters
A15: 103.135175 | B15: 103.135175.NBVDISP | C15: Stranded Meters , NBV | D15: 0 | E15: 0 | F15: 15367.6 | G15: 47349.14 | H15: 60148.7 | J15: 28066.13 | K15: 6553.35 | N15: 12665.16 | P15: 170150.08 | AC15: 170150.08 | AP15: 170150.08 | BC15: 170150.08 | BP15: 170150.08 | CC15: 170150.08 | CP15: 170150.08
A16: 103.135175,103.135157.NBVDISP | B16: 103.135175.NBVDISP | C16: Depreciation Disposal | D16: 0 | E16: 0 | F16: -490.67 | G16: -2191.66 | H16: -3900.69 | I16: -1316.61 | J16: -3492.04 | K16: -2216.2 | L16: -1700.98 | M16: -1700.98 | N16: -3320.63 | O16: -1848.22 | P16: -22178.68 | Q16: -1848.18 | R16: -1848.18 | S16: -1848.17 | T16: -1848.18 | U16: -1848.18 | V16: -1848.18 | W16: -1848.17 | X16: -1848.18 | Y16: -1848.18 | Z16: -1848.18 | AA16: -1848.18 | AB16: -1848.17 | AC16: -44356.81 | AD16: -1848.18 | AE16: -1848.18 | AF16: -1848.18 | AG16: -1848.17 | AH16: -1848.18 | AI16: -1848.18 | AJ16: -1848.18 | AK16: -1848.18 | AL16: -1848.17 | AM16: -1848.18 | AN16: -1848.18 | AO16: -1848.18 | AP16: -66534.95 | AQ16: -1848.12 | AR16: -1848.12 | AS16: -1848.12 | AT16: -1848.12 | AU16: -1848.12 | AV16: -1848.12 | AW16: -1848.23 | AX16: -1848.12 | AY16: -1848.12 | AZ16: 6438.09 | BA16: -1848.12 | BB16: -1848.12 | BC16: -80426.29 | BD16: -1848.12 | BE16: -1848.12 | BF16: -1848.12 | BG16: -1848.12 | BH16: -1848.12 | BI16: -1848.12 | BJ16: -1848.12 | BK16: -1848.12 | BL16: -1848.12 | BM16: -1848.12 | BN16: -1848.12 | BO16: -1848.12 | BP16: -102603.73 | BQ16: -1848.13 | BR16: -1848.13 | BS16: -1848.13 | BT16: -1848.13 | BU16: -1848.13 | BV16: -1848.13 | BW16: -1848.13 | BX16: -1848.13 | BY16: -1848.13 | BZ16: -1848.13 | CA16: -1848.13 | CB16: -1848.13 | CC16: -124781.29 | CD16: -1848.13 | CE16: -1848.13 | CF16: -1848.13 | CG16: -1848.13 | CH16: -1848.13 | CI16: -1848.13 | CJ16: -1848.13 | CK16: -1848.13 | CL16: -1848.13 | CM16: -1848.13 | CN16: 0 | CO16: 0 | CP16: -143262.59
A17: need? Nicole to confirm | CC17: 0
C18: Total Stranded meters NBV | D18: 0 | E18: 0 | F18: 14876.93 | G18: 60034.41 | H18: 116282.42 | I18: 114965.81 | J18: 139539.9 | K18: 143877.05 | L18: 142176.07 | M18: 140475.09 | N18: 149819.62 | O18: 147971.4 | P18: 147971.4 | Q18: -1848.18 | R18: -3696.36 | S18: -5544.53 | T18: -7392.71 | U18: -9240.89 | V18: -11089.07 | W18: -12937.24 | X18: -14785.42 | Y18: -16633.6 | Z18: -18481.78 | AA18: -20329.96 | AB18: -22178.13 | AC18: 125793.27 | AD18: -1848.18 | AE18: -1848.18 | AF18: -1848.18 | AG18: -1848.17 | AH18: -1848.18 | AI18: -1848.18 | AJ18: -1848.18 | AK18: -1848.18 | AL18: -1848.17 | AM18: -1848.18 | AN18: -1848.18 | AO18: -1848.18 | AP18: 103615.13 | AQ18: -1848.12 | AR18: -1848.12 | AS18: -1848.12 | AT18: -1848.12 | AU18: -1848.12 | AV18: -1848.12 | AW18: -1848.23 | AX18: -1848.12 | AY18: -1848.12 | AZ18: 6438.09 | BA18: -1848.12 | BB18: -1848.12 | BC18: 89723.79 | BD18: -1848.12 | BE18: -1848.12 | BF18: -1848.12 | BG18: -1848.12 | BH18: -1848.12 | BI18: -1848.12 | BJ18: -1848.12 | BK18: -1848.12 | BL18: -1848.12 | BM18: -1848.12 | BN18: -1848.12 | BO18: -1848.12 | BP18: 67546.35 | BQ18: -1848.13 | BR18: -1848.13 | BS18: -1848.13 | BT18: -1848.13 | BU18: -1848.13 | BV18: -1848.13 | BW18: -1848.13 | BX18: -1848.13 | BY18: -1848.13 | BZ18: -1848.13 | CA18: -1848.13 | CB18: -1848.13 | CC18: 45368.79 | CD18: -1848.13 | CE18: -1848.13 | CF18: -1848.13 | CG18: -1848.13 | CH18: -1848.13 | CI18: -1848.13 | CJ18: -1848.13 | CK18: -1848.13 | CL18: -1848.13 | CM18: -1848.13 | CN18: 0 | CO18: 0 | CP18: 26887.49
A19: 103.135175.CARRYCHG | B19: 103.135175.CARRYCHG | C19: Carrying Charges | AQ19: 506.99 | AR19: 485.04 | AS19: 484.17 | AT19: 504.36 | AU19: 503.48 | AV19: 502.6 | AW19: 501.72 | AX19: 500.85 | AY19: 499.97 | AZ19: 499.09 | BA19: 609.82 | BB19: 608.95 | BC19: 6207.04 | BD19: 608.07 | BE19: 607.23 | BF19: 606.35 | BG19: 1083.48 | BH19: 1144.6 | BI19: 1162.21 | BJ19: 2528.29 | BK19: 2530.37 | BL19: 2591.82 | BM19: 4640.13 | BN19: 4684.01 | BO19: 5052.47 | BP19: 33446.07 | BQ19: 6358.61 | BR19: 6416.54 | BS19: 6409.26 | BT19: 6106.46 | BU19: 6098.79 | BV19: 6091.2 | BW19: 6083.53 | BX19: 6113.18 | BY19: 6119.11 | BZ19: 6745.37 | CA19: 6739.11 | CB19: 6730.66 | CC19: 109457.89 | CD19: 6722.2 | CE19: 6712.99 | CF19: 6704.53 | CG19: 6696.08 | CH19: 6687.62 | CI19: 6679.17 | CJ19: 6318.34 | CK19: 6310.33 | CL19: 6302.32 | CM19: 5325.95 | CN19: 0 | CO19: 0 | CP19: 173917.42
C21: Closing Balance | D21: 0 | E21: 0 | F21: 14876.93 | G21: 74911.34 | H21: 191193.76 | I21: 306159.57 | J21: 445699.47 | K21: 589576.52 | L21: 731752.59 | M21: 872227.68 | N21: 1022047.3 | O21: 1677942.47 | P21: 655895.17 | Q21: 654460.16 | R21: 652611.98 | S21: 651647.38 | T21: 640558.57 | U21: 638710.39 | V21: 636862.21 | W21: 635014.04 | X21: 633165.86 | Y21: 631317.68 | Z21: 629469.5 | AA21: 627621.32 | AB21: 625773.15 | AC21: 625773.15 | AD21: 623924.97 | AE21: 622076.79 | AF21: 620228.61 | AG21: 618380.44 | AH21: 616532.26 | AI21: 614684.08 | AJ21: 612835.9 | AK21: 610987.72 | AL21: 609139.55 | AM21: 607291.37 | AN21: 605443.19 | AO21: 1067350.5 | AP21: 1067350.5 | AQ21: 1066009.37 | AR21: 1064646.29 | AS21: 1063282.34 | AT21: 1061938.58 | AU21: 1060593.94 | AV21: 1059248.42 | AW21: 1057901.91 | AX21: 1056554.64 | AY21: 1055206.49 | AZ21: 1288838.09 | BA21: 1287599.79 | BB21: 1286360.62 | BC21: 1286360.62 | BD21: 1285197.46 | BE21: 1283956.57 | BF21: 1282714.8 | BG21: 1355698.23 | BH21: 1377558.85 | BI21: 1390491.24 | BJ21: 1394145.87 | BK21: 1430198.96 | BL21: 1457867.41 | BM21: 1476113.84 | BN21: 1595050.41 | BO21: 1646622.86 | BP21: 1646622.86 | BQ21: 1667679.86 | BR21: 1672248.27 | BS21: 1524066.51 | BT21: 1528324.84 | BU21: 1532593.9 | BV21: 1536836.97 | BW21: 1550065.31 | BX21: 1557607.86 | BY21: 1563641.02 | BZ21: 1569018.32 | CA21: 1573909.3 | CB21: 1578791.83 | CC21: 1578791.83 | CD21: 1583498.95 | CE21: 1588363.81 | CF21: 1593220.21 | CG21: 1598068.16 | CH21: 1602907.65 | CI21: 1607738.69 | CJ21: 1612208.9 | CK21: 1616671.1 | CL21: 1621125.29 | CM21: 1624603.11 | CN21: 1624603.11 | CO21: 1624603.11 | CP21: 1624603.11
B23: Subsidiary | C23: Account Description | AQ23: Period 1 Actual 2021 | AR23: Period 2 Actual 2021 | AS23: Period 3 Actual 2021 | AT23: Period 4 Actual 2021 | AU23: Period 5 Actual 2021 | AV23: Period 6 Actual 2021 | AW23: Period 7 Actual 2021 | AX23: Period 8 Actual 2021 | AY23: Period 9 Actual 2021 | AZ23: Period 10 Actual 2021 | BA23: Period 11 Actual 2021 | BB23: Period 12 Actual 2021 | BC23: Cumulative 12 Actual 2021 | BD23: Period 1 Actual 2022 | BE23: Period 2 Actual 2022 | BF23: Period 3 Actual 2022 | BG23: Period 4 Actual 2022 | BH23: Period 5 Actual 2022 | BI23: Period 6 Actual 2022 | BJ23: Period 7 Actual 2022 | BK23: Period 8 Actual 2022 | BL23: Period 9 Actual 2022 | BM23: Period 10 Actual 2022 | BN23: Period 11 Actual 2022 | BO23: Period 12 Actual 2022 | BP23: Cumulative 12 Actual 2022 | BQ23: Period 1 Actual 2023 | BR23: Period 2 Actual 2023 | BS23: Period 3 Actual 2023 | BT23: Period 4 Actual 2023 | BU23: Period 5 Actual 2023 | BV23: Period 6 Actual 2023 | BW23: Period 7 Actual 2023 | BX23: Period 8 Actual 2023 | BY23: Period 9 Actual 2023 | BZ23: Period 10 Actual 2023 | CA23: Period 11 Actual 2023 | CB23: Period 12 Actual 2023 | CC23: Cumulative 12 Actual 2023 | CD23: Period 1 Actual 2024 | CE23: Period 2 Actual 2024 | CF23: Period 3 Actual 2024 | CG23: Period 4 Actual 2024 | CH23: Period 5 Actual 2024 | CI23: Period 6 Actual 2024 | CJ23: Period 7 Actual 2024 | CK23: Period 8 Actual 2024 | CL23: Period 9 Actual 2024 | CM23: Period 10 Actual 2024 | CN23: Period 11 Actual 2024 | CO23: Period 12 Actual 2024 | CP23: Cumulative 12 Actual 2024
C24: Meter Cost Deferral | AQ24: -46204.44 | AR24: -1848.18 | AS24: 42508.15 | AT24: -1848.12 | AU24: -1848.12 | AV24: -1848.12 | AW24: -1848.12 | AX24: -1848.12 | AY24: -1848.12 | AZ24: 139712.48 | BA24: 0 | BB24: 0 | BC24: 1190429.79 | BD24: 76.89 | BE24: 0 | BF24: 0 | BG24: 73748.07 | BH24: 22564.14 | BI24: 13618.3 | BJ24: 2974.46 | BK24: 35370.84 | BL24: 26924.75 | BM24: 15454.42 | BN24: 116100.68 | BO24: 48368.1 | BP24: 1545630.44 | BQ24: 16546.52 | BR24: 0 | BS24: -152742.89 | BT24: 0 | BU24: 18.4 | BV24: 0 | BW24: 8992.94 | BX24: 3277.5 | BY24: 1762.18 | BZ24: 480.06 | CA24: 0 | CB24: 0 | CC24: 1423965.15 | CD24: -166.95 | CE24: 0 | CF24: 0 | CG24: 0 | CH24: 0 | CI24: 0 | CJ24: 0 | CK24: 0 | CL24: 0 | CM24: 0 | CP24: 1423798.2
B25: CARRYCHG | C25: Meter Cost Deferral CarrygChge | AQ25: 506.99 | AR25: 485.04 | AS25: 484.17 | AT25: 504.36 | AU25: 503.48 | AV25: 502.6 | AW25: 501.72 | AX25: 500.85 | AY25: 499.97 | AZ25: 499.09 | BA25: 609.82 | BB25: 608.95 | BC25: 6207.04 | BD25: 608.07 | BE25: 607.23 | BF25: 606.35 | BG25: 1083.48 | BH25: 1144.6 | BI25: 1162.21 | BJ25: 2528.29 | BK25: 2530.37 | BL25: 2591.82 | BM25: 4640.13 | BN25: 4684.01 | BO25: 5052.47 | BP25: 33446.07 | BQ25: 6358.61 | BR25: 6416.54 | BS25: 6409.26 | BT25: 6106.46 | BU25: 6098.79 | BV25: 6091.2 | BW25: 6083.53 | BX25: 6113.18 | BY25: 6119.11 | BZ25: 6745.37 | CA25: 6739.11 | CB25: 6730.66 | CC25: 109457.89 | CD25: 6722.2 | CE25: 6712.99 | CF25: 6704.53 | CG25: 6696.08 | CH25: 6687.62 | CI25: 6679.17 | CJ25: 6318.34 | CK25: 6310.33 | CL25: 6302.32 | CM25: 5325.95 | CP25: 173917.42
B26: DEPN | C26: Meter Cost Deferral Accum Depr | AQ26: 0 | AR26: 0 | AS26: 0 | AT26: 0 | AU26: 0 | AV26: 0 | AW26: 0 | AX26: 0 | AY26: 0 | AZ26: -40352.51 | BA26: -92439.65 | BB26: -6613.5 | BC26: -139405.66 | BD26: -6613.93 | BE26: -6613.93 | BF26: -6613.93 | BG26: -14134.23 | BH26: -7023.64 | BI26: -7178.26 | BJ26: -3388.8 | BK26: -7241.18 | BL26: -7437.68 | BM26: -7587.26 | BN26: -7673.12 | BO26: -8318.12 | BP26: -229229.74 | BQ26: -8654.48 | BR26: -8678.76 | BS26: -8601.24 | BT26: -7830.19 | BU26: -7830.19 | BV26: -7830.29 | BW26: -7830.29 | BX26: -7880.25 | BY26: -7898.46 | BZ26: -7908.25 | CA26: -7910.92 | CB26: -7910.92 | CC26: -325993.98 | CD26: -7909.99 | CE26: -7909.99 | CF26: -7909.99 | CG26: -7909.99 | CH26: -7909.99 | CI26: -7909.99 | CJ26: -7909.99 | CK26: -7909.99 | CL26: -7909.99 | CM26: -7909.99 | CP26: -405093.88
B27: DEPNCCT | C27: Meter Cost Deferral Accum Depr | AQ27: 0 | AR27: 0 | AS27: 0 | AT27: 0 | AU27: 0 | AV27: 0 | AW27: 0 | AX27: 0 | AY27: 0 | AZ27: 40352.51 | BA27: 92439.65 | BB27: 6613.5 | BC27: 139405.66 | BD27: 6613.93 | BE27: 6613.93 | BF27: 6613.93 | BG27: 14134.23 | BH27: 7023.64 | BI27: 7178.26 | BJ27: 3388.8 | BK27: 7241.18 | BL27: 7437.68 | BM27: 7587.26 | BN27: 7673.12 | BO27: 8318.12 | BP27: 229229.74 | BQ27: 8654.48 | BR27: 8678.76 | BS27: 8601.24 | BT27: 7830.19 | BU27: 7830.19 | BV27: 7830.29 | BW27: 7830.29 | BX27: 7880.25 | BY27: 7898.46 | BZ27: 7908.25 | CA27: 7910.92 | CB27: 7910.92 | CC27: 325993.98 | CD27: 7909.99 | CE27: 7909.99 | CF27: 7909.99 | CG27: 7909.99 | CH27: 7909.99 | CI27: 7909.99 | CJ27: 7909.99 | CK27: 7909.99 | CL27: 7909.99 | CM27: 7909.99 | CP27: 405093.88
B28: NBVDISP | C28: Meter Cost Deferral NBV scrapp | AQ28: 0 | AR28: 0 | AS28: 0 | AT28: 0 | AU28: 0 | AV28: 0 | AW28: 0 | AX28: 0 | AY28: 0 | AZ28: 93420.03 | BA28: -1848.12 | BB28: -1848.12 | BC28: 89723.79 | BD28: -1848.12 | BE28: -1848.12 | BF28: -1848.12 | BG28: -1848.12 | BH28: -1848.12 | BI28: -1848.12 | BJ28: -1848.12 | BK28: -1848.12 | BL28: -1848.12 | BM28: -1848.12 | BN28: -1848.12 | BO28: -1848.12 | BP28: 67546.35 | BQ28: -1848.13 | BR28: -1848.13 | BS28: -1848.13 | BT28: -1848.13 | BU28: -1848.13 | BV28: -1848.13 | BW28: -1848.13 | BX28: -1848.13 | BY28: -1848.13 | BZ28: -1848.13 | CA28: -1848.13 | CB28: -1848.13 | CC28: 45368.79 | CD28: -1848.13 | CE28: -1848.13 | CF28: -1848.13 | CG28: -1848.13 | CH28: -1848.13 | CI28: -1848.13 | CJ28: -1848.13 | CK28: -1848.13 | CL28: -1848.13 | CM28: -1848.13 | CP28: 26887.49
AQ29: -45697.45 | AR29: -1363.14 | AS29: 42992.32 | AT29: -1343.76 | AU29: -1344.64 | AV29: -1345.52 | AW29: -1346.4 | AX29: -1347.27 | AY29: -1348.15 | AZ29: 233631.6 | BA29: -1238.3 | BB29: -1239.17 | BC29: 1286360.62 | BD29: -1163.16 | BE29: -1240.89 | BF29: -1241.77 | BG29: 72983.43 | BH29: 21860.62 | BI29: 12932.39 | BJ29: 3654.63 | BK29: 36053.09 | BL29: 27668.45 | BM29: 18246.43 | BN29: 118936.57 | BO29: 51572.45 | BP29: 1646622.86 | BQ29: 21057 | BR29: 4568.41 | BS29: -148181.76 | BT29: 4258.33 | BU29: 4269.06 | BV29: 4243.07 | BW29: 13228.34 | BX29: 7542.55 | BY29: 6033.16 | BZ29: 5377.3 | CA29: 4890.98 | CB29: 4882.53 | CC29: 1578791.83 | CD29: 4707.12 | CE29: 4864.86 | CF29: 4856.4 | CG29: 4847.95 | CH29: 4839.49 | CI29: 4831.04 | CJ29: 4470.21 | CK29: 4462.2 | CL29: 4454.19 | CM29: 3477.82 | CN29: 0 | CO29: 0 | CP29: 1624603.11
BD30: 0 | BE30: 0 | BF30: 0 | BG30: 0 | BH30: 0 | BI30: 0 | BJ30: 0 | BK30: 0 | BL30: 0 | BM30: 0 | BN30: 0 | BO30: 0 | BP30: 0 | BQ30: 0 | BR30: 0 | BS30: 0 | BT30: 0 | BU30: 0 | BV30: 0 | BW30: 0 | BX30: 0 | BY30: 0 | BZ30: 0 | CA30: 0 | CB30: 0 | CC30: 0 | CD30: 0 | CE30: 0 | CF30: 0 | CG30: 0 | CH30: 0 | CI30: 0 | CJ30: 0 | CK30: 0 | CL30: 0 | CM30: 0 | CN30: 0 | CO30: 0 | CP30: 0

Sheet 2. MIST Meters Assets_Rate Base
D4: MIST Meters True-up Model
B9: Sheet 2: 1557 - Net Book Value
E10: 2016 | F10: 2017 | G10: 2018 | H10: 2019 | I10: 2020 | J10: 2021 | K10: 2022 | L10: 2023 | M10: 2024 | N10: 2025 | O10: 2026
B11: Net Fixed Assets - 1860
C13: Gross Book Value
D14: Opening Balance | E14: 0 | F14: =E17 -> 1985917.65 | G14: =F17 -> 2026921.02 | H14: 3693737.07 | I14: 3705805.15 | J14: 5954476.56 | K14: 7936900.74 | L14: 9013159.62 | M14: 9037747.74 | N14: 9037747.74 | O14: 9037747.74
D15: Capital Additions during year | E15: 1985917.65 | F15: 41003.37 | G15: 1666816.05 | H15: 12068.08 | I15: 2248671.41 | J15: 1982424.18 | K15: 1076258.88 | L15: 24588.12 | M15: 0 | N15: 0 | O15: 0
D16: Retirements/Removals (if applicable) | F16: 0 | H16: 0 | J16: 0 | K16: 0 | L16: 0 | M16: 0 | N16: 0 | O16: 0
D17: Closing Balance | E17: =E14+E15-E16 -> 1985917.65 | F17: =F14+F15-F16 -> 2026921.02 | G17: =G14+G15-G16 -> 3693737.07 | H17: 3705805.15 | I17: 5954476.56 | J17: 7936900.74 | K17: 9013159.62 | L17: 9037747.74 | M17: 9037747.74 | N17: =N14+N15-N16 -> 9037747.74 | O17: 9037747.74
C19: Accumulated Depreciation
D20: Opening Balance | E20: 0 | F20: =E23 -> 0 | G20: =F23 -> -170040.85 | H20: -332691.76 | I20: -443699.62 | J20: -556890.05 | K20: -757495.97 | L20: -1082340.5 | M20: =L23 -> -1434739.51 | N20: =M23 -> -1787692.17 | O20: -2140644.83
D21: Amortization expense during year | E21: 0 | F21: -170040.85 | G21: -162650.91 | H21: -111007.86 | I21: -113190.43 | J21: -200605.92 | K21: -324844.53 | L21: -352399.01 | M21: -352952.66 | N21: -352952.66 | O21: -352952.66
D22: Retirements/Removals (if applicable)
D23: Closing Balance | E23: =E20+E21-E22 -> 0 | F23: =F20+F21-F22 -> -170040.85 | G23: =G20+G21-G22 -> -332691.76 | H23: =H20+H21-H22 -> -443699.62 | I23: =I20+I21-I22 -> -556890.05 | J23: =J20+J21-J22 -> -757495.97 | K23: =K20+K21-K22 -> -1082340.5 | L23: =L20+L21-L22 -> -1434739.51 | M23: =M20+M21-M22 -> -1787692.17 | N23: -2140644.83 | O23: =O20+O21-O22 -> -2493597.49
C25: Net Book Value
D26: Opening Balance | E26: =E14+E20 -> 0 | F26: =E27 -> 1985917.65 | G26: =F27 -> 1856880.17 | H26: 3361045.31 | I26: 3262105.53 | J26: 5397586.51 | K26: 7179404.77 | L26: 7930819.12 | M26: 7603008.23 | N26: 7250055.57 | O26: 6897102.91
D27: Closing Balance | E27: =E17+E23 -> 1985917.65 | F27: =F17+F23 -> 1856880.17 | G27: =G17+G23 -> 3361045.31 | H27: 3262105.53 | I27: 5397586.51 | J27: 7179404.77 | K27: 7930819.12 | L27: 7603008.23 | M27: 7250055.57 | N27: =N17+N23 -> 6897102.91 | O27: 6544150.25
D28: Net Fixed Assets (NFA) | E28: =SUM(E26:E27)/2 -> 992958.825 | F28: =AVERAGE(F26:F27) -> 1921398.91 | G28: =AVERAGE(G26:G27) -> 2608962.74 | H28: 3311575.42 | I28: 4329846.02 | J28: 6288495.64 | K28: 7555111.945 | L28: 7766913.675 | M28: 7426531.9 | N28: =AVERAGE(N26:N27) -> 7073579.24 | O28: =AVERAGE(O26:O27) -> 6720626.58
B30: Net Fixed Assets - 1845
C32: Gross Book Value
D33: Opening Balance | F33: =E36 -> 0 | G33: =F36 -> 0 | H33: 0 | I33: 0 | J33: 0 | K33: 0 | L33: 0 | M33: 0 | N33: 0 | O33: 0
D34: Capital Additions during year (from ICM Costs)
D35: Retirements/Removals (if applicable)
D36: Closing Balance | E36: =E33+E34-E35 -> 0 | F36: =F33+F34-F35 -> 0 | G36: =G33+G34-G35 -> 0 | H36: 0 | I36: 0 | J36: 0 | K36: 0 | L36: 0 | M36: 0 | N36: =N33+N34-N35 -> 0 | O36: 0
C38: Accumulated Depreciation
D39: Opening Balance | F39: =E42 -> 0 | G39: =F42 -> 0 | H39: 0 | I39: 0 | J39: 0 | K39: 0 | L39: 0 | M39: 0 | N39: 0 | O39: 0
D40: Amortization expense during year | E40: =-E34/'1. Cost of Service_parameters'!G41/2 -> 0 | F40: =-F33/'1. Cost of Service_parameters'!G41-'2. MIST Meters Assets_Rate Base'!F34/'1. Cost of Service_parameters'!G41/2 -> 0 | G40: =-G33/'1. Cost of Service_parameters'!H41-'2. MIST Meters Assets_Rate Base'!G34/'1. Cost of Service_parameters'!H41/2 -> 0 | H40: =-H33/'1. Cost of Service_parameters'!I41-'2. MIST Meters Assets_Rate Base'!H34/'1. Cost of Service_parameters'!I41/2 -> 0 | I40: =-I33/'1. Cost of Service_parameters'!J41-'2. MIST Meters Assets_Rate Base'!I34/'1. Cost of Service_parameters'!J41/2 -> 0 | J40: =-J33/'1. Cost of Service_parameters'!K41-'2. MIST Meters Assets_Rate Base'!J34/'1. Cost of Service_parameters'!K41/2 -> 0 | K40: =-K33/'1. Cost of Service_parameters'!L41-'2. MIST Meters Assets_Rate Base'!K34/'1. Cost of Service_parameters'!L41/2 -> 0 | L40: =-L33/'1. Cost of Service_parameters'!M41-'2. MIST Meters Assets_Rate Base'!L34/'1. Cost of Service_parameters'!M41/2 -> 0 | M40: =-M33/'1. Cost of Service_parameters'!N41-'2. MIST Meters Assets_Rate Base'!M34/'1. Cost of Service_parameters'!N41/2 -> 0 | N40: =-N33/'1. Cost of Service_parameters'!O41-'2. MIST Meters Assets_Rate Base'!N34/'1. Cost of Service_parameters'!O41/2 -> 0 | O40: =-O33/'1. Cost of Service_parameters'!P41-'2. MIST Meters Assets_Rate Base'!O34/'1. Cost of Service_parameters'!P41/2 -> 0
D41: Retirements/Removals (if applicable)
D42: Closing Balance | E42: =E39+E40-E41 -> 0 | F42: =F39+F40-F41 -> 0 | G42: =G39+G40-G41 -> 0 | H42: 0 | I42: 0 | J42: 0 | K42: 0 | L42: 0 | M42: 0 | N42: =N39+N40-N41 -> 0 | O42: 0
C44: Net Book Value
D45: Opening Balance | E45: =E33+E39 -> 0 | F45: =E46 -> 0 | G45: =F46 -> 0 | H45: 0 | I45: 0 | J45: 0 | K45: 0 | L45: 0 | M45: 0 | N45: 0 | O45: 0
D46: Closing Balance | E46: =E36+E42 -> 0 | F46: =F36+F42 -> 0 | G46: =G36+G42 -> 0 | H46: 0 | I46: 0 | J46: 0 | K46: 0 | L46: 0 | M46: 0 | N46: =N36+N42 -> 0 | O46: 0
D47: Net Fixed Assets (NFA) | E47: =AVERAGE(E45:E46) -> 0 | F47: =AVERAGE(F45:F46) -> 0 | G47: =AVERAGE(G45:G46) -> 0 | H47: 0 | I47: 0 | J47: 0 | K47: 0 | L47: 0 | M47: 0 | N47: =AVERAGE(N45:N46) -> 0 | O47: 0
B49: Net Fixed Assets - 1930
C51: Gross Book Value
D52: Opening Balance | F52: =E55 -> 0 | G52: =F55 -> 0 | H52: 0 | I52: 0 | J52: 0 | K52: 0 | L52: 0 | M52: 0 | N52: 0 | O52: 0
D53: Capital Additions during year (from ICM Costs) | F53: 0
D54: Retirements/Removals (if applicable)
D55: Closing Balance | E55: =E52+E53-E54 -> 0 | F55: =F52+F53-F54 -> 0 | G55: =G52+G53-G54 -> 0 | H55: 0 | I55: 0 | J55: 0 | K55: 0 | L55: 0 | M55: 0 | N55: =N52+N53-N54 -> 0 | O55: 0
C57: Accumulated Depreciation
D58: Opening Balance | F58: =E61 -> 0 | G58: =F61 -> 0 | H58: 0 | I58: 0 | J58: 0 | K58: 0 | L58: 0 | M58: 0 | N58: 0 | O58: 0
D59: Amortization expense during year | E59: =-E53/'1. Cost of Service_parameters'!G44/2 -> 0 | F59: =-F52/'1. Cost of Service_parameters'!G44 -> 0 | G59: =-G52/'1. Cost of Service_parameters'!H44 -> 0 | H59: =-H52/'1. Cost of Service_parameters'!I44 -> 0 | I59: =-I52/'1. Cost of Service_parameters'!J44 -> 0 | J59: =-J52/'1. Cost of Service_parameters'!K44 -> 0 | K59: =-K52/'1. Cost of Service_parameters'!L44 -> 0 | L59: =-L52/'1. Cost of Service_parameters'!M44 -> 0 | M59: =-M52/'1. Cost of Service_parameters'!N44 -> 0 | N59: =-N52/'1. Cost of Service_parameters'!O44 -> 0 | O59: =-O52/'1. Cost of Service_parameters'!P44 -> 0
D60: Retirements/Removals (if applicable)
D61: Closing Balance | E61: =E58+E59-E60 -> 0 | F61: =F58+F59-F60 -> 0 | G61: =G58+G59-G60 -> 0 | H61: 0 | I61: 0 | J61: 0 | K61: 0 | L61: 0 | M61: 0 | N61: =N58+N59-N60 -> 0 | O61: 0
C63: Net Book Value
D64: Opening Balance | E64: =E52+E58 -> 0 | F64: =E65 -> 0 | G64: =F65 -> 0 | H64: 0 | I64: 0 | J64: 0 | K64: 0 | L64: 0 | M64: 0 | N64: 0 | O64: 0
D65: Closing Balance | E65: =E55+E61 -> 0 | F65: =F55+F61 -> 0 | G65: =G55+G61 -> 0 | H65: 0 | I65: 0 | J65: 0 | K65: 0 | L65: 0 | M65: 0 | N65: =N55+N61 -> 0 | O65: 0
D66: Net Fixed Assets (NFA) | E66: =AVERAGE(E64:E65) -> 0 | F66: =AVERAGE(F64:F65) -> 0 | G66: =AVERAGE(G64:G65) -> 0 | H66: 0 | I66: 0 | J66: 0 | K66: 0 | L66: 0 | M66: 0 | N66: =AVERAGE(N64:N65) -> 0 | O66: 0
B68: Net Fixed Assets - 1835
C70: Gross Book Value
D71: Opening Balance | F71: =E74 -> 0 | G71: =F74 -> 0 | H71: 0 | I71: 0 | J71: 0 | K71: 0 | L71: 0 | M71: 0 | N71: 0 | O71: 0
D72: Capital Additions during year (from ICM Costs)
D73: Retirements/Removals (if applicable)
D74: Closing Balance | E74: =E71+E72-E73 -> 0 | F74: =F71+F72-F73 -> 0 | G74: =G71+G72-G73 -> 0 | H74: 0 | I74: 0 | J74: 0 | K74: 0 | L74: 0 | M74: 0 | N74: =N71+N72-N73 -> 0 | O74: 0
C76: Accumulated Depreciation
D77: Opening Balance | F77: =E80 -> 0 | G77: =F80 -> 0 | H77: 0 | I77: 0 | J77: 0 | K77: 0 | L77: 0 | M77: 0 | N77: 0 | O77: 0
D78: Amortization expense during year | E78: =-E72/'1. Cost of Service_parameters'!G47/2 -> 0 | F78: =-F71/'1. Cost of Service_parameters'!G47-'2. MIST Meters Assets_Rate Base'!F72/'1. Cost of Service_parameters'!G47/2 -> 0 | G78: =-G71/'1. Cost of Service_parameters'!H47-'2. MIST Meters Assets_Rate Base'!G72/'1. Cost of Service_parameters'!H47/2 -> 0 | H78: =-H71/'1. Cost of Service_parameters'!I47-'2. MIST Meters Assets_Rate Base'!H72/'1. Cost of Service_parameters'!I47/2 -> 0 | I78: =-I71/'1. Cost of Service_parameters'!J47-'2. MIST Meters Assets_Rate Base'!I72/'1. Cost of Service_parameters'!J47/2 -> 0 | J78: =-J71/'1. Cost of Service_parameters'!K47-'2. MIST Meters Assets_Rate Base'!J72/'1. Cost of Service_parameters'!K47/2 -> 0 | K78: =-K71/'1. Cost of Service_parameters'!L47-'2. MIST Meters Assets_Rate Base'!K72/'1. Cost of Service_parameters'!L47/2 -> 0 | L78: =-L71/'1. Cost of Service_parameters'!M47-'2. MIST Meters Assets_Rate Base'!L72/'1. Cost of Service_parameters'!M47/2 -> 0 | M78: =-M71/'1. Cost of Service_parameters'!N47-'2. MIST Meters Assets_Rate Base'!M72/'1. Cost of Service_parameters'!N47/2 -> 0 | N78: =-N71/'1. Cost of Service_parameters'!O47-'2. MIST Meters Assets_Rate Base'!N72/'1. Cost of Service_parameters'!O47/2 -> 0 | O78: =-O71/'1. Cost of Service_parameters'!P47-'2. MIST Meters Assets_Rate Base'!O72/'1. Cost of Service_parameters'!P47/2 -> 0
D79: Retirements/Removals (if applicable)
D80: Closing Balance | E80: =E77+E78-E79 -> 0 | F80: =F77+F78-F79 -> 0 | G80: =G77+G78-G79 -> 0 | H80: 0 | I80: 0 | J80: 0 | K80: 0 | L80: 0 | M80: 0 | N80: =N77+N78-N79 -> 0 | O80: 0
C82: Net Book Value
D83: Opening Balance | E83: =E71+E77 -> 0 | F83: =E84 -> 0 | G83: =F84 -> 0 | H83: 0 | I83: 0 | J83: 0 | K83: 0 | L83: 0 | M83: 0 | N83: 0 | O83: 0
D84: Closing Balance | E84: =E74+E80 -> 0 | F84: =F74+F80 -> 0 | G84: =G74+G80 -> 0 | H84: 0 | I84: 0 | J84: 0 | K84: 0 | L84: 0 | M84: 0 | N84: =N74+N80 -> 0 | O84: 0
D85: Net Fixed Assets (NFA) | E85: =AVERAGE(E83:E84) -> 0 | F85: =AVERAGE(F83:F84) -> 0 | G85: =AVERAGE(G83:G84) -> 0 | H85: 0 | I85: 0 | J85: 0 | K85: 0 | L85: 0 | M85: 0 | N85: =AVERAGE(N83:N84) -> 0 | O85: 0
B87: Net Fixed Assets - 1921
C89: Gross Book Value
D90: Opening Balance | F90: =E93 -> 0 | G90: =F93 -> 0 | H90: 0 | I90: 0 | J90: 0 | K90: 0 | L90: 0 | M90: 0 | N90: 0 | O90: 0
D91: Capital Additions during year (from ICM Costs) | F91: 0
D92: Retirements/Removals (if applicable)
D93: Closing Balance | E93: =E90+E91-E92 -> 0 | F93: =F90+F91-F92 -> 0 | G93: =G90+G91-G92 -> 0 | H93: 0 | I93: 0 | J93: 0 | K93: 0 | L93: 0 | M93: 0 | N93: =N90+N91-N92 -> 0 | O93: 0
C95: Accumulated Depreciation
D96: Opening Balance | F96: =E99 -> 0 | G96: =F99 -> 0 | H96: 0 | I96: 0 | J96: 0 | K96: 0 | L96: 0 | M96: 0 | N96: 0 | O96: 0
D97: Amortization expense during year | E97: =-E91/'1. Cost of Service_parameters'!G50/2 -> 0 | F97: =-F90/'1. Cost of Service_parameters'!G50 -> 0 | G97: =-G90/'1. Cost of Service_parameters'!H50 -> 0 | H97: =-H90/'1. Cost of Service_parameters'!I50 -> 0 | I97: =-I90/'1. Cost of Service_parameters'!J50 -> 0 | J97: =-J90/'1. Cost of Service_parameters'!K50 -> 0 | K97: =-K90/'1. Cost of Service_parameters'!L50 -> 0 | L97: =-L90/'1. Cost of Service_parameters'!M50 -> 0 | M97: =-M90/'1. Cost of Service_parameters'!N50 -> 0 | N97: =-N90/'1. Cost of Service_parameters'!O50 -> 0 | O97: =-O90/'1. Cost of Service_parameters'!P50 -> 0
D98: Retirements/Removals (if applicable)
D99: Closing Balance | E99: =E96+E97-E98 -> 0 | F99: =F96+F97-F98 -> 0 | G99: =G96+G97-G98 -> 0 | H99: 0 | I99: 0 | J99: 0 | K99: 0 | L99: 0 | M99: 0 | N99: =N96+N97-N98 -> 0 | O99: 0
C101: Net Book Value
D102: Opening Balance | E102: =E90+E96 -> 0 | F102: =E103 -> 0 | G102: =F103 -> 0 | H102: 0 | I102: 0 | J102: 0 | K102: 0 | L102: 0 | M102: 0 | N102: 0 | O102: 0
D103: Closing Balance | E103: =E93+E99 -> 0 | F103: =F93+F99 -> 0 | G103: =G93+G99 -> 0 | H103: 0 | I103: 0 | J103: 0 | K103: 0 | L103: 0 | M103: 0 | N103: =N93+N99 -> 0 | O103: 0
D104: Net Fixed Assets (NFA) | E104: =AVERAGE(E102:E103) -> 0 | F104: =AVERAGE(F102:F103) -> 0 | G104: =AVERAGE(G102:G103) -> 0 | H104: 0 | I104: 0 | J104: 0 | K104: 0 | L104: 0 | M104: 0 | N104: =AVERAGE(N102:N103) -> 0 | O104: 0
B106: Net Fixed Assets - 1935
C108: Gross Book Value
D109: Opening Balance | F109: =E112 -> 0 | G109: =F112 -> 0 | H109: 0 | I109: 0 | J109: 0 | K109: 0 | L109: 0 | M109: 0 | N109: 0 | O109: 0
D110: Capital Additions during year (from ICM Costs)
D111: Retirements/Removals (if applicable)
D112: Closing Balance | E112: =E109+E110-E111 -> 0 | F112: =F109+F110-F111 -> 0 | G112: =G109+G110-G111 -> 0 | H112: 0 | I112: 0 | J112: 0 | K112: 0 | L112: 0 | M112: 0 | N112: =N109+N110-N111 -> 0 | O112: 0
C114: Accumulated Depreciation
D115: Opening Balance | F115: =E118 -> 0 | G115: =F118 -> 0 | H115: 0 | I115: 0 | J115: 0 | K115: 0 | L115: 0 | M115: 0 | N115: 0 | O115: 0
D116: Amortization expense during year | E116: =-E110/'1. Cost of Service_parameters'!G53/2 -> 0 | F116: =-F109/'1. Cost of Service_parameters'!G53-'2. MIST Meters Assets_Rate Base'!F110/'1. Cost of Service_parameters'!G53/2 -> 0 | G116: =-G109/'1. Cost of Service_parameters'!H53-'2. MIST Meters Assets_Rate Base'!G110/'1. Cost of Service_parameters'!H53/2 -> 0 | H116: =-H109/'1. Cost of Service_parameters'!I53-'2. MIST Meters Assets_Rate Base'!H110/'1. Cost of Service_parameters'!I53/2 -> 0 | I116: =-I109/'1. Cost of Service_parameters'!J53-'2. MIST Meters Assets_Rate Base'!I110/'1. Cost of Service_parameters'!J53/2 -> 0 | J116: =-J109/'1. Cost of Service_parameters'!K53-'2. MIST Meters Assets_Rate Base'!J110/'1. Cost of Service_parameters'!K53/2 -> 0 | K116: =-K109/'1. Cost of Service_parameters'!L53-'2. MIST Meters Assets_Rate Base'!K110/'1. Cost of Service_parameters'!L53/2 -> 0 | L116: =-L109/'1. Cost of Service_parameters'!M53-'2. MIST Meters Assets_Rate Base'!L110/'1. Cost of Service_parameters'!M53/2 -> 0 | M116: =-M109/'1. Cost of Service_parameters'!N53-'2. MIST Meters Assets_Rate Base'!M110/'1. Cost of Service_parameters'!N53/2 -> 0 | N116: =-N109/'1. Cost of Service_parameters'!O53-'2. MIST Meters Assets_Rate Base'!N110/'1. Cost of Service_parameters'!O53/2 -> 0 | O116: =-O109/'1. Cost of Service_parameters'!P53-'2. MIST Meters Assets_Rate Base'!O110/'1. Cost of Service_parameters'!P53/2 -> 0
D117: Retirements/Removals (if applicable)
D118: Closing Balance | E118: =E115+E116-E117 -> 0 | F118: =F115+F116-F117 -> 0 | G118: =G115+G116-G117 -> 0 | H118: 0 | I118: 0 | J118: 0 | K118: 0 | L118: 0 | M118: 0 | N118: =N115+N116-N117 -> 0 | O118: 0
C120: Net Book Value
D121: Opening Balance | E121: =E109+E115 -> 0 | F121: =E122 -> 0 | G121: =F122 -> 0 | H121: 0 | I121: 0 | J121: 0 | K121: 0 | L121: 0 | M121: 0 | N121: 0 | O121: 0
D122: Closing Balance | E122: =E112+E118 -> 0 | F122: =F112+F118 -> 0 | G122: =G112+G118 -> 0 | H122: 0 | I122: 0 | J122: 0 | K122: 0 | L122: 0 | M122: 0 | N122: =N112+N118 -> 0 | O122: 0
D123: Net Fixed Assets (NFA) | E123: =AVERAGE(E121:E122) -> 0 | F123: =AVERAGE(F121:F122) -> 0 | G123: =AVERAGE(G121:G122) -> 0 | H123: 0 | I123: 0 | J123: 0 | K123: 0 | L123: 0 | M123: 0 | N123: =AVERAGE(N121:N122) -> 0 | O123: 0
B125: Net Fixed Assets - 1926
C127: Gross Book Value
D128: Opening Balance | F128: =E131 -> 0 | G128: =F131 -> 0 | H128: 0 | I128: 0 | J128: 0 | K128: 0 | L128: 0 | M128: 0 | N128: 0 | O128: 0
D129: Capital Additions during year (from ICM Costs) | F129: 0
D130: Retirements/Removals (if applicable)
D131: Closing Balance | E131: =E128+E129-E130 -> 0 | F131: =F128+F129-F130 -> 0 | G131: =G128+G129-G130 -> 0 | H131: 0 | I131: 0 | J131: 0 | K131: 0 | L131: 0 | M131: 0 | N131: =N128+N129-N130 -> 0 | O131: 0
C133: Accumulated Depreciation
D134: Opening Balance | F134: =E137 -> 0 | G134: =F137 -> 0 | H134: 0 | I134: 0 | J134: 0 | K134: 0 | L134: 0 | M134: 0 | N134: 0 | O134: 0
D135: Amortization expense during year | E135: =-E129/'1. Cost of Service_parameters'!G56/2 -> 0 | F135: =-F128/'1. Cost of Service_parameters'!G56 -> 0 | G135: =-G128/'1. Cost of Service_parameters'!H56 -> 0 | H135: =-H128/'1. Cost of Service_parameters'!I56 -> 0 | I135: =-I128/'1. Cost of Service_parameters'!J56 -> 0 | J135: =-J128/'1. Cost of Service_parameters'!K56 -> 0 | K135: =-K128/'1. Cost of Service_parameters'!L56 -> 0 | L135: =-L128/'1. Cost of Service_parameters'!M56 -> 0 | M135: =-M128/'1. Cost of Service_parameters'!N56 -> 0 | N135: =-N128/'1. Cost of Service_parameters'!O56 -> 0 | O135: =-O128/'1. Cost of Service_parameters'!P56 -> 0
D136: Retirements/Removals (if applicable)
D137: Closing Balance | E137: =E134+E135-E136 -> 0 | F137: =F134+F135-F136 -> 0 | G137: =G134+G135-G136 -> 0 | H137: 0 | I137: 0 | J137: 0 | K137: 0 | L137: 0 | M137: 0 | N137: =N134+N135-N136 -> 0 | O137: 0
C139: Net Book Value
D140: Opening Balance | E140: =E128+E134 -> 0 | F140: =E141 -> 0 | G140: =F141 -> 0 | H140: 0 | I140: 0 | J140: 0 | K140: 0 | L140: 0 | M140: 0 | N140: 0 | O140: 0
D141: Closing Balance | E141: =E131+E137 -> 0 | F141: =F131+F137 -> 0 | G141: =G131+G137 -> 0 | H141: 0 | I141: 0 | J141: 0 | K141: 0 | L141: 0 | M141: 0 | N141: =N131+N137 -> 0 | O141: 0
D142: Net Fixed Assets (NFA) | E142: =AVERAGE(E140:E141) -> 0 | F142: =AVERAGE(F140:F141) -> 0 | G142: =AVERAGE(G140:G141) -> 0 | H142: 0 | I142: 0 | J142: 0 | K142: 0 | L142: 0 | M142: 0 | N142: =AVERAGE(N140:N141) -> 0 | O142: 0
B144: Net Fixed Assets - 1862
C146: Gross Book Value
D147: Opening Balance | F147: =E150 -> 0 | G147: =F150 -> 0 | H147: 0 | I147: 0 | J147: 0 | K147: 0 | L147: 0 | M147: 0 | N147: 0 | O147: 0
D148: Capital Additions during year (from ICM Costs) | F148: 0
D149: Retirements/Removals (if applicable)
D150: Closing Balance | E150: =E147+E148-E149 -> 0 | F150: =F147+F148-F149 -> 0 | G150: =G147+G148-G149 -> 0 | H150: 0 | I150: 0 | J150: 0 | K150: 0 | L150: 0 | M150: 0 | N150: =N147+N148-N149 -> 0 | O150: 0
C152: Accumulated Depreciation
D153: Opening Balance | F153: =E156 -> 0 | G153: =F156 -> 0 | H153: 0 | I153: 0 | J153: 0 | K153: 0 | L153: 0 | M153: 0 | N153: 0 | O153: 0
D154: Amortization expense during year | E154: =-E148/'1. Cost of Service_parameters'!G59/2 -> 0 | F154: =-F147/'1. Cost of Service_parameters'!G59 -> 0 | G154: =-G147/'1. Cost of Service_parameters'!H59 -> 0 | H154: =-H147/'1. Cost of Service_parameters'!I59 -> 0 | I154: =-I147/'1. Cost of Service_parameters'!J59 -> 0 | J154: =-J147/'1. Cost of Service_parameters'!K59 -> 0 | K154: =-K147/'1. Cost of Service_parameters'!L59 -> 0 | L154: =-L147/'1. Cost of Service_parameters'!M59 -> 0 | M154: =-M147/'1. Cost of Service_parameters'!N59 -> 0 | N154: =-N147/'1. Cost of Service_parameters'!O59 -> 0 | O154: =-O147/'1. Cost of Service_parameters'!P59 -> 0
D155: Retirements/Removals (if applicable)
D156: Closing Balance | E156: =E153+E154-E155 -> 0 | F156: =F153+F154-F155 -> 0 | G156: =G153+G154-G155 -> 0 | H156: 0 | I156: 0 | J156: 0 | K156: 0 | L156: 0 | M156: 0 | N156: =N153+N154-N155 -> 0 | O156: 0
C158: Net Book Value
D159: Opening Balance | E159: =E147+E153 -> 0 | F159: =E160 -> 0 | G159: =F160 -> 0 | H159: 0 | I159: 0 | J159: 0 | K159: 0 | L159: 0 | M159: 0 | N159: 0 | O159: 0
D160: Closing Balance | E160: =E150+E156 -> 0 | F160: =F150+F156 -> 0 | G160: =G150+G156 -> 0 | H160: 0 | I160: 0 | J160: 0 | K160: 0 | L160: 0 | M160: 0 | N160: =N150+N156 -> 0 | O160: 0
D161: Net Fixed Assets (NFA) | E161: =AVERAGE(E159:E160) -> 0 | F161: =AVERAGE(F159:F160) -> 0 | G161: =AVERAGE(G159:G160) -> 0 | H161: 0 | I161: 0 | J161: 0 | K161: 0 | L161: 0 | M161: 0 | N161: =AVERAGE(N159:N160) -> 0 | O161: 0
B163: Net Fixed Assets - 1924
C165: Gross Book Value
D166: Opening Balance | F166: =E169 -> 0 | G166: =F169 -> 0 | H166: 0 | I166: 0 | J166: 0 | K166: 0 | L166: 0 | M166: 0 | N166: 0 | O166: 0
D167: Capital Additions during year (from ICM Costs)
D168: Retirements/Removals (if applicable)
D169: Closing Balance | E169: =E166+E167-E168 -> 0 | F169: =F166+F167-F168 -> 0 | G169: =G166+G167-G168 -> 0 | H169: 0 | I169: 0 | J169: 0 | K169: 0 | L169: 0 | M169: 0 | N169: =N166+N167-N168 -> 0 | O169: 0
C171: Accumulated Depreciation
D172: Opening Balance | F172: =E175 -> 0 | G172: =F175 -> 0 | H172: 0 | I172: 0 | J172: 0 | K172: 0 | L172: 0 | M172: 0 | N172: 0 | O172: 0
D173: Amortization expense during year | E173: =-E167/'1. Cost of Service_parameters'!G62/2 -> 0 | F173: =-F166/'1. Cost of Service_parameters'!G62-'2. MIST Meters Assets_Rate Base'!F167/'1. Cost of Service_parameters'!G62/2 -> 0 | G173: =-G166/'1. Cost of Service_parameters'!H62-'2. MIST Meters Assets_Rate Base'!G167/'1. Cost of Service_parameters'!H62/2 -> 0 | H173: =-H166/'1. Cost of Service_parameters'!I62-'2. MIST Meters Assets_Rate Base'!H167/'1. Cost of Service_parameters'!I62/2 -> 0 | I173: =-I166/'1. Cost of Service_parameters'!J62-'2. MIST Meters Assets_Rate Base'!I167/'1. Cost of Service_parameters'!J62/2 -> 0 | J173: =-J166/'1. Cost of Service_parameters'!K62-'2. MIST Meters Assets_Rate Base'!J167/'1. Cost of Service_parameters'!K62/2 -> 0 | K173: =-K166/'1. Cost of Service_parameters'!L62-'2. MIST Meters Assets_Rate Base'!K167/'1. Cost of Service_parameters'!L62/2 -> 0 | L173: =-L166/'1. Cost of Service_parameters'!M62-'2. MIST Meters Assets_Rate Base'!L167/'1. Cost of Service_parameters'!M62/2 -> 0 | M173: =-M166/'1. Cost of Service_parameters'!N62-'2. MIST Meters Assets_Rate Base'!M167/'1. Cost of Service_parameters'!N62/2 -> 0 | N173: =-N166/'1. Cost of Service_parameters'!O62-'2. MIST Meters Assets_Rate Base'!N167/'1. Cost of Service_parameters'!O62/2 -> 0 | O173: =-O166/'1. Cost of Service_parameters'!P62-'2. MIST Meters Assets_Rate Base'!O167/'1. Cost of Service_parameters'!P62/2 -> 0
D174: Retirements/Removals (if applicable)
D175: Closing Balance | E175: =E172+E173-E174 -> 0 | F175: =F172+F173-F174 -> 0 | G175: =G172+G173-G174 -> 0 | H175: 0 | I175: 0 | J175: 0 | K175: 0 | L175: 0 | M175: 0 | N175: =N172+N173-N174 -> 0 | O175: 0
C177: Net Book Value
D178: Opening Balance | E178: =E166+E172 -> 0 | F178: =E179 -> 0 | G178: =F179 -> 0 | H178: 0 | I178: 0 | J178: 0 | K178: 0 | L178: 0 | M178: 0 | N178: 0 | O178: 0
D179: Closing Balance | E179: =E169+E175 -> 0 | F179: =F169+F175 -> 0 | G179: =G169+G175 -> 0 | H179: 0 | I179: 0 | J179: 0 | K179: 0 | L179: 0 | M179: 0 | N179: =N169+N175 -> 0 | O179: 0
D180: Net Fixed Assets (NFA) | E180: =AVERAGE(E178:E179) -> 0 | F180: =AVERAGE(F178:F179) -> 0 | G180: =AVERAGE(G178:G179) -> 0 | H180: 0 | I180: 0 | J180: 0 | K180: 0 | L180: 0 | M180: 0 | N180: =AVERAGE(N178:N179) -> 0 | O180: 0
B183: Net Fixed Assets - 1850
C185: Gross Book Value
D186: Opening Balance | F186: =E189 -> 0 | G186: =F189 -> 0 | H186: 0 | I186: 0 | J186: 0 | K186: 0 | L186: 0 | M186: 0 | N186: 0 | O186: 0
D187: Capital Additions during year (from ICM Costs)
D188: Retirements/Removals (if applicable)
D189: Closing Balance | E189: =E186+E187-E188 -> 0 | F189: =F186+F187-F188 -> 0 | G189: =G186+G187-G188 -> 0 | H189: 0 | I189: 0 | J189: 0 | K189: 0 | L189: 0 | M189: 0 | N189: =N186+N187-N188 -> 0 | O189: 0
C191: Accumulated Depreciation
D192: Opening Balance | F192: =E195 -> 0 | G192: =F195 -> 0 | H192: 0 | I192: 0 | J192: 0 | K192: 0 | L192: 0 | M192: 0 | N192: 0 | O192: 0
D193: Amortization expense during year | E193: =-E187/'1. Cost of Service_parameters'!G65/2 -> 0 | F193: =-F186/'1. Cost of Service_parameters'!G65-'2. MIST Meters Assets_Rate Base'!F187/'1. Cost of Service_parameters'!G65/2 -> 0 | G193: =-G186/'1. Cost of Service_parameters'!H65-'2. MIST Meters Assets_Rate Base'!G187/'1. Cost of Service_parameters'!H65/2 -> 0 | H193: =-H186/'1. Cost of Service_parameters'!I65-'2. MIST Meters Assets_Rate Base'!H187/'1. Cost of Service_parameters'!I65/2 -> 0 | I193: =-I186/'1. Cost of Service_parameters'!J65-'2. MIST Meters Assets_Rate Base'!I187/'1. Cost of Service_parameters'!J65/2 -> 0 | J193: =-J186/'1. Cost of Service_parameters'!K65-'2. MIST Meters Assets_Rate Base'!J187/'1. Cost of Service_parameters'!K65/2 -> 0 | K193: =-K186/'1. Cost of Service_parameters'!L65-'2. MIST Meters Assets_Rate Base'!K187/'1. Cost of Service_parameters'!L65/2 -> 0 | L193: =-L186/'1. Cost of Service_parameters'!M65-'2. MIST Meters Assets_Rate Base'!L187/'1. Cost of Service_parameters'!M65/2 -> 0 | M193: =-M186/'1. Cost of Service_parameters'!N65-'2. MIST Meters Assets_Rate Base'!M187/'1. Cost of Service_parameters'!N65/2 -> 0 | N193: =-N186/'1. Cost of Service_parameters'!O65-'2. MIST Meters Assets_Rate Base'!N187/'1. Cost of Service_parameters'!O65/2 -> 0 | O193: =-O186/'1. Cost of Service_parameters'!P65-'2. MIST Meters Assets_Rate Base'!O187/'1. Cost of Service_parameters'!P65/2 -> 0
D194: Retirements/Removals (if applicable)
D195: Closing Balance | E195: =E192+E193-E194 -> 0 | F195: =F192+F193-F194 -> 0 | G195: =G192+G193-G194 -> 0 | H195: 0 | I195: 0 | J195: 0 | K195: 0 | L195: 0 | M195: 0 | N195: =N192+N193-N194 -> 0 | O195: 0
C197: Net Book Value
D198: Opening Balance | E198: =E186+E192 -> 0 | F198: =E199 -> 0 | G198: =F199 -> 0 | H198: 0 | I198: 0 | J198: 0 | K198: 0 | L198: 0 | M198: 0 | N198: 0 | O198: 0
D199: Closing Balance | E199: =E189+E195 -> 0 | F199: =F189+F195 -> 0 | G199: =G189+G195 -> 0 | H199: 0 | I199: 0 | J199: 0 | K199: 0 | L199: 0 | M199: 0 | N199: =N189+N195 -> 0 | O199: 0
D200: Net Fixed Assets (NFA) | E200: =AVERAGE(E198:E199) -> 0 | F200: =AVERAGE(F198:F199) -> 0 | G200: =AVERAGE(G198:G199) -> 0 | H200: 0 | I200: 0 | J200: 0 | K200: 0 | L200: 0 | M200: 0 | N200: =AVERAGE(N198:N199) -> 0 | O200: 0
B203: Net Fixed Assets - 1982
C205: Gross Book Value
D206: Opening Balance | F206: =E209 -> 0 | G206: =F209 -> 0 | H206: 0 | I206: 0 | J206: 0 | K206: 0 | L206: 0 | M206: 0 | N206: 0 | O206: 0
D207: Capital Additions during year (from ICM Costs)
D208: Retirements/Removals (if applicable)
D209: Closing Balance | E209: =E206+E207-E208 -> 0 | F209: =F206+F207-F208 -> 0 | G209: =G206+G207-G208 -> 0 | H209: 0 | I209: 0 | J209: 0 | K209: 0 | L209: 0 | M209: 0 | N209: =N206+N207-N208 -> 0 | O209: 0
C211: Accumulated Depreciation
D212: Opening Balance | F212: =E215 -> 0 | G212: =F215 -> 0 | H212: 0 | I212: 0 | J212: 0 | K212: 0 | L212: 0 | M212: 0 | N212: 0 | O212: 0
D213: Amortization expense during year | E213: =-E207/'1. Cost of Service_parameters'!G68/2 -> 0 | F213: =-F206/'1. Cost of Service_parameters'!G68-'2. MIST Meters Assets_Rate Base'!F207/'1. Cost of Service_parameters'!G68/2 -> 0 | G213: =-G206/'1. Cost of Service_parameters'!H68-'2. MIST Meters Assets_Rate Base'!G207/'1. Cost of Service_parameters'!H68/2 -> 0 | H213: =-H206/'1. Cost of Service_parameters'!I68-'2. MIST Meters Assets_Rate Base'!H207/'1. Cost of Service_parameters'!I68/2 -> 0 | I213: =-I206/'1. Cost of Service_parameters'!J68-'2. MIST Meters Assets_Rate Base'!I207/'1. Cost of Service_parameters'!J68/2 -> 0 | J213: =-J206/'1. Cost of Service_parameters'!K68-'2. MIST Meters Assets_Rate Base'!J207/'1. Cost of Service_parameters'!K68/2 -> 0 | K213: =-K206/'1. Cost of Service_parameters'!L68-'2. MIST Meters Assets_Rate Base'!K207/'1. Cost of Service_parameters'!L68/2 -> 0 | L213: =-L206/'1. Cost of Service_parameters'!M68-'2. MIST Meters Assets_Rate Base'!L207/'1. Cost of Service_parameters'!M68/2 -> 0 | M213: =-M206/'1. Cost of Service_parameters'!N68-'2. MIST Meters Assets_Rate Base'!M207/'1. Cost of Service_parameters'!N68/2 -> 0 | N213: =-N206/'1. Cost of Service_parameters'!O68-'2. MIST Meters Assets_Rate Base'!N207/'1. Cost of Service_parameters'!O68/2 -> 0 | O213: =-O206/'1. Cost of Service_parameters'!P68-'2. MIST Meters Assets_Rate Base'!O207/'1. Cost of Service_parameters'!P68/2 -> 0
D214: Retirements/Removals (if applicable)
D215: Closing Balance | E215: =E212+E213-E214 -> 0 | F215: =F212+F213-F214 -> 0 | G215: =G212+G213-G214 -> 0 | H215: 0 | I215: 0 | J215: 0 | K215: 0 | L215: 0 | M215: 0 | N215: =N212+N213-N214 -> 0 | O215: 0
C217: Net Book Value
D218: Opening Balance | E218: =E206+E212 -> 0 | F218: =E219 -> 0 | G218: =F219 -> 0 | H218: 0 | I218: 0 | J218: 0 | K218: 0 | L218: 0 | M218: 0 | N218: 0 | O218: 0
D219: Closing Balance | E219: =E209+E215 -> 0 | F219: =F209+F215 -> 0 | G219: =G209+G215 -> 0 | H219: 0 | I219: 0 | J219: 0 | K219: 0 | L219: 0 | M219: 0 | N219: =N209+N215 -> 0 | O219: 0
D220: Net Fixed Assets (NFA) | E220: =AVERAGE(E218:E219) -> 0 | F220: =AVERAGE(F218:F219) -> 0 | G220: =AVERAGE(G218:G219) -> 0 | H220: 0 | I220: 0 | J220: 0 | K220: 0 | L220: 0 | M220: 0 | N220: =AVERAGE(N218:N219) -> 0 | O220: 0
B223: Net Fixed Assets - 1955
C225: Gross Book Value
D226: Opening Balance | F226: =E229 -> 0 | G226: =F229 -> 0 | H226: 0 | I226: 0 | J226: 0 | K226: 0 | L226: 0 | M226: 0 | N226: 0 | O226: 0
D227: Capital Additions during year (from ICM Costs)
D228: Retirements/Removals (if applicable)
D229: Closing Balance | E229: =E226+E227-E228 -> 0 | F229: =F226+F227-F228 -> 0 | G229: =G226+G227-G228 -> 0 | H229: 0 | I229: 0 | J229: 0 | K229: 0 | L229: 0 | M229: 0 | N229: =N226+N227-N228 -> 0 | O229: 0
C231: Accumulated Depreciation
D232: Opening Balance | F232: =E235 -> 0 | G232: =F235 -> 0 | H232: 0 | I232: 0 | J232: 0 | K232: 0 | L232: 0 | M232: 0 | N232: 0 | O232: 0
D233: Amortization expense during year | E233: =-E227/'1. Cost of Service_parameters'!G71/2 -> 0 | F233: =-F226/'1. Cost of Service_parameters'!G71-'2. MIST Meters Assets_Rate Base'!F227/'1. Cost of Service_parameters'!G71/2 -> 0 | G233: =-G226/'1. Cost of Service_parameters'!H71-'2. MIST Meters Assets_Rate Base'!G227/'1. Cost of Service_parameters'!H71/2 -> 0 | H233: =-H226/'1. Cost of Service_parameters'!I71-'2. MIST Meters Assets_Rate Base'!H227/'1. Cost of Service_parameters'!I71/2 -> 0 | I233: =-I226/'1. Cost of Service_parameters'!J71-'2. MIST Meters Assets_Rate Base'!I227/'1. Cost of Service_parameters'!J71/2 -> 0 | J233: =-J226/'1. Cost of Service_parameters'!K71-'2. MIST Meters Assets_Rate Base'!J227/'1. Cost of Service_parameters'!K71/2 -> 0 | K233: =-K226/'1. Cost of Service_parameters'!L71-'2. MIST Meters Assets_Rate Base'!K227/'1. Cost of Service_parameters'!L71/2 -> 0 | L233: =-L226/'1. Cost of Service_parameters'!M71-'2. MIST Meters Assets_Rate Base'!L227/'1. Cost of Service_parameters'!M71/2 -> 0 | M233: =-M226/'1. Cost of Service_parameters'!N71-'2. MIST Meters Assets_Rate Base'!M227/'1. Cost of Service_parameters'!N71/2 -> 0 | N233: =-N226/'1. Cost of Service_parameters'!O71-'2. MIST Meters Assets_Rate Base'!N227/'1. Cost of Service_parameters'!O71/2 -> 0 | O233: =-O226/'1. Cost of Service_parameters'!P71-'2. MIST Meters Assets_Rate Base'!O227/'1. Cost of Service_parameters'!P71/2 -> 0
D234: Retirements/Removals (if applicable)
D235: Closing Balance | E235: =E232+E233-E234 -> 0 | F235: =F232+F233-F234 -> 0 | G235: =G232+G233-G234 -> 0 | H235: 0 | I235: 0 | J235: 0 | K235: 0 | L235: 0 | M235: 0 | N235: =N232+N233-N234 -> 0 | O235: 0
C237: Net Book Value
D238: Opening Balance | E238: =E226+E232 -> 0 | F238: =E239 -> 0 | G238: =F239 -> 0 | H238: 0 | I238: 0 | J238: 0 | K238: 0 | L238: 0 | M238: 0 | N238: 0 | O238: 0
D239: Closing Balance | E239: =E229+E235 -> 0 | F239: =F229+F235 -> 0 | G239: =G229+G235 -> 0 | H239: 0 | I239: 0 | J239: 0 | K239: 0 | L239: 0 | M239: 0 | N239: =N229+N235 -> 0 | O239: 0
D240: Net Fixed Assets (NFA) | E240: =AVERAGE(E238:E239) -> 0 | F240: =AVERAGE(F238:F239) -> 0 | G240: =AVERAGE(G238:G239) -> 0 | H240: 0 | I240: 0 | J240: 0 | K240: 0 | L240: 0 | M240: 0 | N240: =AVERAGE(N238:N239) -> 0 | O240: 0
B243: Net Fixed Assets -
C245: Gross Book Value
D246: Opening Balance | F246: =E249 -> 0 | G246: =F249 -> 0 | H246: 0 | I246: 0 | J246: 0 | K246: 0 | L246: 0 | M246: 0 | N246: 0 | O246: 0
D247: Capital Additions during year (from ICM Costs)
D248: Retirements/Removals (if applicable)
D249: Closing Balance | E249: =E246+E247-E248 -> 0 | F249: =F246+F247-F248 -> 0 | G249: =G246+G247-G248 -> 0 | H249: 0 | I249: 0 | J249: 0 | K249: 0 | L249: 0 | M249: 0 | N249: =N246+N247-N248 -> 0 | O249: 0
C251: Accumulated Depreciation
D252: Opening Balance | F252: =E255 -> 0 | G252: =F255 -> 0 | H252: 0 | I252: 0 | J252: 0 | K252: 0 | L252: 0 | M252: 0 | N252: 0 | O252: 0
D253: Amortization expense during year | E253: 0 | F253: 0 | G253: 0 | H253: 0 | I253: 0 | J253: 0 | K253: 0 | L253: 0 | M253: 0 | N253: 0 | O253: 0
D254: Retirements/Removals (if applicable)
D255: Closing Balance | E255: =E252+E253-E254 -> 0 | F255: =F252+F253-F254 -> 0 | G255: =G252+G253-G254 -> 0 | H255: 0 | I255: 0 | J255: 0 | K255: 0 | L255: 0 | M255: 0 | N255: =N252+N253-N254 -> 0 | O255: 0
C257: Net Book Value
D258: Opening Balance | E258: =E246+E252 -> 0 | F258: =E259 -> 0 | G258: =F259 -> 0 | H258: 0 | I258: 0 | J258: 0 | K258: 0 | L258: 0 | M258: 0 | N258: 0 | O258: 0
D259: Closing Balance | E259: =E249+E255 -> 0 | F259: =F249+F255 -> 0 | G259: =G249+G255 -> 0 | H259: 0 | I259: 0 | J259: 0 | K259: 0 | L259: 0 | M259: 0 | N259: =N249+N255 -> 0 | O259: 0
D260: Incremental CAPEX | E260: =E259 -> 0 | F260: =AVERAGE(F258:F259) -> 0 | G260: =AVERAGE(G258:G259) -> 0 | H260: 0 | I260: 0 | J260: 0 | K260: 0 | L260: 0 | M260: 0 | N260: =AVERAGE(N258:N259) -> 0 | O260: 0
D267: Additions | E267: =E15+E34+E53+E72+E91+E110+E129+E148+E167+E187+E207+E227+E247 -> 1985917.65 | F267: =F15+F34+F53+F72+F91+F110+F129+F148+F167+F187+F207+F227+F247 -> 41003.37 | G267: 1666816.05 | H267: 12068.08 | I267: 2248671.41 | J267: 1982424.18 | K267: 1076258.88 | L267: 24588.12 | M267: 0 | N267: =N15+N34+N53+N72+N91+N110+N129+N148+N167+N187+N207+N227+N247 -> 0 | O267: 0
D268: Net Fixed Assets (NFA) | E268: =E28+E47+E66+E85+E104+E123+E142+E161+E180+E200+E220+E240+E260 -> 992958.825 | F268: =F28+F47+F66+F85+F104+F123+F142+F161+F180+F200+F220+F240+F260 -> 1921398.91 | G268: =G28+G47+G66+G85+G104+G123+G142+G161+G180+G200+G220+G240+G260 -> 2608962.74 | H268: 3311575.42 | I268: 4329846.02 | J268: 6288495.64 | K268: 7555111.945 | L268: 7766913.675 | M268: 7426531.9 | N268: =N28+N47+N66+N85+N104+N123+N142+N161+N180+N200+N220+N240+N260 -> 7073579.24 | O268: 6720626.58
... 1 more rows

Sheet 3. UCC_Calculations
C3: MIST Meters True-up Model
A9: Sheet 3: CCA For PILs Calculation
A11: UCC/Class 47 | D11: 2016 | E11: 2017 | F11: 2018 | G11: 2019 | H11: 2020 | I11: 2021 | J11: 2022 | K11: 2023 | L11: 2024 | M11: 2025 | N11: 2026
D12: Actual | E12: Actual | F12: Actual | G12: Actual | H12: Actual | I12: Actual | J12: Actual | K12: Actual | L12: Actual | M12: Actual | N12: Actual
A14: Opening UCC | D14: 0 | E14: =D17-D22 -> 1906480.944 | F14: =E17-E22 -> 1793325.704 | G14: =F17-F22 -> 3250003.055 | H14: 3001588.168 | I14: 4920185.668 | J14: 6429698.027 | K14: 6948530.71 | L14: 6416252.848 | M14: =L17-L22 -> 5902952.62 | N14: =M17-M22 -> 5430716.411
A15: Capital Additions | D15: ='2. MIST Meters Assets_Rate Base'!E267-D29-D44-D59-D74 -> 1985917.65 | E15: ='2. MIST Meters Assets_Rate Base'!F267-E29-E44-E59-E74 -> 41003.37 | F15: ='2. MIST Meters Assets_Rate Base'!G267-F29-F44-F59-F74 -> 1666816.05 | G15: ='2. MIST Meters Assets_Rate Base'!H267-G29-G44-G59-G74 -> 12068.08 | H15: ='2. MIST Meters Assets_Rate Base'!I267-H29-H44-H59-H74 -> 2248671.41 | I15: ='2. MIST Meters Assets_Rate Base'!J267-I29-I44-I59-I74 -> 1982424.18 | J15: ='2. MIST Meters Assets_Rate Base'!K267-J29-J44-J59-J74 -> 1076258.88 | K15: ='2. MIST Meters Assets_Rate Base'!L267-K29-K44-K59-K74 -> 24588.12 | L15: ='2. MIST Meters Assets_Rate Base'!M267-L29-L44-L59-L74 -> 0 | M15: ='2. MIST Meters Assets_Rate Base'!N267-M29-M44-M59-M74 -> 0 | N15: ='2. MIST Meters Assets_Rate Base'!O267-N29-N44-N59-N74 -> 0
A16: Retirements/Removals (if applicable) | D16: ='2. MIST Meters Assets_Rate Base'!E16 -> 0
A17: UCC Before Half Year Rule | D17: =SUM(D14:D15)-D16 -> 1985917.65 | E17: =SUM(E14:E15)-E16 -> 1947484.314 | F17: =SUM(F14:F15)-F16 -> 3460141.754 | G17: 3262071.135 | H17: 5250259.578 | I17: 6902609.848 | J17: 7505956.907 | K17: 6973118.83 | L17: 6416252.848 | M17: =SUM(M14:M15)-M16 -> 5902952.62 | N17: 5430716.411
A18: Half Year Rule (1/2 Additions - Disposals) | D18: =IF(((D15-D16)/2)<0, 0, (D15-D16)/2) -> 992958.825 | E18: =IF(((E15-E16)/2)<0, 0, (E15-E16)/2) -> 20501.685 | F18: =IF(((F15-F16)/2)<0, 0, (F15-F16)/2) -> 833408.025 | G18: =IF(((G15-G16)/2)<0, 0, (G15-G16)/2) -> 6034.04 | H18: 1124335.705 | I18: 991212.09 | J18: 538129.44 | K18: 12294.06 | L18: 0 | M18: =IF(((M15-M16)/2)<0, 0, (M15-M16)/2) -> 0 | N18: 0
A19: Reduced UCC | D19: =D18+D14 -> 992958.825 | E19: =E18+E14 -> 1926982.629 | F19: =F18+F14 -> 2626733.729 | G19: =G18+G14 -> 3256037.095 | H19: 4125923.873 | I19: 5911397.758 | J19: 6967827.467 | K19: 6960824.77 | L19: 6416252.848 | M19: =M18+M14 -> 5902952.62 | N19: 5430716.411
A20: CCA Rate Class | D20: 47 | E20: 47 | F20: 47 | G20: 47 | H20: 47 | I20: 47 | J20: 47 | K20: 47 | L20: 47 | M20: 47 | N20: 47
A21: CCA Rate | D21: 0.08 | E21: 0.08 | F21: 0.08 | G21: 0.08 | H21: 0.08 | I21: 0.08 | J21: 0.08 | K21: 0.08 | L21: 0.08 | M21: 0.08 | N21: 0.08
A22: CCA | D22: =D19*D21 -> 79436.706 | E22: 154158.6103 | F22: 210138.6983 | G22: 260482.9676 | H22: 330073.9098 | I22: 472911.8206 | J22: 557426.1974 | K22: 556865.9816 | L22: 513300.2279 | M22: 472236.2096 | N22: 434457.3129
A23: Closing UCC | D23: =IF((D17-D22)<0, 0, D17-D22) -> 1906480.944 | E23: =IF((E17-E22)<0, 0, E17-E22) -> 1793325.704 | F23: =IF((F17-F22)<0, 0, F17-F22) -> 3250003.055 | G23: 3001588.168 | H23: 4920185.668 | I23: 6429698.027 | J23: 6948530.71 | K23: 6416252.848 | L23: 5902952.62 | M23: =IF((M17-M22)<0, 0, M17-M22) -> 5430716.411 | N23: 4996259.098
A25: UCC/Class 8 | D25: 2016 | E25: 2017 | F25: 2018 | G25: 2019 | H25: 2020 | I25: 2021 | J25: 2022 | K25: 2023 | L25: 2024 | M25: 2025 | N25: 2026
D26: =D12 -> Actual | E26: Actual | F26: =F12 -> Actual | G26: Actual | H26: Actual | I26: Actual | J26: Actual | K26: Actual | L26: Actual | M26: =M12 -> Actual | N26: Actual
A28: Opening UCC | D28: 0 | E28: =D31-D36 -> 0 | F28: =E31-E36 -> 0 | G28: 0 | H28: 0 | I28: 0 | J28: 0 | K28: 0 | L28: 0 | M28: =L31-L36 -> 0 | N28: =M31-M36 -> 0
A29: Capital Additions | D29: ='2. MIST Meters Assets_Rate Base'!E227+'2. MIST Meters Assets_Rate Base'!E207+'2. MIST Meters Assets_Rate Base'!E148+'2. MIST Meters Assets_Rate Base'!E110 -> 0 | E29: ='2. MIST Meters Assets_Rate Base'!F227+'2. MIST Meters Assets_Rate Base'!F207+'2. MIST Meters Assets_Rate Base'!F148+'2. MIST Meters Assets_Rate Base'!F110 -> 0 | F29: ='2. MIST Meters Assets_Rate Base'!G227+'2. MIST Meters Assets_Rate Base'!G207+'2. MIST Meters Assets_Rate Base'!G148+'2. MIST Meters Assets_Rate Base'!G110 -> 0 | G29: ='2. MIST Meters Assets_Rate Base'!H227+'2. MIST Meters Assets_Rate Base'!H207+'2. MIST Meters Assets_Rate Base'!H148+'2. MIST Meters Assets_Rate Base'!H110 -> 0 | H29: ='2. MIST Meters Assets_Rate Base'!I227+'2. MIST Meters Assets_Rate Base'!I207+'2. MIST Meters Assets_Rate Base'!I148+'2. MIST Meters Assets_Rate Base'!I110 -> 0 | I29: ='2. MIST Meters Assets_Rate Base'!J227+'2. MIST Meters Assets_Rate Base'!J207+'2. MIST Meters Assets_Rate Base'!J148+'2. MIST Meters Assets_Rate Base'!J110 -> 0 | J29: ='2. MIST Meters Assets_Rate Base'!K227+'2. MIST Meters Assets_Rate Base'!K207+'2. MIST Meters Assets_Rate Base'!K148+'2. MIST Meters Assets_Rate Base'!K110 -> 0 | K29: ='2. MIST Meters Assets_Rate Base'!L227+'2. MIST Meters Assets_Rate Base'!L207+'2. MIST Meters Assets_Rate Base'!L148+'2. MIST Meters Assets_Rate Base'!L110 -> 0 | L29: ='2. MIST Meters Assets_Rate Base'!M227+'2. MIST Meters Assets_Rate Base'!M207+'2. MIST Meters Assets_Rate Base'!M148+'2. MIST Meters Assets_Rate Base'!M110 -> 0 | M29: ='2. MIST Meters Assets_Rate Base'!N227+'2. MIST Meters Assets_Rate Base'!N207+'2. MIST Meters Assets_Rate Base'!N148+'2. MIST Meters Assets_Rate Base'!N110 -> 0 | N29: ='2. MIST Meters Assets_Rate Base'!O227+'2. MIST Meters Assets_Rate Base'!O207+'2. MIST Meters Assets_Rate Base'!O148+'2. MIST Meters Assets_Rate Base'!O110 -> 0
A30: Retirements/Removals (if applicable)
A31: UCC Before Half Year Rule | D31: =SUM(D28:D29)-D30 -> 0 | E31: =SUM(E28:E29)-E30 -> 0 | F31: =SUM(F28:F29)-F30 -> 0 | G31: 0 | H31: 0 | I31: 0 | J31: 0 | K31: 0 | L31: 0 | M31: =SUM(M28:M29)-M30 -> 0 | N31: 0
A32: Half Year Rule (1/2 Additions - Disposals) | D32: =IF((SUM(D29:D29)/2)<0, 0, SUM(D29:D29)/2) -> 0 | E32: =IF((SUM(E29:E29)/2)<0, 0, SUM(E29:E29)/2) -> 0 | F32: =IF((SUM(F29:F29)/2)<0, 0, SUM(F29:F29)/2) -> 0 | G32: 0 | H32: 0 | I32: 0 | J32: 0 | K32: 0 | L32: 0 | M32: =IF((SUM(M29:M29)/2)<0, 0, SUM(M29:M29)/2) -> 0 | N32: 0
A33: Reduced UCC | D33: =D32+D28 -> 0 | E33: =E32+E28 -> 0 | F33: =F32+F28 -> 0 | G33: 0 | H33: 0 | I33: 0 | J33: 0 | K33: 0 | L33: 0 | M33: =M32+M28 -> 0 | N33: 0
A34: CCA Rate Class | D34: 8 | E34: 8 | F34: 8 | G34: 8 | H34: 8 | I34: 8 | J34: 8 | K34: 8 | L34: 8 | M34: 8 | N34: 8
A35: CCA Rate | D35: 0.2 | E35: 0.2 | F35: 0.2 | G35: 0.2 | H35: 0.2 | I35: 0.2 | J35: 0.2 | K35: 0.2 | L35: 0.2 | M35: 0.2 | N35: 0.2
A36: CCA | D36: =D35*D33 -> 0 | E36: =E35*E33 -> 0 | F36: =F35*F33 -> 0 | G36: 0 | H36: 0 | I36: 0 | J36: 0 | K36: 0 | L36: 0 | M36: =M35*M33 -> 0 | N36: 0
A37: Closing UCC | D37: =IF((D31-D36)<0, 0, D31-D36) -> 0 | E37: =IF((E31-E36)<0, 0, E31-E36) -> 0 | F37: =IF((F31-F36)<0, 0, F31-F36) -> 0 | G37: 0 | H37: 0 | I37: 0 | J37: 0 | K37: 0 | L37: 0 | M37: =IF((M31-M36)<0, 0, M31-M36) -> 0 | N37: 0
A40: UCC/Class 10 | D40: 2016 | E40: 2017 | F40: 2018 | G40: 2019 | H40: 2020 | I40: 2021 | J40: 2022 | K40: 2023 | L40: 2024 | M40: 2025 | N40: 2026
D41: Audited Actual | E41: Forecast | F41: Forecast | G41: Forecast | H41: Forecast | I41: Forecast | J41: Forecast | K41: Forecast | L41: Forecast | M41: Forecast | N41: Forecast
A43: Opening UCC | D43: 0 | E43: =D46-D51 -> 0 | F43: =E46-E51 -> 0 | G43: 0 | H43: 0 | I43: 0 | J43: 0 | K43: 0 | L43: 0 | M43: =L46-L51 -> 0 | N43: =M46-M51 -> 0
A44: Capital Additions | D44: ='2. MIST Meters Assets_Rate Base'!E53 -> 0 | E44: ='2. MIST Meters Assets_Rate Base'!F53 -> 0 | F44: ='2. MIST Meters Assets_Rate Base'!G53 -> 0 | G44: ='2. MIST Meters Assets_Rate Base'!H53 -> 0 | H44: ='2. MIST Meters Assets_Rate Base'!I53 -> 0 | I44: ='2. MIST Meters Assets_Rate Base'!J53 -> 0 | J44: ='2. MIST Meters Assets_Rate Base'!K53 -> 0 | K44: ='2. MIST Meters Assets_Rate Base'!L53 -> 0 | L44: ='2. MIST Meters Assets_Rate Base'!M53 -> 0 | M44: ='2. MIST Meters Assets_Rate Base'!N53 -> 0 | N44: ='2. MIST Meters Assets_Rate Base'!O53 -> 0
A45: Retirements/Removals (if applicable)
A46: UCC Before Half Year Rule | D46: =SUM(D43:D44)-D45 -> 0 | E46: =SUM(E43:E44)-E45 -> 0 | F46: =SUM(F43:F44)-F45 -> 0 | G46: 0 | H46: 0 | I46: 0 | J46: 0 | K46: 0 | L46: 0 | M46: =SUM(M43:M44)-M45 -> 0 | N46: 0
A47: Half Year Rule (1/2 Additions - Disposals) | D47: =IF((SUM(D44:D44)/2)<0, 0, SUM(D44:D44)/2) -> 0 | E47: =IF((SUM(E44:E44)/2)<0, 0, SUM(E44:E44)/2) -> 0 | F47: =IF((SUM(F44:F44)/2)<0, 0, SUM(F44:F44)/2) -> 0 | G47: 0 | H47: 0 | I47: 0 | J47: 0 | K47: 0 | L47: 0 | M47: =IF((SUM(M44:M44)/2)<0, 0, SUM(M44:M44)/2) -> 0 | N47: 0
A48: Reduced UCC | D48: =D47+D43 -> 0 | E48: =E47+E43 -> 0 | F48: =F47+F43 -> 0 | G48: 0 | H48: 0 | I48: 0 | J48: 0 | K48: 0 | L48: 0 | M48: =M47+M43 -> 0 | N48: 0
A49: CCA Rate Class | D49: 10 | E49: 10 | F49: 10 | G49: 10 | H49: 10 | I49: 10 | J49: 10 | K49: 10 | L49: 10 | M49: 10 | N49: 10
A50: CCA Rate | D50: 0.3 | E50: 0.3 | F50: 0.3 | G50: 0.3 | H50: 0.3 | I50: 0.3 | J50: 0.3 | K50: 0.3 | L50: 0.3 | M50: 0.3 | N50: 0.3
A51: CCA | D51: =D50*D48 -> 0 | E51: =E50*E48 -> 0 | F51: =F50*F48 -> 0 | G51: 0 | H51: 0 | I51: 0 | J51: 0 | K51: 0 | L51: 0 | M51: =M50*M48 -> 0 | N51: 0
A52: Closing UCC | D52: =IF((D46-D51)<0, 0, D46-D51) -> 0 | E52: =IF((E46-E51)<0, 0, E46-E51) -> 0 | F52: =IF((F46-F51)<0, 0, F46-F51) -> 0 | G52: 0 | H52: 0 | I52: 0 | J52: 0 | K52: 0 | L52: 0 | M52: =IF((M46-M51)<0, 0, M46-M51) -> 0 | N52: 0
A55: UCC/Class 50 | D55: 2016 | E55: 2017 | F55: 2018 | G55: 2019 | H55: 2020 | I55: 2021 | J55: 2022 | K55: 2023 | L55: 2024 | M55: 2025 | N55: 2026
D56: Audited Actual | E56: Forecast | F56: Forecast | G56: Forecast | H56: Forecast | I56: Forecast | J56: Forecast | K56: Forecast | L56: Forecast | M56: Forecast | N56: Forecast
A58: Opening UCC | D58: 0 | E58: =D61-D66 -> 0 | F58: =E61-E66 -> 0 | G58: 0 | H58: 0 | I58: 0 | J58: 0 | K58: 0 | L58: 0 | M58: =L61-L66 -> 0 | N58: =M61-M66 -> 0
A59: Capital Additions | D59: ='2. MIST Meters Assets_Rate Base'!E91+'2. MIST Meters Assets_Rate Base'!E167 -> 0 | E59: ='2. MIST Meters Assets_Rate Base'!F91+'2. MIST Meters Assets_Rate Base'!F167 -> 0 | F59: ='2. MIST Meters Assets_Rate Base'!G91+'2. MIST Meters Assets_Rate Base'!G167 -> 0 | G59: ='2. MIST Meters Assets_Rate Base'!H91+'2. MIST Meters Assets_Rate Base'!H167 -> 0 | H59: ='2. MIST Meters Assets_Rate Base'!I91+'2. MIST Meters Assets_Rate Base'!I167 -> 0 | I59: ='2. MIST Meters Assets_Rate Base'!J91+'2. MIST Meters Assets_Rate Base'!J167 -> 0 | J59: ='2. MIST Meters Assets_Rate Base'!K91+'2. MIST Meters Assets_Rate Base'!K167 -> 0 | K59: ='2. MIST Meters Assets_Rate Base'!L91+'2. MIST Meters Assets_Rate Base'!L167 -> 0 | L59: ='2. MIST Meters Assets_Rate Base'!M91+'2. MIST Meters Assets_Rate Base'!M167 -> 0 | M59: ='2. MIST Meters Assets_Rate Base'!N91+'2. MIST Meters Assets_Rate Base'!N167 -> 0 | N59: ='2. MIST Meters Assets_Rate Base'!O91+'2. MIST Meters Assets_Rate Base'!O167 -> 0
A60: Retirements/Removals (if applicable)
A61: UCC Before Half Year Rule | D61: =SUM(D58:D59)-D60 -> 0 | E61: =SUM(E58:E59)-E60 -> 0 | F61: =SUM(F58:F59)-F60 -> 0 | G61: 0 | H61: 0 | I61: 0 | J61: 0 | K61: 0 | L61: 0 | M61: =SUM(M58:M59)-M60 -> 0 | N61: 0
A62: Half Year Rule (1/2 Additions - Disposals) | D62: =IF((SUM(D59:D59)/2)<0, 0, SUM(D59:D59)/2) -> 0 | E62: =IF((SUM(E59:E59)/2)<0, 0, SUM(E59:E59)/2) -> 0 | F62: =IF((SUM(F59:F59)/2)<0, 0, SUM(F59:F59)/2) -> 0 | G62: 0 | H62: 0 | I62: 0 | J62: 0 | K62: 0 | L62: 0 | M62: =IF((SUM(M59:M59)/2)<0, 0, SUM(M59:M59)/2) -> 0 | N62: 0
A63: Reduced UCC | D63: =D62+D58 -> 0 | E63: =E62+E58 -> 0 | F63: =F62+F58 -> 0 | G63: 0 | H63: 0 | I63: 0 | J63: 0 | K63: 0 | L63: 0 | M63: =M62+M58 -> 0 | N63: 0
A64: CCA Rate Class | D64: 50 | E64: 50 | F64: 50 | G64: 50 | H64: 50 | I64: 50 | J64: 50 | K64: 50 | L64: 50 | M64: 50 | N64: 50
A65: CCA Rate | D65: 0.55 | E65: 0.55 | F65: 0.55 | G65: 0.55 | H65: 0.55 | I65: 0.55 | J65: 0.55 | K65: 0.55 | L65: 0.55 | M65: 0.55 | N65: 0.55
A66: CCA | D66: =D65*D63 -> 0 | E66: =E65*E63 -> 0 | F66: =F65*F63 -> 0 | G66: 0 | H66: 0 | I66: 0 | J66: 0 | K66: 0 | L66: 0 | M66: =M65*M63 -> 0 | N66: 0
A67: Closing UCC | D67: =IF((D61-D66)<0, 0, D61-D66) -> 0 | E67: =IF((E61-E66)<0, 0, E61-E66) -> 0 | F67: =IF((F61-F66)<0, 0, F61-F66) -> 0 | G67: 0 | H67: 0 | I67: 0 | J67: 0 | K67: 0 | L67: 0 | M67: =IF((M61-M66)<0, 0, M61-M66) -> 0 | N67: 0
A70: UCC/Class 12 | D70: 2016 | E70: 2017 | F70: 2018 | G70: 2019 | H70: 2020 | I70: 2021 | J70: 2022 | K70: 2023 | L70: 2024 | M70: 2025 | N70: 2026
D71: Audited Actual | E71: Forecast | F71: Forecast | G71: Forecast | H71: Forecast | I71: Forecast | J71: Forecast | K71: Forecast | L71: Forecast | M71: Forecast | N71: Forecast
A73: Opening UCC | D73: 0 | E73: =D76-D81 -> 0 | F73: =E76-E81 -> 0 | G73: 0 | H73: 0 | I73: 0 | J73: 0 | K73: 0 | L73: 0 | M73: =L76-L81 -> 0 | N73: =M76-M81 -> 0
A74: Capital Additions | D74: ='2. MIST Meters Assets_Rate Base'!E129 -> 0 | E74: ='2. MIST Meters Assets_Rate Base'!F129 -> 0 | F74: ='2. MIST Meters Assets_Rate Base'!G129 -> 0 | G74: ='2. MIST Meters Assets_Rate Base'!H129 -> 0 | H74: ='2. MIST Meters Assets_Rate Base'!I129 -> 0 | I74: ='2. MIST Meters Assets_Rate Base'!J129 -> 0 | J74: ='2. MIST Meters Assets_Rate Base'!K129 -> 0 | K74: ='2. MIST Meters Assets_Rate Base'!L129 -> 0 | L74: ='2. MIST Meters Assets_Rate Base'!M129 -> 0 | M74: ='2. MIST Meters Assets_Rate Base'!N129 -> 0 | N74: ='2. MIST Meters Assets_Rate Base'!O129 -> 0
A75: Retirements/Removals (if applicable)
A76: UCC Before Half Year Rule | D76: =SUM(D73:D74)-D75 -> 0 | E76: =SUM(E73:E74)-E75 -> 0 | F76: =SUM(F73:F74)-F75 -> 0 | G76: 0 | H76: 0 | I76: 0 | J76: 0 | K76: 0 | L76: 0 | M76: =SUM(M73:M74)-M75 -> 0 | N76: 0
A77: Half Year Rule (1/2 Additions - Disposals) | D77: =IF((SUM(D74:D74)/2)<0, 0, SUM(D74:D74)/2) -> 0 | E77: =IF((SUM(E74:E74)/2)<0, 0, SUM(E74:E74)/2) -> 0 | F77: =IF((SUM(F74:F74)/2)<0, 0, SUM(F74:F74)/2) -> 0 | G77: 0 | H77: 0 | I77: 0 | J77: 0 | K77: 0 | L77: 0 | M77: =IF((SUM(M74:M74)/2)<0, 0, SUM(M74:M74)/2) -> 0 | N77: 0
A78: Reduced UCC | D78: =D77+D73 -> 0 | E78: =E77+E73 -> 0 | F78: =F77+F73 -> 0 | G78: 0 | H78: 0 | I78: 0 | J78: 0 | K78: 0 | L78: 0 | M78: =M77+M73 -> 0 | N78: 0
A79: CCA Rate Class | D79: 12 | E79: 12 | F79: 12 | G79: 12 | H79: 12 | I79: 12 | J79: 12 | K79: 12 | L79: 12 | M79: 12 | N79: 12
A80: CCA Rate | D80: 1 | E80: 1 | F80: 1 | G80: 1 | H80: 1 | I80: 1 | J80: 1 | K80: 1 | L80: 1 | M80: 1 | N80: 1
A81: CCA | D81: =D80*D78 -> 0 | E81: =E80*E78 -> 0 | F81: =F80*F78 -> 0 | G81: 0 | H81: 0 | I81: 0 | J81: 0 | K81: 0 | L81: 0 | M81: =M80*M78 -> 0 | N81: 0
A82: Closing UCC | D82: =IF((D76-D81)<0, 0, D76-D81) -> 0 | E82: =IF((E76-E81)<0, 0, E76-E81) -> 0 | F82: =IF((F76-F81)<0, 0, F76-F81) -> 0 | G82: 0 | H82: 0 | I82: 0 | J82: 0 | K82: 0 | L82: 0 | M82: =IF((M76-M81)<0, 0, M76-M81) -> 0 | N82: 0
B86: Capital Additions | D86: =SUM(D74,D59,D44,D29,D15) -> 1985917.65 | E86: =SUM(E74,E59,E44,E29,E15) -> 41003.37 | F86: =SUM(F74,F59,F44,F29,F15) -> 1666816.05 | G86: 12068.08 | H86: 2248671.41 | I86: 1982424.18 | J86: 1076258.88 | K86: 24588.12 | L86: 0 | M86: =SUM(M74,M59,M44,M29,M15) -> 0 | N86: 0
B88: CCA | D88: =SUM(D81,D66,D51,D36,D22,) -> 79436.706 | E88: =SUM(E81,E66,E51,E36,E22,) -> 154158.6103 | F88: =SUM(F81,F66,F51,F36,F22,) -> 210138.6983 | G88: 260482.9676 | H88: 330073.9098 | I88: 472911.8206 | J88: 557426.1974 | K88: 556865.9816 | L88: 513300.2279 | M88: =SUM(M81,M66,M51,M36,M22,) -> 472236.2096 | N88: 434457.3129

Sheet 4. Fund Adder Revenues
H4: MIST Meters True-up Model
B9: Sheet 4: MIST Meters Fund Adder Revenues
B14: Prescribed Interest Rates | C14: Approved Deferral and Variance Accounts | D14: CWIP | F14: Date | G14: Year | H14: Quarter | J14: Opening Balance (Principal) | K14: Funding Adder Revenues | L14: Interest Rate | M14: Interest | N14: Principal & Interest (Cumm.)
B16: 2016 Q1 | C16: 0.011 | D16: 0.0292 | F16: 2016-01-01 | G16: =YEAR(F16) -> 2016 | H16: =IF(MONTH(F16)=0,"",IF(MONTH(F16)<4,"Q1",IF(MONTH(F16)<7,"Q2",IF(MONTH(F16)<10,"Q3","Q4")))) -> Q1 | I16: =CONCATENATE(G16," ",H16) -> 2016 Q1 | J16: 0 | L16: =VLOOKUP(I16,$B$14:$D$51,2) -> 0.011 | M16: =ROUND(J16*L16/12,2) -> 0 | N16: =K16+M16 -> 0
B17: 2016 Q2 | C17: 0.011 | D17: 0.0292 | F17: 2016-02-01 | G17: =YEAR(F17) -> 2016 | H17: =IF(MONTH(F17)=0,"",IF(MONTH(F17)<4,"Q1",IF(MONTH(F17)<7,"Q2",IF(MONTH(F17)<10,"Q3","Q4")))) -> Q1 | I17: =CONCATENATE(G17," ",H17) -> 2016 Q1 | J17: =J16+K16 -> 0 | L17: 0.011 | M17: =ROUND(J17*L17/12,2) -> 0 | N17: =N16+K17+M17 -> 0
B18: 2016 Q3 | C18: 0.011 | D18: 0.0292 | F18: 2016-03-01 | G18: 2016 | H18: Q1 | I18: 2016 Q1 | J18: =J17+K17 -> 0 | L18: 0.011 | M18: 0 | N18: =N17+K18+M18 -> 0
B19: 2016 Q4 | C19: 0.011 | D19: 0.0246 | F19: 2016-04-01 | G19: 2016 | H19: Q2 | I19: 2016 Q2 | J19: 0 | L19: 0.011 | M19: 0 | N19: 0
B20: 2017 Q1 | C20: 0.011 | D20: 0.0281 | F20: 2016-05-01 | G20: 2016 | H20: Q2 | I20: 2016 Q2 | J20: 0 | L20: 0.011 | M20: 0 | N20: 0
B21: 2017 Q2 | C21: 0.011 | D21: 0.0281 | F21: 2016-06-01 | G21: 2016 | H21: Q2 | I21: 2016 Q2 | J21: 0 | L21: 0.011 | M21: 0 | N21: 0
B22: 2017 Q3 | C22: 0.011 | D22: 0.0253 | F22: 2016-07-01 | G22: 2016 | H22: Q3 | I22: 2016 Q3 | J22: 0 | L22: 0.011 | M22: 0 | N22: 0
B23: 2017 Q4 | C23: 0.015 | D23: 0.0299 | F23: 2016-08-01 | G23: 2016 | H23: Q3 | I23: 2016 Q3 | J23: 0 | L23: 0.011 | M23: 0 | N23: 0
B24: 2018 Q1 | C24: 0.015 | D24: 0.0299 | F24: 2016-09-01 | G24: 2016 | H24: Q3 | I24: 2016 Q3 | J24: 0 | L24: 0.011 | M24: 0 | N24: 0
B25: 2018 Q2 | C25: 0.0189 | D25: 0.0335 | F25: 2016-10-01 | G25: 2016 | H25: Q4 | I25: 2016 Q4 | J25: 0 | L25: 0.011 | M25: 0 | N25: 0
B26: 2018 Q3 | C26: 0.0189 | D26: 0.0335 | F26: 2016-11-01 | G26: 2016 | H26: Q4 | I26: 2016 Q4 | J26: 0 | L26: 0.011 | M26: 0 | N26: 0
B27: 2018 Q4 | C27: 0.0217 | D27: 0.0335 | F27: 2016-12-01 | G27: 2016 | H27: Q4 | I27: 2016 Q4 | J27: 0 | L27: 0.011 | M27: 0 | N27: 0
B28: 2019 Q1 | C28: 0.0245 | D28: 0.0382 | F28: 2017-01-01 | G28: 2017 | H28: Q1 | I28: 2017 Q1 | J28: 0 | L28: 0.011 | M28: 0 | N28: 0
B29: 2019 Q2 | C29: 0.0218 | D29: 0.0339 | F29: 2017-02-01 | G29: 2017 | H29: Q1 | I29: 2017 Q1 | J29: 0 | L29: 0.011 | M29: 0 | N29: 0
B30: 2019 Q3 | C30: 0.0218 | D30: 0.0288 | F30: 2017-03-01 | G30: 2017 | H30: Q1 | I30: 2017 Q1 | J30: 0 | L30: 0.011 | M30: 0 | N30: 0
B31: 2019 Q4 | C31: 0.0218 | D31: 0.0288 | F31: 2017-04-01 | G31: 2017 | H31: Q2 | I31: 2017 Q2 | J31: 0 | L31: 0.011 | M31: 0 | N31: 0
B32: 2020 Q1 | C32: 0.0218 | D32: 0.0288 | F32: 2017-05-01 | G32: 2017 | H32: Q2 | I32: 2017 Q2 | J32: 0 | L32: 0.011 | M32: 0 | N32: 0
B33: 2020 Q2 | C33: 0.0218 | D33: 0.0248 | F33: 2017-06-01 | G33: 2017 | H33: Q2 | I33: 2017 Q2 | J33: 0 | L33: 0.011 | M33: 0 | N33: 0
B34: 2020 Q3 | C34: 0.0057 | D34: 0.0248 | F34: 2017-07-01 | G34: 2017 | H34: Q3 | I34: 2017 Q3 | J34: 0 | L34: 0.011 | M34: 0 | N34: 0
B35: 2020 Q4 | C35: 0.0057 | D35: 0.0203 | F35: 2017-08-01 | G35: 2017 | H35: Q3 | I35: 2017 Q3 | J35: 0 | L35: 0.011 | M35: 0 | N35: 0
B36: 2021 Q1 | C36: 0.0057 | D36: 0.0203 | F36: 2017-09-01 | G36: 2017 | H36: Q3 | I36: 2017 Q3 | J36: 0 | L36: 0.011 | M36: 0 | N36: 0
B37: 2021 Q2 | C37: 0.0057 | D37: 0.0229 | F37: 2017-10-01 | G37: 2017 | H37: Q4 | I37: 2017 Q4 | J37: 0 | L37: 0.015 | M37: 0 | N37: 0
B38: 2021 Q3 | C38: 0.0057 | D38: 0.0229 | F38: 2017-11-01 | G38: 2017 | H38: Q4 | I38: 2017 Q4 | J38: 0 | L38: 0.015 | M38: 0 | N38: 0
B39: 2021 Q4 | C39: 0.0057 | D39: 0.0229 | F39: 2017-12-01 | G39: 2017 | H39: Q4 | I39: 2017 Q4 | J39: 0 | L39: 0.015 | M39: 0 | N39: 0
B40: 2022 Q1 | C40: 0.0057 | D40: 0.0272 | F40: 2018-01-01 | G40: =YEAR(F40) -> 2018 | H40: =IF(MONTH(F40)=0,"",IF(MONTH(F40)<4,"Q1",IF(MONTH(F40)<7,"Q2",IF(MONTH(F40)<10,"Q3","Q4")))) -> Q1 | I40: =CONCATENATE(G40," ",H40) -> 2018 Q1 | J40: 0 | L40: =VLOOKUP(I40,$B$14:$D$51,2) -> 0.015 | M40: =ROUND(J40*L40/12,2) -> 0 | N40: =K40+M40 -> 0
B41: 2022 Q2 | C41: 0.0102 | D41: 0.0331 | F41: 2018-02-01 | G41: =YEAR(F41) -> 2018 | H41: =IF(MONTH(F41)=0,"",IF(MONTH(F41)<4,"Q1",IF(MONTH(F41)<7,"Q2",IF(MONTH(F41)<10,"Q3","Q4")))) -> Q1 | I41: =CONCATENATE(G41," ",H41) -> 2018 Q1 | J41: =J40+K40 -> 0 | L41: 0.015 | M41: =ROUND(J41*L41/12,2) -> 0 | N41: =N40+K41+M41 -> 0
B42: 2022 Q3 | C42: 0.022 | D42: 0.0466 | F42: 2018-03-01 | G42: 2018 | H42: Q1 | I42: 2018 Q1 | J42: =J41+K41 -> 0 | L42: 0.015 | M42: 0 | N42: =N41+K42+M42 -> 0
B43: 2022 Q4 | C43: 0.0387 | D43: 0.0501 | F43: 2018-04-01 | G43: 2018 | H43: Q2 | I43: 2018 Q2 | J43: 0 | L43: 0.0189 | M43: 0 | N43: 0
B44: 2023 Q1 | C44: 0.0473 | D44: 0.0501 | F44: 2018-05-01 | G44: 2018 | H44: Q2 | I44: 2018 Q2 | J44: 0 | L44: 0.0189 | M44: 0 | N44: 0
B45: 2023 Q2 | C45: 0.0498 | D45: 0.0501 | F45: 2018-06-01 | G45: 2018 | H45: Q2 | I45: 2018 Q2 | J45: 0 | L45: 0.0189 | M45: 0 | N45: 0
B46: 2023 Q3 | C46: 0.0498 | D46: 0.0501 | F46: 2018-07-01 | G46: 2018 | H46: Q3 | I46: 2018 Q3 | J46: 0 | L46: 0.0189 | M46: 0 | N46: 0
B47: 2023 Q4 | C47: 0.0549 | D47: 0.0548 | F47: 2018-08-01 | G47: 2018 | H47: Q3 | I47: 2018 Q3 | J47: 0 | L47: 0.0189 | M47: 0 | N47: 0
B48: 2024 Q1 | C48: 0.0549 | D48: 0.0548 | F48: 2018-09-01 | G48: 2018 | H48: Q3 | I48: 2018 Q3 | J48: 0 | L48: 0.0189 | M48: 0 | N48: 0
B49: 2024 Q2 | C49: 0.0549 | D49: 0.0598 | F49: 2018-10-01 | G49: 2018 | H49: Q4 | I49: 2018 Q4 | J49: 0 | L49: 0.0217 | M49: 0 | N49: 0
B50: 2024 Q3 | C50: 0.052 | D50: 0.0598 | F50: 2018-11-01 | G50: 2018 | H50: Q4 | I50: 2018 Q4 | J50: 0 | L50: 0.0217 | M50: 0 | N50: 0
B51: 2024 Q4 | C51: 0.044 | D51: 0.0455 | F51: 2018-12-01 | G51: 2018 | H51: Q4 | I51: 2018 Q4 | J51: 0 | L51: 0.0217 | M51: 0 | N51: 0
B52: 2025 Q1 | C52: 0.0364 | D52: 0.0423 | F52: 2019-01-01 | G52: 2019 | H52: Q1 | I52: 2019 Q1 | J52: 0 | L52: 0.0245 | M52: 0 | N52: 0
B53: 2025 Q2 | C53: 0.0316 | D53: 0.0423 | F53: 2019-02-01 | G53: 2019 | H53: Q1 | I53: 2019 Q1 | J53: 0 | L53: 0.0245 | M53: 0 | N53: 0
B54: 2025 Q3 | C54: =+C53 -> 0.0316 | D54: 0.0423 | F54: 2019-03-01 | G54: 2019 | H54: Q1 | I54: 2019 Q1 | J54: 0 | L54: 0.0245 | M54: 0 | N54: 0
B55: 2025 Q4 | C55: =+C54 -> 0.0316 | D55: 0.0423 | F55: 2019-04-01 | G55: 2019 | H55: Q2 | I55: 2019 Q2 | J55: 0 | L55: 0.0218 | M55: 0 | N55: 0
B56: 2026 Q1 | C56: 0.0316 | D56: 0.0423 | F56: 2019-05-01 | G56: 2019 | H56: Q2 | I56: 2019 Q2 | J56: 0 | L56: 0.0218 | M56: 0 | N56: 0
B57: 2026 Q2 | C57: 0.0316 | D57: 0.0423 | F57: 2019-06-01 | G57: 2019 | H57: Q2 | I57: 2019 Q2 | J57: 0 | L57: 0.0218 | M57: 0 | N57: 0
B58: 2026 Q3 | C58: 0.0316 | D58: 0.0423 | F58: 2019-07-01 | G58: 2019 | H58: Q3 | I58: 2019 Q3 | J58: 0 | L58: 0.0218 | M58: 0 | N58: 0
B59: 2026 Q4 | C59: 0.0316 | D59: 0.0423 | F59: 2019-08-01 | G59: 2019 | H59: Q3 | I59: 2019 Q3 | J59: 0 | L59: 0.0218 | M59: 0 | N59: 0
F60: 2019-09-01 | G60: 2019 | H60: Q3 | I60: 2019 Q3 | J60: 0 | L60: 0.0218 | M60: 0 | N60: 0
F61: 2019-10-01 | G61: 2019 | H61: Q4 | I61: 2019 Q4 | J61: 0 | L61: 0.0218 | M61: 0 | N61: 0
F62: 2019-11-01 | G62: 2019 | H62: Q4 | I62: 2019 Q4 | J62: 0 | L62: 0.0218 | M62: 0 | N62: 0
F63: 2019-12-01 | G63: 2019 | H63: Q4 | I63: 2019 Q4 | J63: 0 | L63: 0.0218 | M63: 0 | N63: 0
F64: 2020-01-01 | G64: =YEAR(F64) -> 2020 | H64: =IF(MONTH(F64)=0,"",IF(MONTH(F64)<4,"Q1",IF(MONTH(F64)<7,"Q2",IF(MONTH(F64)<10,"Q3","Q4")))) -> Q1 | I64: =CONCATENATE(G64," ",H64) -> 2020 Q1 | J64: 0 | L64: =VLOOKUP(I64,$B$14:$D$51,2) -> 0.0218 | M64: =ROUND(J64*L64/12,2) -> 0 | N64: 0
F65: 2020-02-01 | G65: =YEAR(F65) -> 2020 | H65: =IF(MONTH(F65)=0,"",IF(MONTH(F65)<4,"Q1",IF(MONTH(F65)<7,"Q2",IF(MONTH(F65)<10,"Q3","Q4")))) -> Q1 | I65: =CONCATENATE(G65," ",H65) -> 2020 Q1 | J65: 0 | L65: =VLOOKUP(I65,$B$14:$D$51,2) -> 0.0218 | M65: =ROUND(J65*L65/12,2) -> 0 | N65: 0
F66: 2020-03-01 | G66: =YEAR(F66) -> 2020 | H66: =IF(MONTH(F66)=0,"",IF(MONTH(F66)<4,"Q1",IF(MONTH(F66)<7,"Q2",IF(MONTH(F66)<10,"Q3","Q4")))) -> Q1 | I66: =CONCATENATE(G66," ",H66) -> 2020 Q1 | J66: 0 | L66: =VLOOKUP(I66,$B$14:$D$51,2) -> 0.0218 | M66: =ROUND(J66*L66/12,2) -> 0 | N66: 0
F67: 2020-04-01 | G67: =YEAR(F67) -> 2020 | H67: =IF(MONTH(F67)=0,"",IF(MONTH(F67)<4,"Q1",IF(MONTH(F67)<7,"Q2",IF(MONTH(F67)<10,"Q3","Q4")))) -> Q2 | I67: =CONCATENATE(G67," ",H67) -> 2020 Q2 | J67: 0 | L67: =VLOOKUP(I67,$B$14:$D$51,2) -> 0.0218 | M67: =ROUND(J67*L67/12,2) -> 0 | N67: 0
F68: 2020-05-01 | G68: =YEAR(F68) -> 2020 | H68: =IF(MONTH(F68)=0,"",IF(MONTH(F68)<4,"Q1",IF(MONTH(F68)<7,"Q2",IF(MONTH(F68)<10,"Q3","Q4")))) -> Q2 | I68: =CONCATENATE(G68," ",H68) -> 2020 Q2 | J68: 0 | L68: =VLOOKUP(I68,$B$14:$D$51,2) -> 0.0218 | M68: =ROUND(J68*L68/12,2) -> 0 | N68: 0
F69: 2020-06-01 | G69: =YEAR(F69) -> 2020 | H69: =IF(MONTH(F69)=0,"",IF(MONTH(F69)<4,"Q1",IF(MONTH(F69)<7,"Q2",IF(MONTH(F69)<10,"Q3","Q4")))) -> Q2 | I69: =CONCATENATE(G69," ",H69) -> 2020 Q2 | J69: 0 | L69: =VLOOKUP(I69,$B$14:$D$51,2) -> 0.0218 | M69: =ROUND(J69*L69/12,2) -> 0 | N69: 0
F70: 2020-07-01 | G70: =YEAR(F70) -> 2020 | H70: =IF(MONTH(F70)=0,"",IF(MONTH(F70)<4,"Q1",IF(MONTH(F70)<7,"Q2",IF(MONTH(F70)<10,"Q3","Q4")))) -> Q3 | I70: =CONCATENATE(G70," ",H70) -> 2020 Q3 | J70: 0 | L70: =VLOOKUP(I70,$B$14:$D$51,2) -> 0.0057 | M70: =ROUND(J70*L70/12,2) -> 0 | N70: 0
F71: 2020-08-01 | G71: =YEAR(F71) -> 2020 | H71: =IF(MONTH(F71)=0,"",IF(MONTH(F71)<4,"Q1",IF(MONTH(F71)<7,"Q2",IF(MONTH(F71)<10,"Q3","Q4")))) -> Q3 | I71: =CONCATENATE(G71," ",H71) -> 2020 Q3 | J71: 0 | L71: =VLOOKUP(I71,$B$14:$D$51,2) -> 0.0057 | M71: =ROUND(J71*L71/12,2) -> 0 | N71: 0
F72: 2020-09-01 | G72: =YEAR(F72) -> 2020 | H72: =IF(MONTH(F72)=0,"",IF(MONTH(F72)<4,"Q1",IF(MONTH(F72)<7,"Q2",IF(MONTH(F72)<10,"Q3","Q4")))) -> Q3 | I72: =CONCATENATE(G72," ",H72) -> 2020 Q3 | J72: 0 | L72: =VLOOKUP(I72,$B$14:$D$51,2) -> 0.0057 | M72: =ROUND(J72*L72/12,2) -> 0 | N72: 0
F73: 2020-10-01 | G73: =YEAR(F73) -> 2020 | H73: =IF(MONTH(F73)=0,"",IF(MONTH(F73)<4,"Q1",IF(MONTH(F73)<7,"Q2",IF(MONTH(F73)<10,"Q3","Q4")))) -> Q4 | I73: =CONCATENATE(G73," ",H73) -> 2020 Q4 | J73: 0 | L73: =VLOOKUP(I73,$B$14:$D$51,2) -> 0.0057 | M73: =ROUND(J73*L73/12,2) -> 0 | N73: 0
F74: 2020-11-01 | G74: =YEAR(F74) -> 2020 | H74: =IF(MONTH(F74)=0,"",IF(MONTH(F74)<4,"Q1",IF(MONTH(F74)<7,"Q2",IF(MONTH(F74)<10,"Q3","Q4")))) -> Q4 | I74: =CONCATENATE(G74," ",H74) -> 2020 Q4 | J74: 0 | L74: =VLOOKUP(I74,$B$14:$D$51,2) -> 0.0057 | M74: =ROUND(J74*L74/12,2) -> 0 | N74: 0
F75: 2020-12-01 | G75: =YEAR(F75) -> 2020 | H75: =IF(MONTH(F75)=0,"",IF(MONTH(F75)<4,"Q1",IF(MONTH(F75)<7,"Q2",IF(MONTH(F75)<10,"Q3","Q4")))) -> Q4 | I75: =CONCATENATE(G75," ",H75) -> 2020 Q4 | J75: 0 | L75: =VLOOKUP(I75,$B$14:$D$51,2) -> 0.0057 | M75: =ROUND(J75*L75/12,2) -> 0 | N75: 0
F76: 2021-01-01 | G76: =YEAR(F76) -> 2021 | H76: =IF(MONTH(F76)=0,"",IF(MONTH(F76)<4,"Q1",IF(MONTH(F76)<7,"Q2",IF(MONTH(F76)<10,"Q3","Q4")))) -> Q1 | I76: =CONCATENATE(G76," ",H76) -> 2021 Q1 | J76: 0 | L76: =VLOOKUP(I76,$B$14:$D$51,2) -> 0.0057 | M76: =ROUND(J76*L76/12,2) -> 0 | N76: 0
F77: 2021-02-01 | G77: =YEAR(F77) -> 2021 | H77: =IF(MONTH(F77)=0,"",IF(MONTH(F77)<4,"Q1",IF(MONTH(F77)<7,"Q2",IF(MONTH(F77)<10,"Q3","Q4")))) -> Q1 | I77: =CONCATENATE(G77," ",H77) -> 2021 Q1 | J77: 0 | L77: =VLOOKUP(I77,$B$14:$D$51,2) -> 0.0057 | M77: =ROUND(J77*L77/12,2) -> 0 | N77: 0
F78: 2021-03-01 | G78: =YEAR(F78) -> 2021 | H78: =IF(MONTH(F78)=0,"",IF(MONTH(F78)<4,"Q1",IF(MONTH(F78)<7,"Q2",IF(MONTH(F78)<10,"Q3","Q4")))) -> Q1 | I78: =CONCATENATE(G78," ",H78) -> 2021 Q1 | J78: 0 | L78: =VLOOKUP(I78,$B$14:$D$51,2) -> 0.0057 | M78: =ROUND(J78*L78/12,2) -> 0 | N78: 0
F79: 2021-04-01 | G79: =YEAR(F79) -> 2021 | H79: =IF(MONTH(F79)=0,"",IF(MONTH(F79)<4,"Q1",IF(MONTH(F79)<7,"Q2",IF(MONTH(F79)<10,"Q3","Q4")))) -> Q2 | I79: =CONCATENATE(G79," ",H79) -> 2021 Q2 | J79: 0 | L79: =VLOOKUP(I79,$B$14:$D$51,2) -> 0.0057 | M79: =ROUND(J79*L79/12,2) -> 0 | N79: 0
F80: 2021-05-01 | G80: =YEAR(F80) -> 2021 | H80: =IF(MONTH(F80)=0,"",IF(MONTH(F80)<4,"Q1",IF(MONTH(F80)<7,"Q2",IF(MONTH(F80)<10,"Q3","Q4")))) -> Q2 | I80: =CONCATENATE(G80," ",H80) -> 2021 Q2 | J80: 0 | L80: =VLOOKUP(I80,$B$14:$D$51,2) -> 0.0057 | M80: =ROUND(J80*L80/12,2) -> 0 | N80: 0
F81: 2021-06-01 | G81: =YEAR(F81) -> 2021 | H81: =IF(MONTH(F81)=0,"",IF(MONTH(F81)<4,"Q1",IF(MONTH(F81)<7,"Q2",IF(MONTH(F81)<10,"Q3","Q4")))) -> Q2 | I81: =CONCATENATE(G81," ",H81) -> 2021 Q2 | J81: 0 | L81: =VLOOKUP(I81,$B$14:$D$51,2) -> 0.0057 | M81: =ROUND(J81*L81/12,2) -> 0 | N81: 0
F82: 2021-07-01 | G82: =YEAR(F82) -> 2021 | H82: =IF(MONTH(F82)=0,"",IF(MONTH(F82)<4,"Q1",IF(MONTH(F82)<7,"Q2",IF(MONTH(F82)<10,"Q3","Q4")))) -> Q3 | I82: =CONCATENATE(G82," ",H82) -> 2021 Q3 | J82: 0 | L82: =VLOOKUP(I82,$B$14:$D$51,2) -> 0.0057 | M82: =ROUND(J82*L82/12,2) -> 0 | N82: 0
F83: 2021-08-01 | G83: =YEAR(F83) -> 2021 | H83: =IF(MONTH(F83)=0,"",IF(MONTH(F83)<4,"Q1",IF(MONTH(F83)<7,"Q2",IF(MONTH(F83)<10,"Q3","Q4")))) -> Q3 | I83: =CONCATENATE(G83," ",H83) -> 2021 Q3 | J83: 0 | L83: =VLOOKUP(I83,$B$14:$D$51,2) -> 0.0057 | M83: =ROUND(J83*L83/12,2) -> 0 | N83: 0
F84: 2021-09-01 | G84: =YEAR(F84) -> 2021 | H84: =IF(MONTH(F84)=0,"",IF(MONTH(F84)<4,"Q1",IF(MONTH(F84)<7,"Q2",IF(MONTH(F84)<10,"Q3","Q4")))) -> Q3 | I84: =CONCATENATE(G84," ",H84) -> 2021 Q3 | J84: =J83+K83 -> 0 | L84: =VLOOKUP(I84,$B$14:$D$51,2) -> 0.0057 | M84: =ROUND(J84*L84/12,2) -> 0 | N84: =N83+K84+M84 -> 0
F85: 2021-10-01 | G85: 2021 | H85: Q4 | I85: 2021 Q4 | J85: 0 | L85: 0.0057 | M85: 0 | N85: 0
F86: 2021-11-01 | G86: 2021 | H86: Q4 | I86: 2021 Q4 | J86: 0 | L86: 0.0057 | M86: 0 | N86: 0
F87: 2021-12-01 | G87: 2021 | H87: Q4 | I87: 2021 Q4 | J87: 0 | L87: 0.0057 | M87: 0 | N87: 0
F88: 2022-01-01 | G88: 2022 | H88: Q1 | I88: 2022 Q1 | J88: 0 | L88: 0.0057 | M88: 0 | N88: 0
F89: 2022-02-01 | G89: 2022 | H89: Q1 | I89: 2022 Q1 | J89: 0 | L89: 0.0057 | M89: 0 | N89: 0
F90: 2022-03-01 | G90: 2022 | H90: Q1 | I90: 2022 Q1 | J90: 0 | L90: 0.0057 | M90: 0 | N90: 0
F91: 2022-04-01 | G91: 2022 | H91: Q2 | I91: 2022 Q2 | J91: 0 | L91: 0.0102 | M91: 0 | N91: 0
F92: 2022-05-01 | G92: 2022 | H92: Q2 | I92: 2022 Q2 | J92: 0 | L92: 0.0102 | M92: 0 | N92: 0
F93: 2022-06-01 | G93: 2022 | H93: Q2 | I93: 2022 Q2 | J93: 0 | L93: 0.0102 | M93: 0 | N93: 0
F94: 2022-07-01 | G94: 2022 | H94: Q3 | I94: 2022 Q3 | J94: 0 | L94: 0.022 | M94: 0 | N94: 0
F95: 2022-08-01 | G95: 2022 | H95: Q3 | I95: 2022 Q3 | J95: 0 | L95: 0.022 | M95: 0 | N95: 0
F96: 2022-09-01 | G96: 2022 | H96: Q3 | I96: 2022 Q3 | J96: 0 | L96: 0.022 | M96: 0 | N96: 0
F97: 2022-10-01 | G97: 2022 | H97: Q4 | I97: 2022 Q4 | J97: 0 | L97: 0.0387 | M97: 0 | N97: 0
F98: 2022-11-01 | G98: 2022 | H98: Q4 | I98: 2022 Q4 | J98: 0 | L98: 0.0387 | M98: 0 | N98: 0
F99: 2022-12-01 | G99: 2022 | H99: Q4 | I99: 2022 Q4 | J99: 0 | L99: 0.0387 | M99: 0 | N99: 0
F100: 2023-01-01 | G100: 2023 | H100: Q1 | I100: 2023 Q1 | J100: 0 | L100: 0.0473 | M100: 0 | N100: 0
F101: 2023-02-01 | G101: 2023 | H101: Q1 | I101: 2023 Q1 | J101: 0 | L101: 0.0473 | M101: 0 | N101: 0
F102: 2023-03-01 | G102: 2023 | H102: Q1 | I102: 2023 Q1 | J102: 0 | L102: 0.0473 | M102: 0 | N102: 0
F103: 2023-04-01 | G103: 2023 | H103: Q2 | I103: 2023 Q2 | J103: 0 | L103: 0.0498 | M103: 0 | N103: 0
F104: 2023-05-01 | G104: 2023 | H104: Q2 | I104: 2023 Q2 | J104: 0 | L104: 0.0498 | M104: 0 | N104: 0
F105: 2023-06-01 | G105: 2023 | H105: Q2 | I105: 2023 Q2 | J105: 0 | L105: 0.0498 | M105: 0 | N105: 0
F106: 2023-07-01 | G106: 2023 | H106: Q3 | I106: 2023 Q3 | J106: 0 | L106: 0.0498 | M106: 0 | N106: 0
F107: 2023-08-01 | G107: 2023 | H107: Q3 | I107: 2023 Q3 | J107: 0 | L107: 0.0498 | M107: 0 | N107: 0
F108: 2023-09-01 | G108: 2023 | H108: Q3 | I108: 2023 Q3 | J108: 0 | L108: 0.0498 | M108: 0 | N108: 0
F109: 2023-10-01 | G109: 2023 | H109: Q4 | I109: 2023 Q4 | J109: 0 | L109: 0.0549 | M109: 0 | N109: 0
F110: 2023-11-01 | G110: 2023 | H110: Q4 | I110: 2023 Q4 | J110: 0 | L110: 0.0549 | M110: 0 | N110: 0
F111: 2023-12-01 | G111: 2023 | H111: Q4 | I111: 2023 Q4 | J111: 0 | L111: 0.0549 | M111: 0 | N111: 0
F112: 2024-01-01 | G112: 2024 | H112: Q1 | I112: 2024 Q1 | J112: 0 | L112: 0.0549 | M112: 0 | N112: 0
F113: 2024-02-01 | G113: 2024 | H113: Q1 | I113: 2024 Q1 | J113: 0 | L113: 0.0549 | M113: 0 | N113: 0
F114: 2024-03-01 | G114: 2024 | H114: Q1 | I114: 2024 Q1 | J114: 0 | L114: 0.0549 | M114: 0 | N114: 0
F115: 2024-04-01 | G115: 2024 | H115: Q2 | I115: 2024 Q2 | J115: 0 | L115: 0.0549 | M115: 0 | N115: 0
F116: 2024-05-01 | G116: 2024 | H116: Q2 | I116: 2024 Q2 | J116: 0 | L116: 0.0549 | M116: 0 | N116: 0
F117: 2024-06-01 | G117: 2024 | H117: Q2 | I117: 2024 Q2 | J117: 0 | L117: 0.0549 | M117: 0 | N117: 0
F118: 2024-07-01 | G118: 2024 | H118: Q3 | I118: 2024 Q3 | J118: 0 | L118: 0.052 | M118: 0 | N118: 0
F119: 2024-08-01 | G119: 2024 | H119: Q3 | I119: 2024 Q3 | J119: 0 | L119: 0.052 | M119: 0 | N119: 0
F120: 2024-09-01 | G120: 2024 | H120: Q3 | I120: 2024 Q3 | J120: 0 | L120: 0.052 | M120: 0 | N120: 0
F121: 2024-10-01 | G121: 2024 | H121: Q4 | I121: 2024 Q4 | J121: 0 | L121: 0.044 | M121: 0 | N121: 0
F122: 2024-11-01 | G122: 2024 | H122: Q4 | I122: 2024 Q4 | J122: 0 | L122: 0.044 | M122: 0 | N122: 0
F123: 2024-12-01 | G123: 2024 | H123: Q4 | I123: 2024 Q4 | J123: 0 | L123: 0.044 | M123: 0 | N123: 0
F124: 2025-01-01 | G124: 2025 | H124: Q1 | I124: 2025 Q1 | J124: 0 | L124: 0.044 | M124: 0 | N124: 0
F125: 2025-02-01 | G125: 2025 | H125: Q1 | I125: 2025 Q1 | J125: 0 | L125: 0.044 | M125: 0 | N125: 0
F126: 2025-03-01 | G126: 2025 | H126: Q1 | I126: 2025 Q1 | J126: 0 | L126: 0.044 | M126: 0 | N126: 0
F127: 2025-04-01 | G127: 2025 | H127: Q2 | I127: 2025 Q2 | J127: 0 | L127: 0.044 | M127: 0 | N127: 0
F128: 2025-05-01 | G128: 2025 | H128: Q2 | I128: 2025 Q2 | J128: 0 | L128: 0.044 | M128: 0 | N128: 0
F129: 2025-06-01 | G129: 2025 | H129: Q2 | I129: 2025 Q2 | J129: 0 | L129: 0.044 | M129: 0 | N129: 0
F130: 2025-07-01 | G130: 2025 | H130: Q3 | I130: 2025 Q3 | J130: 0 | L130: 0.044 | M130: 0 | N130: 0
F131: 2025-08-01 | G131: 2025 | H131: Q3 | I131: 2025 Q3 | J131: 0 | L131: 0.044 | M131: 0 | N131: 0
F132: 2025-09-01 | G132: 2025 | H132: Q3 | I132: 2025 Q3 | J132: 0 | L132: 0.044 | M132: 0 | N132: 0
F133: 2025-10-01 | G133: 2025 | H133: Q4 | I133: 2025 Q4 | J133: 0 | L133: 0.044 | M133: 0 | N133: 0
F134: 2025-11-01 | G134: 2025 | H134: Q4 | I134: 2025 Q4 | J134: 0 | L134: 0.044 | M134: 0 | N134: 0
F135: 2025-12-01 | G135: 2025 | H135: Q4 | I135: 2025 Q4 | J135: 0 | L135: 0.044 | M135: 0 | N135: 0
F136: 2026-01-01 | G136: 2026 | H136: Q1 | I136: 2026 Q1 | J136: 0 | L136: 0.044 | M136: 0 | N136: 0
F137: 2026-02-01 | G137: 2026 | H137: Q1 | I137: 2026 Q1 | J137: 0 | L137: 0.044 | M137: 0 | N137: 0
F138: 2026-03-01 | G138: 2026 | H138: Q1 | I138: 2026 Q1 | J138: 0 | L138: 0.044 | M138: 0 | N138: 0
F139: 2026-04-01 | G139: 2026 | H139: Q2 | I139: 2026 Q2 | J139: 0 | L139: 0.044 | M139: 0 | N139: 0
F140: 2026-05-01 | G140: 2026 | H140: Q2 | I140: 2026 Q2 | J140: 0 | L140: 0.044 | M140: 0 | N140: 0
F141: 2026-06-01 | G141: 2026 | H141: Q2 | I141: 2026 Q2 | J141: 0 | L141: 0.044 | M141: 0 | N141: 0
F142: 2026-07-01 | G142: 2026 | H142: Q3 | I142: 2026 Q3 | J142: 0 | L142: 0.044 | M142: 0 | N142: 0
F143: 2026-08-01 | G143: 2026 | H143: Q3 | I143: 2026 Q3 | J143: 0 | L143: 0.044 | M143: 0 | N143: 0
F144: 2026-09-01 | G144: 2026 | H144: Q3 | I144: 2026 Q3 | J144: 0 | L144: 0.044 | M144: 0 | N144: 0
F145: 2026-10-01 | G145: 2026 | H145: Q4 | I145: 2026 Q4 | J145: 0 | L145: 0.044 | M145: 0 | N145: 0
F146: 2026-11-01 | G146: 2026 | H146: Q4 | I146: 2026 Q4 | J146: 0 | L146: 0.044 | M146: 0 | N146: 0
F147: 2026-12-01 | G147: 2026 | H147: Q4 | I147: 2026 Q4 | J147: 0 | L147: =VLOOKUP(I147,$B$14:$D$51,2) -> 0.044 | M147: 0 | N147: 0
F149: Total Funding Adder Revenues Collected | K149: =SUM(K16:K39) -> 0 | M149: =SUM(M16:M39) -> 0 | N149: =K149+M149 -> 0
B151: NOTE: Funding adder revenues are up to December 2014 actuals

Sheet 5. MIST Meters_IRR
B4: MIST Meters True-up Model
B9: Sheet 5: Revenue Requirement Calculations
B14: Return on Rate Base | E14: 2016 | H14: 2017 | K14: 2018 | N14: 2019 | Q14: 2020 | T14: 2021 | W14: 2022 | Z14: 2023 | AC14: 2024 | AF14: 2025 | AI14: 2026
B15: Average Fixed Assets | E15: ='2. MIST Meters Assets_Rate Base'!E268-'2. MIST Meters Assets_Rate Base'!E269 -> 992958.825 | H15: ='2. MIST Meters Assets_Rate Base'!F268-'2. MIST Meters Assets_Rate Base'!F269 -> 2091439.76 | K15: ='2. MIST Meters Assets_Rate Base'!G268-'2. MIST Meters Assets_Rate Base'!G269 -> 2771613.65 | N15: ='2. MIST Meters Assets_Rate Base'!H268-'2. MIST Meters Assets_Rate Base'!H269 -> 3422583.28 | Q15: ='2. MIST Meters Assets_Rate Base'!I268-'2. MIST Meters Assets_Rate Base'!I269 -> 4443036.45 | T15: ='2. MIST Meters Assets_Rate Base'!J268-'2. MIST Meters Assets_Rate Base'!J269 -> 6489101.56 | W15: ='2. MIST Meters Assets_Rate Base'!K268-'2. MIST Meters Assets_Rate Base'!K269 -> 7879956.475 | Z15: ='2. MIST Meters Assets_Rate Base'!L268-'2. MIST Meters Assets_Rate Base'!L269 -> 8119312.685 | AC15: ='2. MIST Meters Assets_Rate Base'!M268-'2. MIST Meters Assets_Rate Base'!M269 -> 7779484.56 | AF15: ='2. MIST Meters Assets_Rate Base'!N268-'2. MIST Meters Assets_Rate Base'!N269 -> 7426531.9 | AI15: ='2. MIST Meters Assets_Rate Base'!O268-'2. MIST Meters Assets_Rate Base'!O269 -> 7073579.24 | AJ15: B
B16: Depreciation Expense | E16: =-'2. MIST Meters Assets_Rate Base'!E269 -> 0 | H16: =-'2. MIST Meters Assets_Rate Base'!F269 -> 170040.85 | K16: =-'2. MIST Meters Assets_Rate Base'!G269 -> 162650.91 | N16: =-'2. MIST Meters Assets_Rate Base'!H269 -> 111007.86 | Q16: =-'2. MIST Meters Assets_Rate Base'!I269 -> 113190.43 | T16: =-'2. MIST Meters Assets_Rate Base'!J269 -> 200605.92 | W16: =-'2. MIST Meters Assets_Rate Base'!K269 -> 324844.53 | Z16: =-'2. MIST Meters Assets_Rate Base'!L269 -> 352399.01 | AC16: =-'2. MIST Meters Assets_Rate Base'!M269 -> 352952.66 | AF16: =-'2. MIST Meters Assets_Rate Base'!N269 -> 352952.66 | AI16: =-'2. MIST Meters Assets_Rate Base'!O269 -> 352952.66 | AJ16: C
B17: Net Fixed Assets to be included in Rate Base | E17: =E15-E16 -> 992958.825 | H17: =H15-H16 -> 1921398.91 | K17: =K15-K16 -> 2608962.74 | N17: =N15-N16 -> 3311575.42 | Q17: =Q15-Q16 -> 4329846.02 | T17: =T15-T16 -> 6288495.64 | W17: =W15-W16 -> 7555111.945 | Z17: =Z15-Z16 -> 7766913.675 | AC17: =AC15-AC16 -> 7426531.9 | AF17: =AF15-AF16 -> 7073579.24 | AI17: =AI15-AI16 -> 6720626.58 | AJ17: D = B - C
B19: Deemed ShortTerm Debt % | C19: ='1. Cost of Service_parameters'!G14 -> 0.04 | D19: E | E19: =E17*C19 -> 39718.353 | F19: ='1. Cost of Service_parameters'!H14 -> 0.04 | H19: =H17*F19 -> 76855.9564 | I19: ='1. Cost of Service_parameters'!I14 -> 0.04 | K19: =K17*I19 -> 104358.5096 | L19: ='1. Cost of Service_parameters'!J14 -> 0.04 | N19: =N17*L19 -> 132463.0168 | O19: ='1. Cost of Service_parameters'!K14 -> 0.04 | Q19: =Q17*O19 -> 173193.8408 | R19: ='1. Cost of Service_parameters'!L14 -> 0.04 | T19: =T17*R19 -> 251539.8256 | U19: ='1. Cost of Service_parameters'!M14 -> 0.04 | W19: =W17*U19 -> 302204.4778 | X19: ='1. Cost of Service_parameters'!N14 -> 0.04 | Z19: =Z17*X19 -> 310676.547 | AA19: ='1. Cost of Service_parameters'!O14 -> 0.04 | AC19: =AC17*AA19 -> 297061.276 | AD19: ='1. Cost of Service_parameters'!P14 -> 0.04 | AF19: =AF17*AD19 -> 282943.1696 | AG19: ='1. Cost of Service_parameters'!Q14 -> 0.04 | AI19: =AI17*AG19 -> 268825.0632 | AJ19: G = D * E
B20: Deemed Long Term Debt % | C20: ='1. Cost of Service_parameters'!G15 -> 0.56 | D20: F | E20: =E17*C20 -> 556056.942 | F20: ='1. Cost of Service_parameters'!H15 -> 0.56 | H20: =H17*F20 -> 1075983.39 | I20: ='1. Cost of Service_parameters'!I15 -> 0.56 | K20: =K17*I20 -> 1461019.134 | L20: ='1. Cost of Service_parameters'!J15 -> 0.56 | N20: =N17*L20 -> 1854482.235 | O20: ='1. Cost of Service_parameters'!K15 -> 0.56 | Q20: =Q17*O20 -> 2424713.771 | R20: ='1. Cost of Service_parameters'!L15 -> 0.56 | T20: =T17*R20 -> 3521557.558 | U20: ='1. Cost of Service_parameters'!M15 -> 0.56 | W20: =W17*U20 -> 4230862.689 | X20: ='1. Cost of Service_parameters'!N15 -> 0.56 | Z20: =Z17*X20 -> 4349471.658 | AA20: ='1. Cost of Service_parameters'!O15 -> 0.56 | AC20: =AC17*AA20 -> 4158857.864 | AD20: ='1. Cost of Service_parameters'!P15 -> 0.56 | AF20: =AF17*AD20 -> 3961204.374 | AG20: ='1. Cost of Service_parameters'!Q15 -> 0.56 | AI20: =AI17*AG20 -> 3763550.885 | AJ20: H = D * F
B22: Short Term Interest | C22: ='1. Cost of Service_parameters'!G21 -> 0.0176 | D22: I | E22: =E19*C22 -> 699.0430128 | F22: ='1. Cost of Service_parameters'!H21 -> 0.0176 | H22: =H19*F22 -> 1352.664833 | I22: ='1. Cost of Service_parameters'!I21 -> 0.0176 | K22: =K19*I22 -> 1836.709769 | L22: ='1. Cost of Service_parameters'!J21 -> 0.0176 | N22: =N19*L22 -> 2331.349096 | O22: ='1. Cost of Service_parameters'!K21 -> 0.0176 | Q22: =Q19*O22 -> 3048.211598 | R22: ='1. Cost of Service_parameters'!L21 -> 0.0176 | T22: =T19*R22 -> 4427.100931 | U22: ='1. Cost of Service_parameters'!M21 -> 0.0176 | W22: =W19*U22 -> 5318.798809 | X22: ='1. Cost of Service_parameters'!N21 -> 0.0176 | Z22: =Z19*X22 -> 5467.907227 | AA22: ='1. Cost of Service_parameters'!O21 -> 0.0176 | AC22: =AC19*AA22 -> 5228.278458 | AD22: ='1. Cost of Service_parameters'!P21 -> 0.0176 | AF22: =AF19*AD22 -> 4979.799785 | AG22: ='1. Cost of Service_parameters'!Q21 -> 0.0176 | AI22: =AI19*AG22 -> 4731.321112 | AJ22: K = G * I
B23: Long Term Interest | C23: ='1. Cost of Service_parameters'!G22 -> 0.03882503715 | D23: J | E23: =E20*C23 -> 21588.93143 | F23: ='1. Cost of Service_parameters'!H22 -> 0.03882503715 | H23: =H20*F23 -> 41775.09507 | I23: ='1. Cost of Service_parameters'!I22 -> 0.03882503715 | K23: =K20*I23 -> 56724.12217 | L23: ='1. Cost of Service_parameters'!J22 -> 0.03882503715 | N23: =N20*L23 -> 72000.34167 | O23: ='1. Cost of Service_parameters'!K22 -> 0.03882503715 | Q23: =Q20*O23 -> 94139.60224 | R23: ='1. Cost of Service_parameters'!L22 -> 0.03882503715 | T23: =T20*R23 -> 136724.603 | U23: ='1. Cost of Service_parameters'!M22 -> 0.03882503715 | W23: =W20*U23 -> 164263.4011 | X23: ='1. Cost of Service_parameters'!N22 -> 0.03882503715 | Z23: =Z20*X23 -> 168868.3987 | AA23: ='1. Cost of Service_parameters'!O22 -> 0.03882503715 | AC23: =AC20*AA23 -> 161467.8111 | AD23: ='1. Cost of Service_parameters'!P22 -> 0.03882503715 | AF23: =AF20*AD23 -> 153793.907 | AG23: ='1. Cost of Service_parameters'!Q22 -> 0.03882503715 | AI23: =AI20*AG23 -> 146120.0029 | AJ23: L = H * J
B25: Return on Rate Base - Interest | E25: =SUM(E22:E23) -> 22287.97444 | H25: =SUM(H22:H23) -> 43127.75991 | K25: =SUM(K22:K23) -> 58560.83194 | N25: =SUM(N22:N23) -> 74331.69077 | Q25: =SUM(Q22:Q23) -> 97187.81384 | T25: =SUM(T22:T23) -> 141151.704 | W25: =SUM(W22:W23) -> 169582.1999 | Z25: =SUM(Z22:Z23) -> 174336.3059 | AC25: =SUM(AC22:AC23) -> 166696.0895 | AF25: =SUM(AF22:AF23) -> 158773.7068 | AI25: =SUM(AI22:AI23) -> 150851.324 | AJ25: M = K + L
AP27: aaa
B28: Deemed Equity % | C28: ='1. Cost of Service_parameters'!G16 -> 0.4 | D28: N | E28: =E17*C28 -> 397183.53 | F28: ='1. Cost of Service_parameters'!H16 -> 0.4 | H28: =H17*F28 -> 768559.564 | I28: ='1. Cost of Service_parameters'!I16 -> 0.4 | K28: =K17*I28 -> 1043585.096 | L28: ='1. Cost of Service_parameters'!J16 -> 0.4 | N28: =N17*L28 -> 1324630.168 | O28: ='1. Cost of Service_parameters'!K16 -> 0.4 | Q28: =Q17*O28 -> 1731938.408 | R28: ='1. Cost of Service_parameters'!L16 -> 0.4 | T28: =T17*R28 -> 2515398.256 | U28: ='1. Cost of Service_parameters'!M16 -> 0.4 | W28: =W17*U28 -> 3022044.778 | X28: ='1. Cost of Service_parameters'!N16 -> 0.4 | Z28: =Z17*X28 -> 3106765.47 | AA28: ='1. Cost of Service_parameters'!O16 -> 0.4 | AC28: =AC17*AA28 -> 2970612.76 | AD28: ='1. Cost of Service_parameters'!P16 -> 0.4 | AF28: =AF17*AD28 -> 2829431.696 | AG28: ='1. Cost of Service_parameters'!Q16 -> 0.4 | AI28: =AI17*AG28 -> 2688250.632 | AJ28: P = D * N
B30: Return on Rate Base -Equity | C30: ='1. Cost of Service_parameters'!G23 -> 0.0878 | D30: O | E30: =E28*C30 -> 34872.71393 | F30: ='1. Cost of Service_parameters'!H23 -> 0.0878 | H30: =H28*F30 -> 67479.52972 | I30: ='1. Cost of Service_parameters'!I23 -> 0.0878 | K30: =K28*I30 -> 91626.77143 | L30: ='1. Cost of Service_parameters'!J23 -> 0.0878 | N30: =N28*L30 -> 116302.5288 | O30: ='1. Cost of Service_parameters'!K23 -> 0.0878 | Q30: =Q28*O30 -> 152064.1922 | R30: ='1. Cost of Service_parameters'!L23 -> 0.0878 | T30: =T28*R30 -> 220851.9669 | U30: ='1. Cost of Service_parameters'!M23 -> 0.0878 | W30: =W28*U30 -> 265335.5315 | X30: ='1. Cost of Service_parameters'!N23 -> 0.0878 | Z30: =Z28*X30 -> 272774.0083 | AA30: ='1. Cost of Service_parameters'!O23 -> 0.0878 | AC30: =AC28*AA30 -> 260819.8003 | AD30: ='1. Cost of Service_parameters'!P23 -> 0.0878 | AF30: =AF28*AD30 -> 248424.1029 | AG30: ='1. Cost of Service_parameters'!Q23 -> 0.0878 | AI30: =AI28*AG30 -> 236028.4055 | AJ30: Q = P * O
B32: Return on Rate Base - Total | E32: =E25+E30 -> 57160.68838 | H32: =H25+H30 -> 110607.2896 | K32: =K25+K30 -> 150187.6034 | N32: =N25+N30 -> 190634.2195 | Q32: =Q25+Q30 -> 249252.0061 | T32: =T25+T30 -> 362003.6708 | W32: =W25+W30 -> 434917.7314 | Z32: =Z25+Z30 -> 447110.3142 | AC32: =AC25+AC30 -> 427515.8899 | AF32: =AF25+AF30 -> 407197.8097 | AI32: =AI25+AI30 -> 386879.7295 | AJ32: R = M + Q
B36: Amortization Expense
B38: Amortization Expense - Incremental | D38: C | E38: =E16 -> 0 | H38: =H16 -> 170040.85 | K38: =K16 -> 162650.91 | N38: =N16 -> 111007.86 | Q38: =Q16 -> 113190.43 | T38: =T16 -> 200605.92 | W38: =W16 -> 324844.53 | Z38: =Z16 -> 352399.01 | AC38: =AC16 -> 352952.66 | AF38: =AF16 -> 352952.66 | AI38: =AI16 -> 352952.66 | AJ38: S
B41: OM&A Expense
B43: OM&A Expense - Incremental | D43: D | E43: 31250.88 | H43: 44277.59 | AJ43: S
B46: Grossed up PIL's
B48: Regulatory Taxable Income | D48: O | E48: =E30 -> 34872.71393 | H48: =H30 -> 67479.52972 | K48: =K30 -> 91626.77143 | N48: =N30 -> 116302.5288 | Q48: =Q30 -> 152064.1922 | T48: =T30 -> 220851.9669 | W48: =W30 -> 265335.5315 | Z48: =Z30 -> 272774.0083 | AC48: =AC30 -> 260819.8003 | AF48: =AF30 -> 248424.1029 | AI48: =AI30 -> 236028.4055 | AJ48: T
B50: Add Back Amortization Expense | D50: S | E50: =E38 -> 0 | H50: =H38 -> 170040.85 | K50: =K38 -> 162650.91 | N50: =N38 -> 111007.86 | Q50: =Q38 -> 113190.43 | T50: =T38 -> 200605.92 | W50: =W38 -> 324844.53 | Z50: =Z38 -> 352399.01 | AC50: =AC38 -> 352952.66 | AF50: =AF38 -> 352952.66 | AI50: =AI38 -> 352952.66 | AJ50: U
B52: Deduct CCA | E52: ='3. UCC_Calculations'!D88 -> 79436.706 | H52: =+'3. UCC_Calculations'!E88 -> 154158.6103 | K52: =+'3. UCC_Calculations'!F88 -> 210138.6983 | N52: =+'3. UCC_Calculations'!G88 -> 260482.9676 | Q52: =+'3. UCC_Calculations'!H88 -> 330073.9098 | T52: =+'3. UCC_Calculations'!I88 -> 472911.8206 | W52: =+'3. UCC_Calculations'!J88 -> 557426.1974 | Z52: =+'3. UCC_Calculations'!K88 -> 556865.9816 | AC52: =+'3. UCC_Calculations'!L88 -> 513300.2279 | AF52: =+'3. UCC_Calculations'!M88 -> 472236.2096 | AI52: =+'3. UCC_Calculations'!N88 -> 434457.3129 | AJ52: V
B54: Incremental Taxable Income | E54: =E48+E50-E52 -> -44563.99207 | H54: =H48+H50-H52 -> 83361.7694 | K54: =K48+K50-K52 -> 44138.98313 | N54: =N48+N50-N52 -> -33172.57888 | Q54: =Q48+Q50-Q52 -> -64819.2876 | T54: =T48+T50-T52 -> -51453.93376 | W54: =W48+W50-W52 -> 32753.86412 | Z54: =Z48+Z50-Z52 -> 68307.03667 | AC54: =AC48+AC50-AC52 -> 100472.2325 | AF54: =AF48+AF50-AF52 -> 129140.5533 | AI54: =AI48+AI50-AI52 -> 154523.7526 | AJ54: W = T + U - V
B56: Current Tax Rate (F1.1 Z-Factor Tax Changes) | C56: 0.265 | D56: X | F56: 0.265 | I56: 0.265 | L56: 0.265 | O56: 0.265 | R56: 0.265 | U56: 0.265 | X56: 0.265 | AA56: 0.265 | AD56: 0.265 | AG56: 0.265
B58: PIL's Before Gross Up | E58: =E54*C56 -> -11809.4579 | H58: =H54*F56 -> 22090.86889 | K58: =K54*I56 -> 11696.83053 | N58: =N54*L56 -> -8790.733403 | Q58: =Q54*O56 -> -17177.11121 | T58: =T54*R56 -> -13635.29245 | W58: =W54*U56 -> 8679.773993 | Z58: =Z54*X56 -> 18101.36472 | AC58: =AC54*AA56 -> 26625.1416 | AF58: =AF54*AD56 -> 34222.24662 | AI58: =AI54*AG56 -> 40948.79445 | AJ58: Y = W * X
B60: Incremental Grossed Up PIL's | E60: =E58/(1-C56) -> -16067.28966 | H60: =H58/(1-F56) -> 30055.60393 | K60: =K58/(1-I56) -> 15914.05514 | N60: =N58/(1-L56) -> -11960.1815 | Q60: =Q58/(1-O56) -> -23370.21934 | T60: =T58/(1-R56) -> -18551.41829 | W60: =W58/(1-U56) -> 11809.21632 | Z60: =Z58/(1-X56) -> 24627.7071 | AC60: =AC58/(1-AA56) -> 36224.68245 | AF60: =AF58/(1-AD56) -> 46560.87975 | AI60: =AI58/(1-AG56) -> 55712.6455 | AJ60: Z = Y / ( 1 - X )
B63: Incremental Revenue Requirement
B64: Return on Rate Base - Total | D64: Q | E64: =E32 -> 57160.68838 | H64: =H32 -> 110607.2896 | K64: =K32 -> 150187.6034 | N64: =N32 -> 190634.2195 | Q64: =Q32 -> 249252.0061 | T64: =T32 -> 362003.6708 | W64: =W32 -> 434917.7314 | Z64: =Z32 -> 447110.3142 | AC64: =AC32 -> 427515.8899 | AF64: =AF32 -> 407197.8097 | AI64: =AI32 -> 386879.7295 | AJ64: AF
B65: Amortization Expense - Total | D65: S | E65: =E38 -> 0 | H65: =H38 -> 170040.85 | K65: =K38 -> 162650.91 | N65: =N38 -> 111007.86 | Q65: =Q38 -> 113190.43 | T65: =T38 -> 200605.92 | W65: =W38 -> 324844.53 | Z65: =Z38 -> 352399.01 | AC65: =AC38 -> 352952.66 | AF65: =AF38 -> 352952.66 | AI65: =AI38 -> 352952.66 | AJ65: AG
B66: Incremental Grossed Up PIL's | D66: Z | E66: =E60 -> -16067.28966 | H66: =H60 -> 30055.60393 | K66: =K60 -> 15914.05514 | N66: =N60 -> -11960.1815 | Q66: =Q60 -> -23370.21934 | T66: =T60 -> -18551.41829 | W66: =W60 -> 11809.21632 | Z66: =Z60 -> 24627.7071 | AC66: =AC60 -> 36224.68245 | AF66: =AF60 -> 46560.87975 | AI66: =AI60 -> 55712.6455 | AJ66: AH
B67: OM&A | D67: D | E67: =E43 -> 31250.88 | H67: =H43 -> 44277.59 | K67: =K43 -> 0 | N67: =N43 -> 0 | Q67: =Q43 -> 0 | T67: =T43 -> 0 | W67: =W43 -> 0 | Z67: =Z43 -> 0 | AC67: =AC43 -> 0 | AF67: =AF43 -> 0 | AI67: =AI43 -> 0
B69: Incremental Revenue Requirement | E69: =SUM(E64:E67) -> 72344.27872 | H69: =SUM(H64:H67) -> 354981.3336 | K69: =SUM(K64:K67) -> 328752.5685 | N69: =SUM(N64:N67) -> 289681.898 | Q69: =SUM(Q64:Q67) -> 339072.2167 | T69: =SUM(T64:T67) -> 544058.1725 | W69: =SUM(W64:W67) -> 771571.4777 | Z69: =SUM(Z64:Z67) -> 824137.0313 | AC69: =SUM(AC64:AC67) -> 816693.2323 | AF69: =SUM(AF64:AF67) -> 806711.3494 | AI69: =SUM(AI64:AI67) -> 795545.035 | AJ69: AJ = AF + AG + AH + AI

Sheet 6. True-up Summary
D4: MIST Meters True-up Model
B9: Sheet 6: MIST Meters Incremental Revenue Requirement
E12: 2016 | G12: 2017 | I12: 2018 | K12: 2019 | M12: 2020 | O12: 2021 | Q12: 2022 | S12: 2023 | U12: 2024 | W12: 2025 | Y12: 2026 | Z12: Total
C14: Deferred and forecasted MIST Meters Revenue Requirement (from Sheet 5) | E14: ='5. MIST Meters_IRR'!E69 -> 72344.27872 | G14: ='5. MIST Meters_IRR'!H69 -> 354981.3336 | I14: ='5. MIST Meters_IRR'!K69 -> 328752.5685 | K14: ='5. MIST Meters_IRR'!N69 -> 289681.898 | M14: ='5. MIST Meters_IRR'!Q69 -> 339072.2167 | O14: ='5. MIST Meters_IRR'!T69 -> 544058.1725 | Q14: ='5. MIST Meters_IRR'!W69 -> 771571.4777 | S14: ='5. MIST Meters_IRR'!Z69 -> 824137.0313 | U14: ='5. MIST Meters_IRR'!AC69 -> 816693.2323 | W14: ='5. MIST Meters_IRR'!AF69 -> 806711.3494 | Y14: ='5. MIST Meters_IRR'!AI69 -> 795545.035 | Z14: =SUM(E14:Y14) -> 5943548.594
C17: MIST Meters Funding Adder Revenues (from Sheet 4) | E17: 0 | G17: 0 | I17: 0 | K17: 0 | M17: 0 | O17: 0 | Q17: 0 | S17: 0 | U17: 0 | W17: 0 | Y17: 0 | Z17: =SUM(E17:Y17) -> 0
C19: MIST Meters Funding Adder Interest (from Sheet 4) | E19: =SUM('4. Fund Adder Revenues'!M19:M27) -> 0 | G19: =SUM('4. Fund Adder Revenues'!M28:M39) -> 0 | I19: =SUM('4. Fund Adder Revenues'!O28:O39) -> 0 | K19: =SUM('4. Fund Adder Revenues'!Q28:Q39) -> 0 | M19: =SUM('4. Fund Adder Revenues'!S28:S39) -> 0 | O19: =SUM('4. Fund Adder Revenues'!U28:U39) -> 0 | Q19: =SUM('4. Fund Adder Revenues'!W28:W39) -> 0 | S19: =SUM('4. Fund Adder Revenues'!Y28:Y39) -> 0 | U19: =SUM('4. Fund Adder Revenues'!AA28:AA39) -> 0 | W19: =SUM('4. Fund Adder Revenues'!AC28:AC39) -> 0 | Y19: =SUM('4. Fund Adder Revenues'!AE28:AE39) -> 0 | Z19: =SUM(E19:Y19) -> 0
C21: Net Deferred Revenue Requirement | E21: =E14-E17-E19 -> 72344.27872 | G21: =G14-G17-G19 -> 354981.3336 | I21: =I14-I17-I19 -> 328752.5685 | K21: =K14-K17-K19 -> 289681.898 | M21: =M14-M17-M19 -> 339072.2167 | O21: =O14-O17-O19 -> 544058.1725 | Q21: =Q14-Q17-Q19 -> 771571.4777 | S21: =S14-S17-S19 -> 824137.0313 | U21: =U14-U17-U19 -> 816693.2323 | W21: =W14-W17-W19 -> 806711.3494 | Y21: =Y14-Y17-Y19 -> 795545.035 | Z21: =SUM(E21:Y21) -> 5943548.594

Sheet 2016-2018 Trans in Legacy PRZ (hidden)
A1: DOCUMENT TYPE | B1: DOCUMENT NUMBER | C1: DOCUMENT COMPANY | D1: GL DATE | E1: ACTUAL AMOUNT | F1: POST STATUS | G1: BUSINESS UNIT | H1: OBJECT ACCOUNT | I1: SUBSIDIARY | J1: DESCRIPTION | K1: SUBLEDGER | L1: JE EXPLANATION | M1: BATCH TYPE | N1: BATCH NUMBER | O1: BATCH DATE | P1: REMARK | Q1: ADDRESS NUMBER | R1: G/L REPORTING CODE 21 | S1: Year
A2: AC | B2: 10185 | C2: 00900 | D2: 2018-10-31 | E2: 28800 | F2: Posted | G2: C16062 | H2: 1557 | I2: 2124 | J2: MIST Meter Capital | K2: W.00314533 - GS>50 MIST Meter Program Imple | L2: October TAP Accrual - RB | M2: G | N2: 1566243 | O2: 2018-11-02 | P2: WAVERUNNER COMMUNICATIONS INC. | Q2: 0 | S2: =YEAR(D2) -> 2018
A3: AC | B3: 10185 | C3: 00900 | D3: 2018-11-01 | E3: -28800 | F3: Posted | G3: C16062 | H3: 1557 | I3: 2124 | J3: MIST Meter Capital | K3: W.00314533 - GS>50 MIST Meter Program Imple | L3: October TAP Accrual - RB | M3: G | N3: 1566243 | O3: 2018-11-02 | P3: WAVERUNNER COMMUNICATIONS INC. | Q3: 0 | S3: =YEAR(D3) -> 2018
A4: AC | B4: 11198 | C4: 00900 | D4: 2018-11-30 | E4: 3675 | F4: Posted | G4: C16062 | H4: 1557 | I4: 2124 | J4: MIST Meter Capital | K4: W.00314533 - GS>50 MIST Meter Program Imple | L4: TAP Accruals - Nov 2018 | M4: G | N4: 1577799 | O4: 2018-12-04 | P4: WAVERUNNER COMMUNICATIONS INC. | Q4: 0 | S4: 2018
A5: AC | B5: 11198 | C5: 00900 | D5: 2018-12-01 | E5: -3675 | F5: Posted | G5: C16062 | H5: 1557 | I5: 2124 | J5: MIST Meter Capital | K5: W.00314533 - GS>50 MIST Meter Program Imple | L5: TAP Accruals - Nov 2018 | M5: G | N5: 1577799 | O5: 2018-12-04 | P5: WAVERUNNER COMMUNICATIONS INC. | Q5: 0 | S5: 2018
A6: AC | B6: 12414 | C6: 00900 | D6: 2018-12-31 | E6: 469605 | F6: Posted | G6: C16062 | H6: 1557 | I6: 2124 | J6: MIST Meter Capital | K6: W.00314533 - GS>50 MIST Meter Program Imple | L6: December Accrual - RB | M6: G | N6: 1586497 | O6: 2019-01-08 | P6: Accrual for RogersInvoice 5344 | Q6: 0 | S6: 2018
A7: AD | B7: 560374 | C7: 00900 | D7: 2016-12-31 | E7: 398961.58 | F7: Posted | G7: 900 | H7: 1557 | I7: 2115 | J7: NBV scrapped assets | L7: Simple Disposal. | M7: Z | N7: 1320859 | O7: 2017-01-11 | P7: NBV scrapped assets | Q7: 0 | S7: 2016
A8: AD | B8: 561604 | C8: 00900 | D8: 2017-01-31 | E8: 7205.81 | F8: Posted | G8: 900 | H8: 1557 | I8: 2115 | J8: NBV scrapped assets | L8: Simple Disposal. | M8: Z | N8: 1332853 | O8: 2017-02-09 | P8: NBV scrapped assets | Q8: 0 | S8: 2017
A9: AD | B9: 564114 | C9: 00900 | D9: 2017-04-01 | E9: 22150.84 | F9: Posted | G9: 900 | H9: 1557 | I9: 2115 | J9: NBV scrapped assets | L9: Simple Disposal. | M9: Z | N9: 1362533 | O9: 2017-04-26 | P9: NBV scrapped assets | Q9: 0 | S9: 2017
A10: AD | B10: 569682 | C10: 00900 | D10: 2017-07-31 | E10: 28864.09 | F10: Posted | G10: 900 | H10: 1557 | I10: 2115 | J10: NBV scrapped assets | K10: W.00316190 - Remove Stranded meters | L10: Simple Disposal. | M10: Z | N10: 1404694 | O10: 2017-07-31 | P10: NBV scrapped assets | Q10: 0 | S10: 2017
A11: AD | B11: 575636 | C11: 00900 | D11: 2017-12-01 | E11: 18830.63 | F11: Posted | G11: 900 | H11: 1557 | I11: 2115 | J11: NBV scrapped assets | K11: W.00316190 - Remove Stranded meters | L11: Simple Disposal. | M11: Z | N11: 1457186 | O11: 2017-12-28 | P11: NBV scrapped assets | Q11: 0 | S11: 2017
A12: AD | B12: 575638 | C12: 00900 | D12: 2017-12-01 | E12: 17919.59 | F12: Posted | G12: 900 | H12: 1557 | I12: 2115 | J12: NBV scrapped assets | K12: W.00316190 - Remove Stranded meters | L12: Simple Disposal. | M12: Z | N12: 1457188 | O12: 2017-12-28 | P12: NBV scrapped assets | Q12: 0 | S12: 2017
A13: AD | B13: 575639 | C13: 00900 | D13: 2017-12-01 | E13: 97900.68 | F13: Posted | G13: 900 | H13: 1557 | I13: 2115 | J13: NBV scrapped assets | K13: W.00316190 - Remove Stranded meters | L13: Simple Disposal. | M13: Z | N13: 1457189 | O13: 2017-12-28 | P13: NBV scrapped assets | Q13: 0 | S13: 2017
A14: AD | B14: 575640 | C14: 00900 | D14: 2017-12-01 | E14: 33142.52 | F14: Posted | G14: 900 | H14: 1557 | I14: 2115 | J14: NBV scrapped assets | K14: W.00316190 - Remove Stranded meters | L14: Simple Disposal. | M14: Z | N14: 1457190 | O14: 2017-12-28 | P14: NBV scrapped assets | Q14: 0 | S14: 2017
A15: AD | B15: 575641 | C15: 00900 | D15: 2017-12-01 | E15: 5394.6 | F15: Posted | G15: 900 | H15: 1557 | I15: 2115 | J15: NBV scrapped assets | K15: W.00316190 - Remove Stranded meters | L15: Simple Disposal. | M15: Z | N15: 1457191 | O15: 2017-12-28 | P15: NBV scrapped assets | Q15: 0 | S15: 2017
A16: AD | B16: 575643 | C16: 00900 | D16: 2017-12-01 | E16: 106655.56 | F16: Posted | G16: 900 | H16: 1557 | I16: 2115 | J16: NBV scrapped assets | K16: W.00316190 - Remove Stranded meters | L16: Simple Disposal. | M16: Z | N16: 1457194 | O16: 2017-12-28 | P16: NBV scrapped assets | Q16: 0 | S16: 2017
A17: AD | B17: 586169 | C17: 00900 | D17: 2018-06-01 | E17: 13148.33 | F17: Posted | G17: 900 | H17: 1557 | I17: 2115 | J17: NBV scrapped assets | K17: W.00316190 - Remove Stranded meters | L17: Simple Disposal. | M17: Z | N17: 1528123 | O17: 2018-07-05 | P17: NBV scrapped assets | Q17: 0 | S17: 2018
A18: AD | B18: 586173 | C18: 00900 | D18: 2018-06-01 | E18: 77345.41 | F18: Posted | G18: 900 | H18: 1557 | I18: 2115 | J18: NBV scrapped assets | K18: W.00316190 - Remove Stranded meters | L18: Simple Disposal. | M18: Z | N18: 1528126 | O18: 2018-07-05 | P18: NBV scrapped assets | Q18: 0 | S18: 2018
A19: AD | B19: 586242 | C19: 00900 | D19: 2018-06-01 | E19: 2715.73 | F19: Posted | G19: 900 | H19: 1557 | I19: 2115 | J19: NBV scrapped assets | K19: W.00316190 - Remove Stranded meters | L19: Simple Disposal. | M19: Z | N19: 1528170 | O19: 2018-07-05 | P19: NBV scrapped assets | Q19: 0 | S19: 2018
A20: AD | B20: 595015 | C20: 00900 | D20: 2018-12-01 | E20: 159740.83 | F20: Posted | G20: 900 | H20: 1557 | I20: 2115 | J20: NBV scrapped assets | K20: W.00316190 - Remove Stranded meters | L20: Simple Disposal. | M20: Z | N20: 1585547 | O20: 2019-01-03 | P20: NBV scrapped assets | Q20: 0 | S20: 2018
A21: AD | B21: 595032 | C21: 00900 | D21: 2018-12-01 | E21: 80538.07 | F21: Posted | G21: 900 | H21: 1557 | I21: 2115 | J21: NBV scrapped assets | K21: W.00316190 - Remove Stranded meters | L21: Simple Disposal. | M21: Z | N21: 1585582 | O21: 2019-01-03 | P21: NBV scrapped assets | Q21: 0 | S21: 2018
A22: FS | B22: 1153 | C22: 00900 | D22: 2017-01-30 | E22: 3667.98 | F22: Posted | G22: C00999 | H22: 1557 | I22: 9159 | J22: MIST Meter Capital | K22: W.00201316 - Auto Allocation | L22: Clear Balance in DLC Pool to C | M22: G | N22: 1331372 | O22: 2017-02-03 | P22: To Clear Balance in DLC Pool t | Q22: 0 | S22: 2017
A23: FS | B23: 1210 | C23: 00900 | D23: 2017-01-31 | E23: 857.14 | F23: Posted | G23: C00999 | H23: 1557 | I23: 9159 | J23: MIST Meter Capital | K23: W.00201316 - Auto Allocation | L23: Clear DLC Pool to Capital | M23: G | N23: 1332206 | O23: 2017-02-07 | P23: To Clear Balance in DLC Pool t | Q23: 0 | S23: 2017
A24: FS | B24: 12308 | C24: 00900 | D24: 2016-12-31 | E24: -2613.84 | F24: Posted | G24: C00999 | H24: 1557 | I24: 9159 | J24: MIST Meter Capital | K24: W.00201316 - Auto Allocation | L24: Clear Balance in DLC to Capita | M24: G | N24: 1321147 | O24: 2017-01-12 | P24: To Clear Balance in DLC Pool t | Q24: 0 | S24: 2016
A25: FS | B25: 557220 | C25: 00900 | D25: 2016-10-31 | E25: 102488.47 | F25: Posted | G25: C16062 | H25: 1557 | I25: 9159 | J25: MIST Meter Capital | K25: W.00312743 - GS>50 MIST Meter Program Imple | L25: DLC to Capital WO-AA | M25: G | N25: 1298037 | O25: 2016-11-07 | P25: PS0005AA | Q25: 0 | S25: 2016
A26: FS | B26: 557248 | C26: 00900 | D26: 2016-11-10 | E26: 4801.32 | F26: Posted | G26: C16062 | H26: 1557 | I26: 9150 | J26: MIST Meter Capital | K26: W.00314533 - GS>50 MIST Meter Program Imple | L26: Payroll Burden | M26: G | N26: 1299555 | O26: 2016-11-11 | P26: Payroll Burden New | Q26: 0 | S26: 2016
A27: FS | B27: 557267 | C27: 00900 | D27: 2016-11-18 | E27: 5593.75 | F27: Posted | G27: C16062 | H27: 1557 | I27: 9150 | J27: MIST Meter Capital | K27: W.00314533 - GS>50 MIST Meter Program Imple | L27: Payroll Burden | M27: G | N27: 1301098 | O27: 2016-11-18 | P27: Payroll Burden New | Q27: 0 | S27: 2016
A28: FS | B28: 557270 | C28: 00900 | D28: 2016-11-30 | E28: 89.02 | F28: Posted | G28: C16062 | H28: 1557 | I28: 9159 | J28: MIST Meter Capital | K28: W.00309891 - Meter Re-Verification | L28: DLC to Capital WO-AA | M28: G | N28: 1301294 | O28: 2016-11-18 | P28: PS0005AA | Q28: 0 | S28: 2016
A29: FS | B29: 557270 | C29: 00900 | D29: 2016-11-30 | E29: 1581.83 | F29: Posted | G29: C16062 | H29: 1557 | I29: 9159 | J29: MIST Meter Capital | K29: W.00314533 - GS>50 MIST Meter Program Imple | L29: DLC to Capital WO-AA | M29: G | N29: 1301294 | O29: 2016-11-18 | P29: PS0005AA | Q29: 0 | S29: 2016
A30: FS | B30: 557318 | C30: 00900 | D30: 2016-11-04 | E30: 527.27 | F30: Posted | G30: C16062 | H30: 1557 | I30: 9150 | J30: MIST Meter Capital | K30: W.00314533 - GS>50 MIST Meter Program Imple | L30: Payroll Burden | M30: G | N30: 1304904 | O30: 2016-11-30 | P30: Payroll Burden New | Q30: 0 | S30: 2016
A31: FS | B31: 557319 | C31: 00900 | D31: 2016-11-25 | E31: 4858.97 | F31: Posted | G31: C16062 | H31: 1557 | I31: 9150 | J31: MIST Meter Capital | K31: W.00314533 - GS>50 MIST Meter Program Imple | L31: Payroll Burden | M31: G | N31: 1304908 | O31: 2016-11-30 | P31: Payroll Burden New | Q31: 0 | S31: 2016
A32: FS | B32: 558349 | C32: 00900 | D32: 2016-11-30 | E32: 77.08 | F32: Posted | G32: C00550 | H32: 1557 | I32: 9159 | J32: MIST Meter Capital | K32: W.00309891 - Meter Re-Verification | L32: DLC to Capital WO-AA | M32: G | N32: 1308173 | O32: 2016-12-02 | P32: PS0005AA | Q32: 0 | S32: 2016
A33: FS | B33: 558349 | C33: 00900 | D33: 2016-11-30 | E33: -77.08 | F33: Posted | G33: C16062 | H33: 1557 | I33: 9159 | J33: MIST Meter Capital | K33: W.00309891 - Meter Re-Verification | L33: DLC to Capital WO-AA | M33: G | N33: 1308173 | O33: 2016-12-02 | P33: PS0005AA | Q33: 0 | S33: 2016
A34: FS | B34: 558349 | C34: 00900 | D34: 2016-11-30 | E34: 3559.07 | F34: Posted | G34: C16062 | H34: 1557 | I34: 9159 | J34: MIST Meter Capital | K34: W.00314533 - GS>50 MIST Meter Program Imple | L34: DLC to Capital WO-AA | M34: G | N34: 1308173 | O34: 2016-12-02 | P34: PS0005AA | Q34: 0 | S34: 2016
A35: FS | B35: 558356 | C35: 00900 | D35: 2016-11-30 | E35: 0 | F35: Posted | G35: C00550 | H35: 1557 | I35: 9159 | J35: MIST Meter Capital | K35: W.00309891 - Meter Re-Verification | L35: DLC to Capital WO-AA | M35: G | N35: 1308426 | O35: 2016-12-05 | P35: PS0005AA | Q35: 0 | S35: 2016
A36: FS | B36: 558356 | C36: 00900 | D36: 2016-11-30 | E36: 0 | F36: Posted | G36: C16062 | H36: 1557 | I36: 9159 | J36: MIST Meter Capital | K36: W.00309891 - Meter Re-Verification | L36: DLC to Capital WO-AA | M36: G | N36: 1308426 | O36: 2016-12-05 | P36: PS0005AA | Q36: 0 | S36: 2016
A37: FS | B37: 558356 | C37: 00900 | D37: 2016-11-30 | E37: 548.02 | F37: Posted | G37: C16062 | H37: 1557 | I37: 9159 | J37: MIST Meter Capital | K37: W.00314533 - GS>50 MIST Meter Program Imple | L37: DLC to Capital WO-AA | M37: G | N37: 1308426 | O37: 2016-12-05 | P37: PS0005AA | Q37: 0 | S37: 2016
A38: FS | B38: 558369 | C38: 00900 | D38: 2016-11-30 | E38: -701.73 | F38: Posted | G38: 900 | H38: 1557 | I38: 9155 | J38: Burden Allocation | K38: W.00201316 - Auto Allocation | L38: Payroll Burd-Alloc-AA | M38: G | N38: 1308762 | O38: 2016-12-05 | P38: PS0002AA | Q38: 0 | S38: 2016
A39: FS | B39: 558370 | C39: 00900 | D39: 2016-11-30 | E39: 11.94 | F39: Posted | G39: C00550 | H39: 1557 | I39: 9159 | J39: MIST Meter Capital | K39: W.00309891 - Meter Re-Verification | L39: DLC to Capital WO-AA | M39: G | N39: 1308897 | O39: 2016-12-05 | P39: PS0005AA | Q39: 0 | S39: 2016
A40: FS | B40: 558370 | C40: 00900 | D40: 2016-11-30 | E40: -11.94 | F40: Posted | G40: C16062 | H40: 1557 | I40: 9159 | J40: MIST Meter Capital | K40: W.00309891 - Meter Re-Verification | L40: DLC to Capital WO-AA | M40: G | N40: 1308897 | O40: 2016-12-05 | P40: PS0005AA | Q40: 0 | S40: 2016
A41: FS | B41: 558371 | C41: 00900 | D41: 2016-11-30 | E41: 8.72 | F41: Posted | G41: 900 | H41: 1557 | I41: 9175 | J41: MIST Meter Capital | K41: W.00201316 - Auto Allocation | L41: Vehicle Burd-Alloc-AA | M41: G | N41: 1308899 | O41: 2016-12-05 | P41: PS0002AA | Q41: 0 | S41: 2016
A42: FS | B42: 558390 | C42: 00900 | D42: 2016-12-09 | E42: 4734.26 | F42: Posted | G42: C16062 | H42: 1557 | I42: 9150 | J42: MIST Meter Capital | K42: W.00314533 - GS>50 MIST Meter Program Imple | L42: Payroll Burden | M42: G | N42: 1310231 | O42: 2016-12-09 | P42: Payroll Burden New | Q42: 0 | S42: 2016
A43: FS | B43: 558405 | C43: 00900 | D43: 2016-12-16 | E43: 3422.74 | F43: Posted | G43: C16062 | H43: 1557 | I43: 9150 | J43: MIST Meter Capital | K43: W.00314533 - GS>50 MIST Meter Program Imple | L43: Payroll Burden | M43: G | N43: 1311802 | O43: 2016-12-16 | P43: Payroll Burden New | Q43: 0 | S43: 2016
A44: FS | B44: 558405 | C44: 00900 | D44: 2016-12-16 | E44: 135.52 | F44: Posted | G44: C16062 | H44: 1557 | I44: 9150 | J44: MIST Meter Capital | K44: W.00315355 - HW 50 - CASTLEMORE TO MAYFIELD | L44: Payroll Burden | M44: G | N44: 1311802 | O44: 2016-12-16 | P44: Payroll Burden New | Q44: 0 | S44: 2016
A45: FS | B45: 559066 | C45: 00900 | D45: 2016-12-23 | E45: 2707.58 | F45: Posted | G45: C16062 | H45: 1557 | I45: 9150 | J45: MIST Meter Capital | K45: W.00314533 - GS>50 MIST Meter Program Imple | L45: Payroll Burden | M45: G | N45: 1313641 | O45: 2016-12-23 | P45: Payroll Burden New | Q45: 0 | S45: 2016
A46: FS | B46: 559100 | C46: 00900 | D46: 2016-12-30 | E46: 1140.68 | F46: Posted | G46: C16062 | H46: 1557 | I46: 9150 | J46: MIST Meter Capital | K46: W.00314533 - GS>50 MIST Meter Program Imple | L46: Payroll Burden | M46: G | N46: 1314006 | O46: 2016-12-30 | P46: Payroll Burden New | Q46: 0 | S46: 2016
A47: FS | B47: 560033 | C47: 00900 | D47: 2016-12-02 | E47: 1097.49 | F47: Posted | G47: C16062 | H47: 1557 | I47: 9150 | J47: MIST Meter Capital | K47: W.00314533 - GS>50 MIST Meter Program Imple | L47: Payroll Burden | M47: G | N47: 1319294 | O47: 2017-01-05 | P47: Payroll Burden New | Q47: 0 | S47: 2016
A48: FS | B48: 560331 | C48: 00900 | D48: 2016-12-30 | E48: -1384.43 | F48: Posted | G48: C16062 | H48: 1557 | I48: 9159 | J48: MIST Meter Capital | K48: W.00312743 - GS>50 MIST Meter Program Imple | L48: DLC to Capital WO-AA | M48: G | N48: 1320174 | O48: 2017-01-09 | P48: PS0005AA | Q48: 0 | S48: 2016
A49: FS | B49: 560331 | C49: 00900 | D49: 2016-12-30 | E49: 4356.69 | F49: Posted | G49: C16062 | H49: 1557 | I49: 9159 | J49: MIST Meter Capital | K49: W.00314533 - GS>50 MIST Meter Program Imple | L49: DLC to Capital WO-AA | M49: G | N49: 1320174 | O49: 2017-01-09 | P49: PS0005AA | Q49: 0 | S49: 2016
A50: FS | B50: 560331 | C50: 00900 | D50: 2016-12-30 | E50: 25.45 | F50: Posted | G50: C16062 | H50: 1557 | I50: 9159 | J50: MIST Meter Capital | K50: W.00315355 - HW 50 - CASTLEMORE TO MAYFIELD | L50: DLC to Capital WO-AA | M50: G | N50: 1320174 | O50: 2017-01-09 | P50: PS0005AA | Q50: 0 | S50: 2016
A51: FS | B51: 560340 | C51: 00900 | D51: 2016-12-30 | E51: 616.47 | F51: Posted | G51: 900 | H51: 1557 | I51: 9155 | J51: Burden Allocation | K51: W.00201316 - Auto Allocation | L51: Payroll Burd-Alloc-AA | M51: G | N51: 1320252 | O51: 2017-01-09 | P51: PS0002AA | Q51: 0 | S51: 2016
A52: FS | B52: 560345 | C52: 00900 | D52: 2016-12-30 | E52: 67.41 | F52: Posted | G52: 900 | H52: 1557 | I52: 9175 | J52: MIST Meter Capital | K52: W.00201316 - Auto Allocation | L52: Vehicle Burd-Alloc-AA | M52: G | N52: 1320271 | O52: 2017-01-10 | P52: PS0002AA | Q52: 0 | S52: 2016
A53: FS | B53: 560378 | C53: 00900 | D53: 2016-12-31 | E53: 1525.44 | F53: Posted | G53: C16062 | H53: 1557 | I53: 9180 | J53: MIST Meter Capital | K53: W.00314533 - GS>50 MIST Meter Program Imple | L53: Stores Burden - Material - AA | M53: G | N53: 1320904 | O53: 2017-01-12 | P53: PS0005AA | Q53: 0 | S53: 2016
A54: FS | B54: 560379 | C54: 00900 | D54: 2016-12-31 | E54: 18826.99 | F54: Posted | G54: C16062 | H54: 1557 | I54: 9159 | J54: MIST Meter Capital | K54: W.00314533 - GS>50 MIST Meter Program Imple | L54: DLC to Capital WO-AA | M54: G | N54: 1320912 | O54: 2017-01-12 | P54: PS0005AA | Q54: 0 | S54: 2016
A55: FS | B55: 560384 | C55: 00900 | D55: 2016-12-31 | E55: 23.61 | F55: Posted | G55: 900 | H55: 1557 | I55: 9175 | J55: MIST Meter Capital | K55: W.00201316 - Auto Allocation | L55: Vehicle Burd-Alloc-AA | M55: G | N55: 1321059 | O55: 2017-01-12 | P55: PS0002AA | Q55: 0 | S55: 2016
A56: FS | B56: 560390 | C56: 00900 | D56: 2016-12-31 | E56: -0.08 | F56: Posted | G56: 900 | H56: 1557 | I56: 9185 | J56: Meter Cost deferral | K56: W.00201316 - Auto Allocation | L56: Stores Burd-Alloc-AA | M56: G | N56: 1321130 | O56: 2017-01-12 | P56: PS0002AA | Q56: 0 | S56: 2016
A57: FS | B57: 560391 | C57: 00900 | D57: 2016-12-31 | E57: -18.25 | F57: Posted | G57: 900 | H57: 1557 | I57: 9155 | J57: Burden Allocation | K57: W.00201316 - Auto Allocation | L57: Payroll Burd-Alloc-AA | M57: G | N57: 1321136 | O57: 2017-01-12 | P57: PS0002AA | Q57: 0 | S57: 2016
A58: FS | B58: 560414 | C58: 00900 | D58: 2017-01-13 | E58: 536.03 | F58: Posted | G58: C16062 | H58: 1557 | I58: 9150 | J58: MIST Meter Capital | K58: W.00314533 - GS>50 MIST Meter Program Imple | L58: Payroll Burden | M58: G | N58: 1322998 | O58: 2017-01-20 | P58: Payroll Burden New | Q58: 0 | S58: 2017
A59: FS | B59: 560415 | C59: 00900 | D59: 2017-01-20 | E59: 649.68 | F59: Posted | G59: C16062 | H59: 1557 | I59: 9150 | J59: MIST Meter Capital | K59: W.00314533 - GS>50 MIST Meter Program Imple | L59: Payroll Burden | M59: G | N59: 1322999 | O59: 2017-01-20 | P59: Payroll Burden New | Q59: 0 | S59: 2017
A60: FS | B60: 560432 | C60: 00900 | D60: 2017-01-27 | E60: 109.27 | F60: Posted | G60: C16062 | H60: 1557 | I60: 9150 | J60: MIST Meter Capital | K60: W.00314533 - GS>50 MIST Meter Program Imple | L60: Payroll Burden | M60: G | N60: 1325394 | O60: 2017-01-27 | P60: Payroll Burden New | Q60: 0 | S60: 2017
A61: FS | B61: 561305 | C61: 00900 | D61: 2017-01-31 | E61: 610.35 | F61: Posted | G61: C16062 | H61: 1557 | I61: 9159 | J61: MIST Meter Capital | K61: W.00314533 - GS>50 MIST Meter Program Imple | L61: DLC to Capital WO-AA | M61: G | N61: 1331005 | O61: 2017-02-02 | P61: PS0005AA | Q61: 0 | S61: 2017
A62: FS | B62: 561562 | C62: 00900 | D62: 2017-01-31 | E62: 0 | F62: Posted | G62: C16062 | H62: 1557 | I62: 9159 | J62: MIST Meter Capital | K62: W.00314533 - GS>50 MIST Meter Program Imple | L62: DLC to Capital WO-AA | M62: G | N62: 1331580 | O62: 2017-02-06 | P62: PS0005AA | Q62: 0 | S62: 2017
A63: FS | B63: 561566 | C63: 00900 | D63: 2017-01-31 | E63: 0 | F63: Posted | G63: C16062 | H63: 1557 | I63: 9159 | J63: MIST Meter Capital | K63: W.00314533 - GS>50 MIST Meter Program Imple | L63: DLC to Capital WO-AA | M63: G | N63: 1331919 | O63: 2017-02-07 | P63: PS0005AA | Q63: 0 | S63: 2017
A64: FS | B64: 561571 | C64: 00900 | D64: 2017-01-31 | E64: 1098.66 | F64: Posted | G64: 900 | H64: 1557 | I64: 9155 | J64: Burden Allocation | K64: W.00201316 - Auto Allocation | L64: Payroll Burd-Alloc-AA | M64: G | N64: 1332151 | O64: 2017-02-07 | P64: PS0002AA | Q64: 0 | S64: 2017
A65: FS | B65: 561584 | C65: 00900 | D65: 2017-01-31 | E65: -309.15 | F65: Posted | G65: 900 | H65: 1557 | I65: 9175 | J65: MIST Meter Capital | K65: W.00201316 - Auto Allocation | L65: Vehicle Burd-Alloc-AA | M65: G | N65: 1332403 | O65: 2017-02-08 | P65: PS0002AA | Q65: 0 | S65: 2017
A66: FS | B66: 561618 | C66: 00900 | D66: 2017-02-10 | E66: 223.71 | F66: Posted | G66: C16062 | H66: 1557 | I66: 9150 | J66: MIST Meter Capital | K66: W.00314533 - GS>50 MIST Meter Program Imple | L66: Payroll Burden | M66: G | N66: 1335106 | O66: 2017-02-17 | P66: Payroll Burden New | Q66: 0 | S66: 2017
A67: FS | B67: 561675 | C67: 00900 | D67: 2017-02-03 | E67: 223.71 | F67: Posted | G67: C16062 | H67: 1557 | I67: 9150 | J67: MIST Meter Capital | K67: W.00314533 - GS>50 MIST Meter Program Imple | L67: Payroll Burden | M67: G | N67: 1338325 | O67: 2017-03-01 | P67: Payroll Burden New | Q67: 0 | S67: =YEAR(D67) -> 2017
A68: FS | B68: 562723 | C68: 00900 | D68: 2017-02-28 | E68: 60.94 | F68: Posted | G68: C16062 | H68: 1557 | I68: 9159 | J68: MIST Meter Capital | K68: W.00314533 - GS>50 MIST Meter Program Imple | L68: DLC to Capital WO-AA | M68: G | N68: 1342613 | O68: 2017-03-03 | P68: PS0005AA | Q68: 0 | S68: 2017
A69: FS | B69: 562727 | C69: 00900 | D69: 2017-02-28 | E69: 85.93 | F69: Posted | G69: 900 | H69: 1557 | I69: 9155 | J69: Burden Allocation | K69: W.00201316 - Auto Allocation | L69: Payroll Burd-Alloc-AA | M69: G | N69: 1342928 | O69: 2017-03-03 | P69: PS0002AA | Q69: 0 | S69: 2017
A70: FS | B70: 562729 | C70: 00900 | D70: 2017-02-28 | E70: 116.35 | F70: Posted | G70: 900 | H70: 1557 | I70: 9175 | J70: MIST Meter Capital | K70: W.00201316 - Auto Allocation | L70: Vehicle Burd-Alloc-AA | M70: G | N70: 1342949 | O70: 2017-03-03 | P70: PS0002AA | Q70: 0 | S70: 2017
A71: FS | B71: 562768 | C71: 00900 | D71: 2017-03-10 | E71: 178.96 | F71: Posted | G71: C16062 | H71: 1557 | I71: 9150 | J71: MIST Meter Capital | K71: W.00314533 - GS>50 MIST Meter Program Imple | L71: Payroll Burden | M71: G | N71: 1346703 | O71: 2017-03-17 | P71: Payroll Burden New | Q71: 0 | S71: 2017
A72: FS | B72: 562769 | C72: 00900 | D72: 2017-03-17 | E72: 134.22 | F72: Posted | G72: C16062 | H72: 1557 | I72: 9150 | J72: MIST Meter Capital | K72: W.00314533 - GS>50 MIST Meter Program Imple | L72: Payroll Burden | M72: G | N72: 1346704 | O72: 2017-03-17 | P72: Payroll Burden New | Q72: 0 | S72: 2017
A73: FS | B73: 563252 | C73: 00900 | D73: 2017-03-03 | E73: 223.71 | F73: Posted | G73: C16062 | H73: 1557 | I73: 9150 | J73: MIST Meter Capital | K73: W.00314533 - GS>50 MIST Meter Program Imple | L73: Payroll Burden | M73: G | N73: 1352073 | O73: 2017-03-31 | P73: Payroll Burden New | Q73: 0 | S73: 2017
A74: FS | B74: 564024 | C74: 00900 | D74: 2017-03-31 | E74: 59.54 | F74: Posted | G74: C16062 | H74: 1557 | I74: 9159 | J74: MIST Meter Capital | K74: W.00314533 - GS>50 MIST Meter Program Imple | L74: DLC to Capital WO-AA | M74: G | N74: 1356972 | O74: 2017-04-05 | P74: PS0005AA | Q74: 0 | S74: 2017
A75: FS | B75: 564026 | C75: 00900 | D75: 2017-03-31 | E75: -45.73 | F75: Posted | G75: 900 | H75: 1557 | I75: 9155 | J75: Burden Allocation | K75: W.00201316 - Auto Allocation | L75: Payroll Burd-Alloc-AA | M75: G | N75: 1356994 | O75: 2017-04-05 | P75: PS0002AA | Q75: 0 | S75: 2017
A76: FS | B76: 564027 | C76: 00900 | D76: 2017-03-31 | E76: 64.57 | F76: Posted | G76: 900 | H76: 1557 | I76: 9175 | J76: MIST Meter Capital | K76: W.00201316 - Auto Allocation | L76: Vehicle Burd-Alloc-AA | M76: G | N76: 1356995 | O76: 2017-04-05 | P76: PS0002AA | Q76: 0 | S76: 2017
A77: FS | B77: 564094 | C77: 00900 | D77: 2017-04-13 | E77: 182.81 | F77: Posted | G77: C16062 | H77: 1557 | I77: 9150 | J77: MIST Meter Capital | K77: W.00314533 - GS>50 MIST Meter Program Imple | L77: Payroll Burden | M77: G | N77: 1362487 | O77: 2017-04-26 | P77: Payroll Burden New | Q77: 0 | S77: 2017
A78: FS | B78: 564127 | C78: 00900 | D78: 2017-04-30 | E78: 410.1 | F78: Posted | G78: C16062 | H78: 1557 | I78: 9159 | J78: MIST Meter Capital | K78: W.00314533 - GS>50 MIST Meter Program Imple | L78: DLC to Capital WO-AA | M78: G | N78: 1363428 | O78: 2017-05-01 | P78: PS0005AA | Q78: 0 | S78: 2017
A79: FS | B79: 566287 | C79: 00900 | D79: 2017-04-30 | E79: 11.82 | F79: Posted | G79: C16062 | H79: 1557 | I79: 9159 | J79: MIST Meter Capital | K79: W.00314533 - GS>50 MIST Meter Program Imple | L79: DLC to Capital WO-AA | M79: G | N79: 1373222 | O79: 2017-05-03 | P79: PS0005AA | Q79: 0 | S79: 2017
A80: FS | B80: 566296 | C80: 00900 | D80: 2017-04-30 | E80: 10.5 | F80: Posted | G80: 900 | H80: 1557 | I80: 9175 | J80: MIST Meter Capital | K80: W.00201316 - Auto Allocation | L80: Vehicle Burd-Alloc-AA | M80: G | N80: 1373377 | O80: 2017-05-03 | P80: PS0002AA | Q80: 0 | S80: 2017
A81: FS | B81: 566301 | C81: 00900 | D81: 2017-04-30 | E81: 320.84 | F81: Posted | G81: 900 | H81: 1557 | I81: 9155 | J81: Burden Allocation | K81: W.00201316 - Auto Allocation | L81: Payroll Burd-Alloc-AA | M81: G | N81: 1373462 | O81: 2017-05-04 | P81: PS0003AA | Q81: 0 | S81: 2017
A82: FS | B82: 566525 | C82: 00900 | D82: 2017-05-31 | E82: 14.6 | F82: Posted | G82: C16062 | H82: 1557 | I82: 9159 | J82: MIST Meter Capital | K82: W.00314533 - GS>50 MIST Meter Program Imple | L82: DLC to Capital WO-AA | M82: G | N82: 1377990 | O82: 2017-05-23 | P82: PS0005AA | Q82: 0 | S82: 2017
A83: FS | B83: 566546 | C83: 00900 | D83: 2017-05-05 | E83: 137.11 | F83: Posted | G83: C16062 | H83: 1557 | I83: 9150 | J83: MIST Meter Capital | K83: W.00314533 - GS>50 MIST Meter Program Imple | L83: Payroll Burden | M83: G | N83: 1379383 | O83: 2017-05-26 | P83: Payroll Burden New | Q83: 0 | S83: 2017
A84: FS | B84: 566547 | C84: 00900 | D84: 2017-05-12 | E84: 114.26 | F84: Posted | G84: C16062 | H84: 1557 | I84: 9150 | J84: MIST Meter Capital | K84: W.00314533 - GS>50 MIST Meter Program Imple | L84: Payroll Burden | M84: G | N84: 1379384 | O84: 2017-05-26 | P84: Payroll Burden New | Q84: 0 | S84: 2017
A85: FS | B85: 566550 | C85: 00900 | D85: 2017-05-19 | E85: 365.63 | F85: Posted | G85: C16062 | H85: 1557 | I85: 9150 | J85: MIST Meter Capital | K85: W.00314533 - GS>50 MIST Meter Program Imple | L85: Payroll Burden | M85: G | N85: 1379404 | O85: 2017-05-26 | P85: Payroll Burden New | Q85: 0 | S85: 2017
A86: FS | B86: 567786 | C86: 00900 | D86: 2017-05-31 | E86: 62.37 | F86: Posted | G86: C16062 | H86: 1557 | I86: 9159 | J86: MIST Meter Capital | K86: W.00314533 - GS>50 MIST Meter Program Imple | L86: DLC to Capital WO-AA | M86: G | N86: 1386132 | O86: 2017-06-05 | P86: PS0005AA | Q86: 0 | S86: 2017
A87: FS | B87: 567789 | C87: 00900 | D87: 2017-05-31 | E87: -50.98 | F87: Posted | G87: 900 | H87: 1557 | I87: 9155 | J87: Burden Allocation | K87: W.00201316 - Auto Allocation | L87: Payroll Burd-Alloc-AA | M87: G | N87: 1386292 | O87: 2017-06-05 | P87: PS0002AA | Q87: 0 | S87: 2017
A88: FS | B88: 567790 | C88: 00900 | D88: 2017-05-31 | E88: -29 | F88: Posted | G88: 900 | H88: 1557 | I88: 9175 | J88: MIST Meter Capital | K88: W.00201316 - Auto Allocation | L88: Vehicle Burd-Alloc-AA | M88: G | N88: 1386305 | O88: 2017-06-05 | P88: PS0002AA | Q88: 0 | S88: 2017
A89: FS | B89: 569192 | C89: 00900 | D89: 2017-06-30 | E89: 291.75 | F89: Posted | G89: C16062 | H89: 1557 | I89: 9159 | J89: MIST Meter Capital | K89: W.00314533 - GS>50 MIST Meter Program Imple | L89: DLC to Capital WO-AA | M89: G | N89: 1399312 | O89: 2017-07-06 | P89: PS0005AA | Q89: 0 | S89: 2017
A90: FS | B90: 569195 | C90: 00900 | D90: 2017-06-30 | E90: 12.49 | F90: Posted | G90: 900 | H90: 1557 | I90: 9175 | J90: MIST Meter Capital | K90: W.00201316 - Auto Allocation | L90: Vehicle Burd-Alloc-AA | M90: G | N90: 1399485 | O90: 2017-07-06 | P90: PS0002AA | Q90: 0 | S90: 2017
A91: FS | B91: 569199 | C91: 00900 | D91: 2017-06-30 | E91: -41.95 | F91: Posted | G91: 900 | H91: 1557 | I91: 9155 | J91: Burden Allocation | K91: W.00201316 - Auto Allocation | L91: Payroll Burd-Alloc-AA | M91: G | N91: 1399560 | O91: 2017-07-06 | P91: PS0002AA | Q91: 0 | S91: 2017
A92: FS | B92: 570457 | C92: 00900 | D92: 2017-07-31 | E92: -37.14 | F92: Posted | G92: 900 | H92: 1557 | I92: 9175 | J92: MIST Meter Capital | K92: W.00201316 - Auto Allocation | L92: Vehicle Burd-Alloc-AA | M92: G | N92: 1409454 | O92: 2017-08-02 | P92: PS0002AA | Q92: 0 | S92: 2017
A93: FS | B93: 570464 | C93: 00900 | D93: 2017-07-31 | E93: 8.43 | F93: Posted | G93: 900 | H93: 1557 | I93: 9155 | J93: Burden Allocation | K93: W.00201316 - Auto Allocation | L93: Payroll Burd-Alloc-AA | M93: G | N93: 1409688 | O93: 2017-08-03 | P93: PS0002AA | Q93: 0 | S93: 2017
A94: FS | B94: 571772 | C94: 00900 | D94: 2017-08-31 | E94: 88.95 | F94: Posted | G94: C16062 | H94: 1557 | I94: 9159 | J94: MIST Meter Capital | K94: W.00314533 - GS>50 MIST Meter Program Imple | L94: DLC to Capital WO-AA | M94: G | N94: 1420727 | O94: 2017-09-06 | P94: PS0005AA | Q94: 0 | S94: 2017
A95: FS | B95: 571779 | C95: 00900 | D95: 2017-08-31 | E95: 57.14 | F95: Posted | G95: 900 | H95: 1557 | I95: 9175 | J95: MIST Meter Capital | K95: W.00201316 - Auto Allocation | L95: Vehicle Burd-Alloc-AA | M95: G | N95: 1420796 | O95: 2017-09-06 | P95: PS0002AA | Q95: 0 | S95: 2017
A96: FS | B96: 571780 | C96: 00900 | D96: 2017-08-31 | E96: 20.4 | F96: Posted | G96: 900 | H96: 1557 | I96: 9155 | J96: Burden Allocation | K96: W.00201316 - Auto Allocation | L96: Payroll Burd-Alloc-AA | M96: G | N96: 1420844 | O96: 2017-09-06 | P96: PS0002AA | Q96: 0 | S96: 2017
A97: FS | B97: 573266 | C97: 00900 | D97: 2017-09-30 | E97: 290.98 | F97: Posted | G97: 900 | H97: 1557 | I97: 9155 | J97: Burden Allocation | K97: W.00201316 - Auto Allocation | L97: Payroll Burd-Alloc-AA | M97: G | N97: 1430075 | O97: 2017-10-05 | P97: PS0002AA | Q97: 0 | S97: 2017
A98: FS | B98: 573267 | C98: 00900 | D98: 2017-09-30 | E98: -25.98 | F98: Posted | G98: 900 | H98: 1557 | I98: 9175 | J98: MIST Meter Capital | K98: W.00201316 - Auto Allocation | L98: Vehicle Burd-Alloc-AA | M98: G | N98: 1430086 | O98: 2017-10-05 | P98: PS0002AA | Q98: 0 | S98: 2017
A99: FS | B99: 574431 | C99: 00900 | D99: 2017-10-31 | E99: 21.36 | F99: Posted | G99: 900 | H99: 1557 | I99: 9175 | J99: MIST Meter Capital | K99: W.00201316 - Auto Allocation | L99: Vehicle Burd-Alloc-AA | M99: G | N99: 1440563 | O99: 2017-11-03 | P99: PS0002AA | Q99: 0 | S99: 2017
A100: FS | B100: 574432 | C100: 00900 | D100: 2017-10-31 | E100: -105.23 | F100: Posted | G100: 900 | H100: 1557 | I100: 9155 | J100: Burden Allocation | K100: W.00201316 - Auto Allocation | L100: Payroll Burd-Alloc-AA | M100: G | N100: 1440624 | O100: 2017-11-03 | P100: PS0002AA | Q100: 0 | S100: 2017
A101: FS | B101: 575453 | C101: 00900 | D101: 2017-11-30 | E101: 164.62 | F101: Posted | G101: C16062 | H101: 1557 | I101: 9159 | J101: MIST Meter Capital | K101: W.00314533 - GS>50 MIST Meter Program Imple | L101: DLC to Capital WO-AA | M101: G | N101: 1451674 | O101: 2017-12-05 | P101: PS0005AA | Q101: 0 | S101: 2017
A102: FS | B102: 575454 | C102: 00900 | D102: 2017-11-30 | E102: -49.49 | F102: Posted | G102: 900 | H102: 1557 | I102: 9155 | J102: Burden Allocation | K102: W.00201316 - Auto Allocation | L102: Payroll Burd-Alloc-AA | M102: G | N102: 1451729 | O102: 2017-12-05 | P102: PS0002AA | Q102: 0 | S102: 2017
A103: FS | B103: 575456 | C103: 00900 | D103: 2017-11-30 | E103: 3.4 | F103: Posted | G103: 900 | H103: 1557 | I103: 9175 | J103: MIST Meter Capital | K103: W.00201316 - Auto Allocation | L103: Vehicle Burd-Alloc-AA | M103: G | N103: 1451756 | O103: 2017-12-05 | P103: PS0002AA | Q103: 0 | S103: 2017
A104: FS | B104: 576451 | C104: 00900 | D104: 2017-12-31 | E104: 40.5 | F104: Posted | G104: C16062 | H104: 1557 | I104: 9159 | J104: MIST Meter Capital | K104: W.00314533 - GS>50 MIST Meter Program Imple | L104: DLC to Capital WO-AA | M104: G | N104: 1462003 | O104: 2018-01-05 | P104: PS0005AA | Q104: 0 | S104: 2017
A105: FS | B105: 576453 | C105: 00900 | D105: 2017-12-31 | E105: 260.3 | F105: Posted | G105: 900 | H105: 1557 | I105: 9155 | J105: Burden Allocation | K105: W.00201316 - Auto Allocation | L105: Payroll Burd-Alloc-AA | M105: G | N105: 1462071 | O105: 2018-01-05 | P105: PS0002AA | Q105: 0 | S105: 2017
A106: FS | B106: 576454 | C106: 00900 | D106: 2017-12-31 | E106: 171.46 | F106: Posted | G106: 900 | H106: 1557 | I106: 9175 | J106: MIST Meter Capital | K106: W.00201316 - Auto Allocation | L106: Vehicle Burd-Alloc-AA | M106: G | N106: 1462073 | O106: 2018-01-05 | P106: PS0002AA | Q106: 0 | S106: 2017
A107: FS | B107: 581031 | C107: 00900 | D107: 2018-03-31 | E107: 50069 | F107: Posted | G107: C16062 | H107: 1557 | I107: 9159 | J107: MIST Meter Capital | K107: W.00314533 - GS>50 MIST Meter Program Imple | L107: DLC to Capital WO-AA | M107: G | N107: 1496914 | O107: 2018-04-04 | P107: PS0005AA | Q107: 0 | S107: 2018
A108: FS | B108: 584303 | C108: 00900 | D108: 2018-05-31 | E108: 3236.07 | F108: Posted | G108: C16062 | H108: 1557 | I108: 9159 | J108: MIST Meter Capital | K108: W.00314533 - GS>50 MIST Meter Program Imple | L108: DLC to Capital WO-AA | M108: G | N108: 1518795 | O108: 2018-06-05 | P108: PS0005AA | Q108: 0 | S108: 2018
A109: FS | B109: 584820 | C109: 00900 | D109: 2018-06-01 | E109: 131.95 | F109: Posted | G109: C16062 | H109: 1557 | I109: 9150 | J109: MIST Meter Capital | K109: W.00314533 - GS>50 MIST Meter Program Imple | L109: Payroll Burden | M109: G | N109: 1523789 | O109: 2018-06-27 | P109: Payroll Burden New | Q109: 0 | S109: 2018
A110: FS | B110: 584848 | C110: 00900 | D110: 2018-06-30 | E110: 6.6 | F110: Posted | G110: C16062 | H110: 1557 | I110: 9159 | J110: MIST Meter Capital | K110: W.00314533 - GS>50 MIST Meter Program Imple | L110: DLC to Capital WO-AA | M110: G | N110: 1524389 | O110: 2018-07-03 | P110: PS0005AA | Q110: 0 | S110: 2018
A111: FS | B111: 585717 | C111: 00900 | D111: 2018-06-30 | E111: 0 | F111: Posted | G111: C16062 | H111: 1557 | I111: 9159 | J111: MIST Meter Capital | K111: W.00314533 - GS>50 MIST Meter Program Imple | L111: DLC to Capital WO-AA | M111: G | N111: 1527832 | O111: 2018-07-04 | P111: PS0005AA | Q111: 0 | S111: 2018
A112: FS | B112: 587665 | C112: 00900 | D112: 2018-08-31 | E112: 4.9 | F112: Posted | G112: C16062 | H112: 1557 | I112: 9159 | J112: MIST Meter Capital | K112: W.00314533 - GS>50 MIST Meter Program Imple | L112: DLC to Capital WO-AA | M112: G | N112: 1540182 | O112: 2018-08-27 | P112: PS0005AA | Q112: 0 | S112: 2018
A113: FS | B113: 588760 | C113: 00900 | D113: 2018-08-31 | E113: 0 | F113: Posted | G113: C16062 | H113: 1557 | I113: 9159 | J113: MIST Meter Capital | K113: W.00314533 - GS>50 MIST Meter Program Imple | L113: DLC to Capital WO-AA | M113: G | N113: 1545889 | O113: 2018-09-07 | P113: PS0005AA | Q113: 0 | S113: 2018
A114: FS | B114: 592256 | C114: 00900 | D114: 2018-10-31 | E114: 1600 | F114: Posted | G114: C16062 | H114: 1557 | I114: 9159 | J114: MIST Meter Capital | K114: W.00314533 - GS>50 MIST Meter Program Imple | L114: DLC to Capital WO-AA | M114: G | N114: 1566347 | O114: 2018-11-02 | P114: PS0005AA | Q114: 0 | S114: 2018
A115: FS | B115: 592273 | C115: 00900 | D115: 2018-11-30 | E115: -1403.88 | F115: Posted | G115: C16062 | H115: 1557 | I115: 9159 | J115: MIST Meter Capital | K115: W.00314533 - GS>50 MIST Meter Program Imple | L115: DLC to Capital WO-AA | M115: G | N115: 1567873 | O115: 2018-11-10 | P115: PS0005AA | Q115: 0 | S115: 2018
A116: FS | B116: 592291 | C116: 00900 | D116: 2018-11-30 | E116: 1594.15 | F116: Posted | G116: C16062 | H116: 1557 | I116: 9159 | J116: MIST Meter Capital | K116: W.00314533 - GS>50 MIST Meter Program Imple | L116: DLC to Capital WO-AA | M116: G | N116: 1569622 | O116: 2018-11-17 | P116: PS0005AA | Q116: 0 | S116: 2018
A117: FS | B117: 592313 | C117: 00900 | D117: 2018-11-30 | E117: 69 | F117: Posted | G117: C16062 | H117: 1557 | I117: 9159 | J117: MIST Meter Capital | K117: W.00314533 - GS>50 MIST Meter Program Imple | L117: DLC to Capital WO-AA | M117: G | N117: 1571225 | O117: 2018-11-24 | P117: PS0005AA | Q117: 0 | S117: 2018
A118: FS | B118: 592746 | C118: 00900 | D118: 2018-11-30 | E118: 0 | F118: Posted | G118: C16062 | H118: 1557 | I118: 9159 | J118: MIST Meter Capital | K118: W.00314533 - GS>50 MIST Meter Program Imple | L118: DLC to Capital WO-AA | M118: G | N118: 1573231 | O118: 2018-12-01 | P118: PS0005AA | Q118: 0 | S118: 2018
A119: FS | B119: 593746 | C119: 00900 | D119: 2018-11-30 | E119: 183.75 | F119: Posted | G119: C16062 | H119: 1557 | I119: 9159 | J119: MIST Meter Capital | K119: W.00314533 - GS>50 MIST Meter Program Imple | L119: DLC to Capital WO-AA | M119: G | N119: 1578091 | O119: 2018-12-05 | P119: PS0005AA | Q119: 0 | S119: 2018
A120: FS | B120: 593761 | C120: 00900 | D120: 2018-12-31 | E120: -183.75 | F120: Posted | G120: C16062 | H120: 1557 | I120: 9159 | J120: MIST Meter Capital | K120: W.00314533 - GS>50 MIST Meter Program Imple | L120: DLC to Capital WO-AA | M120: G | N120: 1579022 | O120: 2018-12-08 | P120: PS0005AA | Q120: 0 | S120: 2018
A121: FS | B121: 593813 | C121: 00900 | D121: 2018-12-31 | E121: 0 | F121: Posted | G121: C16062 | H121: 1557 | I121: 9159 | J121: MIST Meter Capital | K121: W.00314533 - GS>50 MIST Meter Program Imple | L121: DLC to Capital WO-AA | M121: G | N121: 1581923 | O121: 2018-12-27 | P121: PS0005AA | Q121: 0 | S121: 2018
A122: FS | B122: 593833 | C122: 00900 | D122: 2018-12-31 | E122: 0 | F122: Posted | G122: C16062 | H122: 1557 | I122: 9159 | J122: MIST Meter Capital | K122: W.00314533 - GS>50 MIST Meter Program Imple | L122: DLC to Capital WO-AA | M122: G | N122: 1582107 | O122: 2018-12-31 | P122: PS0005AA | Q122: 0 | S122: 2018
A123: FS | B123: 595059 | C123: 00900 | D123: 2018-12-31 | E123: 0 | F123: Posted | G123: C16062 | H123: 1557 | I123: 9159 | J123: MIST Meter Capital | K123: W.00314533 - GS>50 MIST Meter Program Imple | L123: DLC to Capital WO-AA | M123: G | N123: 1585735 | O123: 2019-01-03 | P123: PS0005AA | Q123: 0 | S123: 2018
A124: OV | B124: 87472 | C124: 00900 | D124: 2017-06-27 | E124: 5835 | F124: Posted | G124: C16062 | H124: 1557 | I124: 2122 | J124: MIST Meter Capital | K124: W.00314533 - GS>50 MIST Meter Program Imple | L124: MICROHARD SYSTEMS INC. | M124: O | N124: 1392750 | O124: 2017-06-27 | P124: 15x BulletLTE | Q124: 862612 | S124: 2017
A125: PV | B125: 613031 | C125: 00900 | D125: 2016-12-06 | E125: 62.45 | F125: Posted | G125: C16062 | H125: 1557 | I125: 2122 | J125: MIST Meter Capital | K125: W.00314533 - GS>50 MIST Meter Program Imple | L125: SAYAL ELECTRONICS | M125: V | N125: 1309136 | O125: 2016-12-06 | Q125: 837572 | S125: 2016
A126: PV | B126: 613511 | C126: 00900 | D126: 2016-12-08 | E126: 1301.38 | F126: Posted | G126: C16062 | H126: 1557 | I126: 2122 | J126: MIST Meter Capital | K126: W.00314533 - GS>50 MIST Meter Program Imple | L126: INSIGHT CANADA | M126: V | N126: 1310010 | O126: 2016-12-08 | Q126: 731022 | S126: 2016
A127: PV | B127: 613926 | C127: 00900 | D127: 2016-12-09 | E127: 1020 | F127: Posted | G127: C16062 | H127: 1557 | I127: 2122 | J127: MIST Meter Capital | K127: W.00314533 - GS>50 MIST Meter Program Imple | L127: NOVANET COMMUNICATIONS LIMITED | M127: V | N127: 1310370 | O127: 2016-12-09 | P127: Purchase of Communication | Q127: 429587 | S127: 2016
A128: PV | B128: 614415 | C128: 00900 | D128: 2016-12-14 | E128: 359.02 | F128: Posted | G128: C16062 | H128: 1557 | I128: 2122 | J128: MIST Meter Capital | K128: W.00314533 - GS>50 MIST Meter Program Imple | L128: PHOENIX CONTACT LTD | M128: V | N128: 1311195 | O128: 2016-12-14 | Q128: 9849 | S128: 2016
A129: PV | B129: 632709 | C129: 00900 | D129: 2017-04-26 | E129: 7552 | F129: Posted | G129: C16062 | H129: 1557 | I129: 2122 | J129: MIST Meter Capital | K129: W.00314533 - GS>50 MIST Meter Program Imple | L129: WAVERUNNER COMMUNICATIONS INC. | M129: V | N129: 1362497 | O129: 2017-04-26 | P129: Cellular Communications | Q129: 138018 | S129: 2017
A130: PV | B130: 651462 | C130: 00900 | D130: 2017-08-31 | E130: 1779 | F130: Posted | G130: C16062 | H130: 1557 | I130: 2122 | J130: MIST Meter Capital | K130: W.00314533 - GS>50 MIST Meter Program Imple | L130: WALLWIN ELECTRIC SERVICES LTD | M130: V | N130: 1415827 | O130: 2017-08-31 | Q130: 539373 | S130: 2017
A131: PV | B131: 660682 | C131: 00900 | D131: 2017-11-03 | E131: 892.4 | F131: Posted | G131: C16062 | H131: 1557 | I131: 2124 | J131: MIST Meter Capital | K131: W.00314533 - GS>50 MIST Meter Program Imple | L131: Durham-York Electrical & COMMU | M131: V | N131: 1440572 | O131: 2017-11-03 | Q131: 1373263 | S131: =YEAR(D131) -> 2017
A132: PV | B132: 662806 | C132: 00900 | D132: 2017-11-16 | E132: 600 | F132: Posted | G132: C16062 | H132: 1557 | I132: 1282 | J132: MIST Meter Capital | K132: W.00314553 - AutoCAD Utility Design Impleme | L132: WALLWIN ELECTRIC SERVICES LTD | M132: V | N132: 1443729 | O132: 2017-11-16 | Q132: 539373 | S132: 2017
A133: PV | B133: 662808 | C133: 00900 | D133: 2017-11-16 | E133: 600 | F133: Posted | G133: C16062 | H133: 1557 | I133: 1282 | J133: MIST Meter Capital | K133: W.00314553 - AutoCAD Utility Design Impleme | L133: WALLWIN ELECTRIC SERVICES LTD | M133: V | N133: 1443729 | O133: 2017-11-16 | Q133: 539373 | S133: 2017
A134: PV | B134: 662809 | C134: 00900 | D134: 2017-11-16 | E134: 600 | F134: Posted | G134: C16062 | H134: 1557 | I134: 1282 | J134: MIST Meter Capital | K134: W.00314553 - AutoCAD Utility Design Impleme | L134: WALLWIN ELECTRIC SERVICES LTD | M134: V | N134: 1443729 | O134: 2017-11-16 | Q134: 539373 | S134: 2017
A135: PV | B135: 662810 | C135: 00900 | D135: 2017-11-16 | E135: 600 | F135: Posted | G135: C16062 | H135: 1557 | I135: 1282 | J135: MIST Meter Capital | K135: W.00314553 - AutoCAD Utility Design Impleme | L135: WALLWIN ELECTRIC SERVICES LTD | M135: V | N135: 1443729 | O135: 2017-11-16 | Q135: 539373 | S135: 2017
A136: PV | B136: 668032 | C136: 00900 | D136: 2017-12-18 | E136: 480 | F136: Posted | G136: C16062 | H136: 1557 | I136: 1282 | J136: MIST Meter Capital | K136: W.00314533 - GS>50 MIST Meter Program Imple | L136: REACTANCE ELECTRICAL SERVICES | M136: V | N136: 1455441 | O136: 2017-12-18 | Q136: 1411291 | S136: 2017
A137: PV | B137: 668033 | C137: 00900 | D137: 2017-12-18 | E137: 330 | F137: Posted | G137: C16062 | H137: 1557 | I137: 1282 | J137: MIST Meter Capital | K137: W.00314533 - GS>50 MIST Meter Program Imple | L137: REACTANCE ELECTRICAL SERVICES | M137: V | N137: 1455441 | O137: 2017-12-18 | Q137: 1411291 | S137: 2017
A138: PV | B138: 669130 | C138: 00900 | D138: 2017-12-22 | E138: 44277.59 | F138: Posted | G138: 900 | H138: 1558 | I138: 1169 | J138: Software maintenance agreement | L138: ITRON CANADA INC | M138: V | N138: 1456760 | O138: 2017-12-22 | P138: MV-90 1 Year Renewal | Q138: 317649 | S138: 2017
A139: PV | B139: 691553 | C139: 00900 | D139: 2018-05-29 | E139: 29113.32 | F139: Posted | G139: C16062 | H139: 1557 | I139: 2122 | J139: MIST Meter Capital | K139: W.00314533 - GS>50 MIST Meter Program Imple | L139: JESSTEC INDUSTRIES | M139: V | N139: 1513586 | O139: 2018-05-29 | P139: LP-7J Low Profile Adapter | Q139: 54674 | S139: 2018
A140: PV | B140: 691917 | C140: 00900 | D140: 2018-05-31 | E140: 35296.68 | F140: Posted | G140: C16062 | H140: 1557 | I140: 2122 | J140: MIST Meter Capital | K140: W.00314533 - GS>50 MIST Meter Program Imple | L140: JESSTEC INDUSTRIES | M140: V | N140: 1514521 | O140: 2018-06-01 | P140: LP-7J Low Profile Adapter | Q140: 54674 | S140: 2018
A141: PV | B141: 700631 | C141: 00900 | D141: 2018-08-22 | E141: 98.05 | F141: Posted | G141: C16062 | H141: 1557 | I141: 2124 | J141: MIST Meter Capital | K141: W.00314533 - GS>50 MIST Meter Program Imple | L141: SAYAL ELECTRONICS | M141: V | N141: 1539495 | O141: 2018-08-22 | Q141: 837572 | S141: 2018
A142: PV | B142: 706629 | C142: 00900 | D142: 2018-10-30 | E142: 3200 | F142: Posted | G142: C16062 | H142: 1557 | I142: 2124 | J142: MIST Meter Capital | K142: W.00314533 - GS>50 MIST Meter Program Imple | L142: ROGERS COMMUNICATIONS INC. | M142: V | N142: 1560159 | O142: 2018-10-30 | P142: Rogers APN SIM Cards | Q142: 545035 | S142: 2018
A143: PV | B143: 707440 | C143: 00900 | D143: 2018-11-06 | E143: 20.42 | F143: Posted | G143: C16062 | H143: 1557 | I143: 2124 | J143: MIST Meter Capital | K143: W.00314533 - GS>50 MIST Meter Program Imple | L143: WESTBURNE RUDDY ONTARIO | M143: V | N143: 1566816 | O143: 2018-11-06 | Q143: 7350 | S143: 2018
A144: PV | B144: 707444 | C144: 00900 | D144: 2018-11-06 | E144: 78.3 | F144: Posted | G144: C16062 | H144: 1557 | I144: 2124 | J144: MIST Meter Capital | K144: W.00314533 - GS>50 MIST Meter Program Imple | L144: SAYAL ELECTRONICS | M144: V | N144: 1566816 | O144: 2018-11-06 | Q144: 837572 | S144: 2018
A145: PV | B145: 707445 | C145: 00900 | D145: 2018-11-06 | E145: 83.34 | F145: Posted | G145: C16062 | H145: 1557 | I145: 2124 | J145: MIST Meter Capital | K145: W.00314533 - GS>50 MIST Meter Program Imple | L145: SAYAL ELECTRONICS | M145: V | N145: 1566816 | O145: 2018-11-06 | Q145: 837572 | S145: 2018
A146: PV | B146: 707529 | C146: 00900 | D146: 2018-11-07 | E146: 133.8 | F146: Posted | G146: C16062 | H146: 1557 | I146: 2124 | J146: MIST Meter Capital | K146: W.00314533 - GS>50 MIST Meter Program Imple | L146: SAYAL ELECTRONICS | M146: V | N146: 1566977 | O146: 2018-11-07 | Q146: 837572 | S146: 2018
A147: PV | B147: 707530 | C147: 00900 | D147: 2018-11-07 | E147: 208.45 | F147: Posted | G147: C16062 | H147: 1557 | I147: 2124 | J147: MIST Meter Capital | K147: W.00314533 - GS>50 MIST Meter Program Imple | L147: SAYAL ELECTRONICS | M147: V | N147: 1566977 | O147: 2018-11-07 | Q147: 837572 | S147: 2018
A148: PV | B148: 707531 | C148: 00900 | D148: 2018-11-07 | E148: 198 | F148: Posted | G148: C16062 | H148: 1557 | I148: 2124 | J148: MIST Meter Capital | K148: W.00314533 - GS>50 MIST Meter Program Imple | L148: SAYAL ELECTRONICS | M148: V | N148: 1566977 | O148: 2018-11-07 | Q148: 837572 | S148: 2018
A149: PV | B149: 708201 | C149: 00900 | D149: 2018-11-13 | E149: 74.25 | F149: Posted | G149: C16062 | H149: 1557 | I149: 2122 | J149: MIST Meter Capital | K149: W.00314533 - GS>50 MIST Meter Program Imple | L149: SAYAL ELECTRONICS | M149: V | N149: 1568688 | O149: 2018-11-13 | Q149: 837572 | S149: 2018
A150: PV | B150: 708208 | C150: 00900 | D150: 2018-11-13 | E150: 2890.4 | F150: Posted | G150: C16062 | H150: 1557 | I150: 2122 | J150: MIST Meter Capital | K150: W.00314533 - GS>50 MIST Meter Program Imple | L150: NEDCO-DIV. OF REXE CANADA ELEC | M150: V | N150: 1568704 | O150: 2018-11-13 | Q150: 7368 | S150: 2018
A151: PV | B151: 708269 | C151: 00900 | D151: 2018-11-14 | E151: 118.42 | F151: Posted | G151: C16062 | H151: 1557 | I151: 2122 | J151: MIST Meter Capital | K151: W.00314533 - GS>50 MIST Meter Program Imple | L151: NEDCO-DIV. OF REXE CANADA ELEC | M151: V | N151: 1568905 | O151: 2018-11-14 | Q151: 7368 | S151: 2018
A152: PV | B152: 708306 | C152: 00900 | D152: 2018-11-14 | E152: 28800 | F152: Posted | G152: C16062 | H152: 1557 | I152: 2124 | J152: MIST Meter Capital | K152: W.00314533 - GS>50 MIST Meter Program Imple | L152: WAVERUNNER COMMUNICATIONS INC. | M152: V | N152: 1568935 | O152: 2018-11-14 | P152: BMLPVMB/LTE antenna black | Q152: 138018 | S152: 2018
A153: PV | B153: 708371 | C153: 00900 | D153: 2018-11-14 | E153: 1380 | F153: Posted | G153: C16062 | H153: 1557 | I153: 2122 | J153: MIST Meter Capital | K153: W.00314533 - GS>50 MIST Meter Program Imple | L153: WESTBURNE RUDDY ONTARIO | M153: V | N153: 1568980 | O153: 2018-11-14 | Q153: 7350 | S153: 2018
A154: SJ | B154: 575523 | C154: 00900 | D154: 2017-12-14 | E154: -8.62 | F154: Posted | G154: 900 | H154: 1557 | I154: 8101 | J154: Cash Billing / Receipts | L154: CIS - Adj Batch # 651CCB Batch | M154: J | N154: 1454896 | O154: 2017-12-14 | P154: E-MTH | Q154: 0 | S154: 2017
A155: SJ | B155: 577281 | C155: 00900 | D155: 2018-01-15 | E155: -8.62 | F155: Posted | G155: 900 | H155: 1557 | I155: 8101 | J155: Cash Billing / Receipts | L155: CIS - Adj Batch # 670CCB Batch | M155: J | N155: 1464191 | O155: 2018-01-15 | P155: E-MTH | Q155: 0 | S155: 2018
A156: SJ | B156: 578318 | C156: 00900 | D156: 2018-02-14 | E156: -8.62 | F156: Posted | G156: 900 | H156: 1557 | I156: 8101 | J156: Cash Billing / Receipts | L156: CIS - Adj Batch # 692CCB Batch | M156: J | N156: 1478143 | O156: 2018-02-14 | P156: E-MTH | Q156: 0 | S156: 2018
A157: SJ | B157: 579746 | C157: 00900 | D157: 2018-03-14 | E157: -8.62 | F157: Posted | G157: 900 | H157: 1557 | I157: 8101 | J157: Cash Billing / Receipts | L157: CIS - Adj Batch # 711CCB Batch | M157: J | N157: 1489129 | O157: 2018-03-14 | P157: E-MTH | Q157: 0 | S157: 2018
A158: SJ | B158: 581523 | C158: 00900 | D158: 2018-04-16 | E158: -8.62 | F158: Posted | G158: 900 | H158: 1557 | I158: 8101 | J158: Cash Billing / Receipts | L158: CIS - Adj Batch # 733CCB Batch | M158: J | N158: 1499170 | O158: 2018-04-16 | P158: E-MTH | Q158: 0 | S158: 2018
A159: SJ | B159: 582882 | C159: 00900 | D159: 2018-05-15 | E159: -8.62 | F159: Posted | G159: 900 | H159: 1557 | I159: 8101 | J159: Cash Billing / Receipts | L159: CIS - Adj Batch # 753CCB Batch | M159: J | N159: 1510767 | O159: 2018-05-15 | P159: E-MTH | Q159: 0 | S159: 2018
A160: SJ | B160: 582886 | C160: 00900 | D160: 2018-05-16 | E160: -9.77 | F160: Posted | G160: 900 | H160: 1557 | I160: 8101 | J160: Cash Billing / Receipts | L160: CIS - Adj Batch # 755CCB Batch | M160: J | N160: 1511619 | O160: 2018-05-16 | P160: E-MTH | Q160: 0 | S160: 2018
A161: SJ | B161: 584349 | C161: 00900 | D161: 2018-06-09 | E161: -8.62 | F161: Posted | G161: 900 | H161: 1557 | I161: 8101 | J161: Cash Billing / Receipts | L161: CIS - Adj Batch # 771CCB Batch | M161: J | N161: 1520116 | O161: 2018-06-09 | P161: E-MTH | Q161: 0 | S161: 2018
A162: SJ | B162: 584361 | C162: 00900 | D162: 2018-06-14 | E162: -8.62 | F162: Posted | G162: 900 | H162: 1557 | I162: 8101 | J162: Cash Billing / Receipts | L162: CIS - Adj Batch # 775CCB Batch | M162: J | N162: 1521402 | O162: 2018-06-14 | P162: E-MTH | Q162: 0 | S162: 2018
A163: SJ | B163: 590654 | C163: 00900 | D163: 2018-10-12 | E163: -11.51 | F163: Posted | G163: 900 | H163: 1557 | I163: 8101 | J163: Cash Billing / Receipts | L163: CIS - Adj Batch # 858CCB Batch | M163: J | N163: 1556999 | O163: 2018-10-12 | P163: E-MTH | Q163: 0 | S163: 2018
A164: SJ | B164: 590713 | C164: 00900 | D164: 2018-10-29 | E164: -8.62 | F164: Posted | G164: 900 | H164: 1557 | I164: 8101 | J164: Cash Billing / Receipts | L164: CIS - Adj Batch # 869CCB Batch | M164: J | N164: 1560150 | O164: 2018-10-29 | P164: E-MTH | Q164: 0 | S164: 2018
A165: SJ | B165: 592288 | C165: 00900 | D165: 2018-11-15 | E165: -8.62 | F165: Posted | G165: 900 | H165: 1557 | I165: 8101 | J165: Cash Billing / Receipts | L165: CIS - Adj Batch # 882CCB Batch | M165: J | N165: 1569443 | O165: 2018-11-15 | P165: E-MTH | Q165: 0 | S165: 2018
A166: SJ | B166: 593784 | C166: 00900 | D166: 2018-12-17 | E166: -8.62 | F166: Posted | G166: 900 | H166: 1557 | I166: 8101 | J166: Cash Billing / Receipts | L166: CIS - Adj Batch # 905CCB Batch | M166: J | N166: 1580911 | O166: 2018-12-17 | P166: E-MTH | Q166: 0 | S166: 2018
A167: T2 | B167: 9814 | C167: 00900 | D167: 2016-11-04 | E167: 1101.1 | F167: Posted | G167: C16062 | H167: 1557 | I167: 1710 | J167: MIST Meter Capital | K167: W.00309891 - Meter Re-Verification | L167: Payroll Labor Distribution | M167: 7 | N167: 1298256 | O167: 2016-11-09 | Q167: 0 | S167: 2016
A168: T2 | B168: 9814 | C168: 00900 | D168: 2016-11-04 | E168: 1664.54 | F168: Posted | G168: C16062 | H168: 1557 | I168: 1710 | J168: MIST Meter Capital | K168: W.00314533 - GS>50 MIST Meter Program Imple | L168: Payroll Labor Distribution | M168: 7 | N168: 1298256 | O168: 2016-11-09 | Q168: 0 | S168: 2016
A169: T2 | B169: 9814 | C169: 00900 | D169: 2016-11-04 | E169: 6233.07 | F169: Posted | G169: C16062 | H169: 1557 | I169: 1720 | J169: MIST Meter Capital | K169: W.00314533 - GS>50 MIST Meter Program Imple | L169: Payroll Labor Distribution | M169: 7 | N169: 1298256 | O169: 2016-11-09 | Q169: 0 | S169: 2016
A170: T2 | B170: 9833 | C170: 00900 | D170: 2016-11-11 | E170: 7445.91 | F170: Posted | G170: C16062 | H170: 1557 | I170: 1720 | J170: MIST Meter Capital | K170: W.00314533 - GS>50 MIST Meter Program Imple | L170: Payroll Labor Distribution | M170: 7 | N170: 1300143 | O170: 2016-11-16 | Q170: 0 | S170: 2016
A171: T2 | B171: 9833 | C171: 00900 | D171: 2016-11-11 | E171: 31.8 | F171: Posted | G171: C16062 | H171: 1557 | I171: 1726 | J171: MIST Meter Capital | K171: W.00314533 - GS>50 MIST Meter Program Imple | L171: Payroll Labor Distribution | M171: 7 | N171: 1300143 | O171: 2016-11-16 | Q171: 0 | S171: 2016
A172: T2 | B172: 9837 | C172: 00900 | D172: 2016-11-18 | E172: 17917.83 | F172: Posted | G172: C16062 | H172: 1557 | I172: 1710 | J172: MIST Meter Capital | K172: W.00314533 - GS>50 MIST Meter Program Imple | L172: Payroll Labor Distribution | M172: 7 | N172: 1302530 | O172: 2016-11-24 | Q172: 0 | S172: 2016
A173: T2 | B173: 9837 | C173: 00900 | D173: 2016-11-18 | E173: 6668.49 | F173: Posted | G173: C16062 | H173: 1557 | I173: 1720 | J173: MIST Meter Capital | K173: W.00314533 - GS>50 MIST Meter Program Imple | L173: Payroll Labor Distribution | M173: 7 | N173: 1302530 | O173: 2016-11-24 | Q173: 0 | S173: 2016
A174: T2 | B174: 9837 | C174: 00900 | D174: 2016-11-18 | E174: 40.47 | F174: Posted | G174: C16062 | H174: 1557 | I174: 1726 | J174: MIST Meter Capital | K174: W.00314533 - GS>50 MIST Meter Program Imple | L174: Payroll Labor Distribution | M174: 7 | N174: 1302530 | O174: 2016-11-24 | Q174: 0 | S174: 2016
A175: T2 | B175: 9856 | C175: 00900 | D175: 2016-11-25 | E175: 11125.79 | F175: Posted | G175: C16062 | H175: 1557 | I175: 1710 | J175: MIST Meter Capital | K175: W.00314533 - GS>50 MIST Meter Program Imple | L175: Payroll Labor Distribution | M175: 7 | N175: 1304269 | O175: 2016-11-30 | Q175: 0 | S175: 2016
A176: T2 | B176: 9856 | C176: 00900 | D176: 2016-11-25 | E176: 917.35 | F176: Posted | G176: C16062 | H176: 1557 | I176: 1720 | J176: MIST Meter Capital | K176: W.00314533 - GS>50 MIST Meter Program Imple | L176: Payroll Labor Distribution | M176: 7 | N176: 1304269 | O176: 2016-11-30 | Q176: 0 | S176: 2016
A177: T2 | B177: 9863 | C177: 00900 | D177: 2016-12-02 | E177: 6169.86 | F177: Posted | G177: C16062 | H177: 1557 | I177: 1710 | J177: MIST Meter Capital | K177: W.00314533 - GS>50 MIST Meter Program Imple | L177: Payroll Labor Distribution | M177: 7 | N177: 1309175 | O177: 2016-12-08 | Q177: 0 | S177: 2016
A178: T2 | B178: 9863 | C178: 00900 | D178: 2016-12-02 | E178: 6320.15 | F178: Posted | G178: C16062 | H178: 1557 | I178: 1720 | J178: MIST Meter Capital | K178: W.00314533 - GS>50 MIST Meter Program Imple | L178: Payroll Labor Distribution | M178: 7 | N178: 1309175 | O178: 2016-12-08 | Q178: 0 | S178: 2016
A179: T2 | B179: 9879 | C179: 00900 | D179: 2016-12-09 | E179: 8181.2 | F179: Posted | G179: C16062 | H179: 1557 | I179: 1710 | J179: MIST Meter Capital | K179: W.00314533 - GS>50 MIST Meter Program Imple | L179: Payroll Labor Distribution | M179: 7 | N179: 1310906 | O179: 2016-12-14 | Q179: 0 | S179: 2016
A180: T2 | B180: 9879 | C180: 00900 | D180: 2016-12-09 | E180: 4278.42 | F180: Posted | G180: C16062 | H180: 1557 | I180: 1720 | J180: MIST Meter Capital | K180: W.00314533 - GS>50 MIST Meter Program Imple | L180: Payroll Labor Distribution | M180: 7 | N180: 1310906 | O180: 2016-12-14 | Q180: 0 | S180: 2016
A181: T2 | B181: 9879 | C181: 00900 | D181: 2016-12-09 | E181: 169.4 | F181: Posted | G181: C16062 | H181: 1557 | I181: 1720 | J181: MIST Meter Capital | K181: W.00315355 - HW 50 - CASTLEMORE TO MAYFIELD | L181: Payroll Labor Distribution | M181: 7 | N181: 1310906 | O181: 2016-12-14 | Q181: 0 | S181: 2016
A182: T2 | B182: 9883 | C182: 00900 | D182: 2016-12-16 | E182: 7686.56 | F182: Posted | G182: C16062 | H182: 1557 | I182: 1710 | J182: MIST Meter Capital | K182: W.00314533 - GS>50 MIST Meter Program Imple | L182: Payroll Labor Distribution | M182: 7 | N182: 1312445 | O182: 2016-12-21 | Q182: 0 | S182: 2016
A183: T2 | B183: 9883 | C183: 00900 | D183: 2016-12-16 | E183: 4062.66 | F183: Posted | G183: C16062 | H183: 1557 | I183: 1720 | J183: MIST Meter Capital | K183: W.00314533 - GS>50 MIST Meter Program Imple | L183: Payroll Labor Distribution | M183: 7 | N183: 1312445 | O183: 2016-12-21 | Q183: 0 | S183: 2016
A184: T2 | B184: 9883 | C184: 00900 | D184: 2016-12-16 | E184: 34.98 | F184: Posted | G184: C16062 | H184: 1557 | I184: 1726 | J184: MIST Meter Capital | K184: W.00314533 - GS>50 MIST Meter Program Imple | L184: Payroll Labor Distribution | M184: 7 | N184: 1312445 | O184: 2016-12-21 | Q184: 0 | S184: 2016
A185: T2 | B185: 9905 | C185: 00900 | D185: 2016-12-23 | E185: 2175.02 | F185: Posted | G185: C16062 | H185: 1557 | I185: 1710 | J185: MIST Meter Capital | K185: W.00314533 - GS>50 MIST Meter Program Imple | L185: Payroll Labor Distribution | M185: 7 | N185: 1313780 | O185: 2016-12-29 | Q185: 0 | S185: 2016
A186: T2 | B186: 9905 | C186: 00900 | D186: 2016-12-23 | E186: 2045.68 | F186: Posted | G186: C16062 | H186: 1557 | I186: 1720 | J186: MIST Meter Capital | K186: W.00314533 - GS>50 MIST Meter Program Imple | L186: Payroll Labor Distribution | M186: 7 | N186: 1313780 | O186: 2016-12-29 | Q186: 0 | S186: 2016
A187: T2 | B187: 9905 | C187: 00900 | D187: 2016-12-23 | E187: 6.36 | F187: Posted | G187: C16062 | H187: 1557 | I187: 1726 | J187: MIST Meter Capital | K187: W.00314533 - GS>50 MIST Meter Program Imple | L187: Payroll Labor Distribution | M187: 7 | N187: 1313780 | O187: 2016-12-29 | Q187: 0 | S187: 2016
A188: T2 | B188: 9912 | C188: 00900 | D188: 2016-12-30 | E188: 1680.42 | F188: Posted | G188: C16062 | H188: 1557 | I188: 1720 | J188: MIST Meter Capital | K188: W.00314533 - GS>50 MIST Meter Program Imple | L188: Payroll Labor Distribution | M188: 7 | N188: 1314332 | O188: 2017-01-05 | Q188: 0 | S188: 2016
A189: T2 | B189: 9925 | C189: 00900 | D189: 2017-01-06 | E189: 169.4 | F189: Posted | G189: C16062 | H189: 1557 | I189: 1710 | J189: MIST Meter Capital | K189: W.00314533 - GS>50 MIST Meter Program Imple | L189: Payroll Labor Distribution | M189: 7 | N189: 1320410 | O189: 2017-01-11 | Q189: 0 | S189: 2017
A190: T2 | B190: 9925 | C190: 00900 | D190: 2017-01-06 | E190: 1178.24 | F190: Posted | G190: C16062 | H190: 1557 | I190: 1720 | J190: MIST Meter Capital | K190: W.00314533 - GS>50 MIST Meter Program Imple | L190: Payroll Labor Distribution | M190: 7 | N190: 1320410 | O190: 2017-01-11 | Q190: 0 | S190: 2017
A191: T2 | B191: 9935 | C191: 00900 | D191: 2017-01-13 | E191: 2548.52 | F191: Posted | G191: C16062 | H191: 1557 | I191: 1710 | J191: MIST Meter Capital | K191: W.00314533 - GS>50 MIST Meter Program Imple | L191: Payroll Labor Distribution | M191: 7 | N191: 1322110 | O191: 2017-01-18 | Q191: 0 | S191: 2017
A192: T2 | B192: 9935 | C192: 00900 | D192: 2017-01-13 | E192: 1214.42 | F192: Posted | G192: C16062 | H192: 1557 | I192: 1720 | J192: MIST Meter Capital | K192: W.00314533 - GS>50 MIST Meter Program Imple | L192: Payroll Labor Distribution | M192: 7 | N192: 1322110 | O192: 2017-01-18 | Q192: 0 | S192: 2017
A193: T2 | B193: 9954 | C193: 00900 | D193: 2017-01-20 | E193: 889.35 | F193: Posted | G193: C16062 | H193: 1557 | I193: 1710 | J193: MIST Meter Capital | K193: W.00314533 - GS>50 MIST Meter Program Imple | L193: Payroll Labor Distribution | M193: 7 | N193: 1323481 | O193: 2017-01-25 | Q193: 0 | S193: 2017
A194: T2 | B194: 9954 | C194: 00900 | D194: 2017-01-20 | E194: 127.05 | F194: Posted | G194: C16062 | H194: 1557 | I194: 1720 | J194: MIST Meter Capital | K194: W.00314533 - GS>50 MIST Meter Program Imple | L194: Payroll Labor Distribution | M194: 7 | N194: 1323481 | O194: 2017-01-25 | Q194: 0 | S194: 2017
A195: T2 | B195: 9954 | C195: 00900 | D195: 2017-01-20 | E195: 9.54 | F195: Posted | G195: C16062 | H195: 1557 | I195: 1726 | J195: MIST Meter Capital | K195: W.00314533 - GS>50 MIST Meter Program Imple | L195: Payroll Labor Distribution | M195: 7 | N195: 1323481 | O195: 2017-01-25 | Q195: 0 | S195: =YEAR(D195) -> 2017
A196: T2 | B196: 9961 | C196: 00900 | D196: 2017-01-27 | E196: 211.75 | F196: Posted | G196: C16062 | H196: 1557 | I196: 1710 | J196: MIST Meter Capital | K196: W.00314533 - GS>50 MIST Meter Program Imple | L196: Payroll Labor Distribution | M196: 7 | N196: 1326114 | O196: 2017-02-01 | Q196: 0 | S196: 2017
A197: T2 | B197: 9968 | C197: 00900 | D197: 2017-02-03 | E197: 385.7 | F197: Posted | G197: C16062 | H197: 1557 | I197: 1720 | J197: MIST Meter Capital | K197: W.00314533 - GS>50 MIST Meter Program Imple | L197: Payroll Labor Distribution | M197: 7 | N197: 1331800 | O197: 2017-02-08 | Q197: 0 | S197: 2017
A198: T2 | B198: 10010 | C198: 00900 | D198: 2017-02-24 | E198: 385.7 | F198: Posted | G198: C16062 | H198: 1557 | I198: 1720 | J198: MIST Meter Capital | K198: W.00314533 - GS>50 MIST Meter Program Imple | L198: Payroll Labor Distribution | M198: 7 | N198: 1337938 | O198: 2017-03-01 | Q198: 0 | S198: 2017
A199: T2 | B199: 10017 | C199: 00900 | D199: 2017-03-03 | E199: 308.56 | F199: Posted | G199: C16062 | H199: 1557 | I199: 1720 | J199: MIST Meter Capital | K199: W.00314533 - GS>50 MIST Meter Program Imple | L199: Payroll Labor Distribution | M199: 7 | N199: 1343341 | O199: 2017-03-08 | Q199: 0 | S199: 2017
A200: T2 | B200: 10033 | C200: 00900 | D200: 2017-03-10 | E200: 231.42 | F200: Posted | G200: C16062 | H200: 1557 | I200: 1720 | J200: MIST Meter Capital | K200: W.00314533 - GS>50 MIST Meter Program Imple | L200: Payroll Labor Distribution | M200: 7 | N200: 1345690 | O200: 2017-03-15 | Q200: 0 | S200: 2017
... 175 more rows

Sheet Cognos_Office_Connection_Cache (hidden)
